Service Area Categorisation,Service Division Categorisation,Responsible Unit,Expenses Type,Expenses Sub-Type,Detailed Expenses Type,Date,Transaction Number,Amount,Capital/Revenue,Supplier Name
Childrens & Education Services,Other Ch's & Family Services,Staying Put,Employees,Indirect Employee Expenses,Training Courses (In House),20110815,1,"1,000.00",Revenue,REDACTED
Childrens & Education Services,Delegated Ind Sec. Sch Budgets,W'don College High,Supplies and Services,Expenses,Advances,20110802,2,"150,000.00",Revenue,WIMBLEDON COLLEGE SCHOOL
,No FE Detail,Wimbledon College,Fund Balances,Funded by Other grants & contr,Extl Payees Monthly,20110802,3,"59,170.21",Revenue,TEACHERS PENSIONS AGENCY
,No FE Detail,Payroll Summary Account,Fund Balances,Funded by Other grants & contr,Extl Payees Monthly,20110802,4,"733,529.20",Revenue,TEACHERS PENSIONS AGENCY
,No FE Detail,Ursuline  - Payroll Contract,Fund Balances,,Other Deductions,20110802,5,"55,558.13",Revenue,TEACHERS PENSIONS AGENCY
Adult Social Care,Support Serv & Mgmt Costs (SS),SP Direct Payments,Supplies and Services,Prntng Stnry Gen Off Exp,Stationery,20110802,6,"10,000.00",Revenue,ADVANCED PAYMENT SOLUTIONS LTD
Housing Services,Homelessness,Homelessness Prevention,Transfer Payments,Housing Benefits,Rent Deposits,20110802,7,775,Revenue,TOOMEY ESTATE AGENTS
,No FE Detail,Wimbledon College,Fund Balances,Funded by Other grants & contr,Extl Payees Monthly,20110802,8,"58,677.68",Revenue,TEACHERS PENSIONS AGENCY
,No FE Detail,Payroll Summary Account,Fund Balances,Funded by Other grants & contr,Extl Payees Monthly,20110802,9,"725,154.58",Revenue,TEACHERS PENSIONS AGENCY
,No FE Detail,Ursuline  - Payroll Contract,Fund Balances,,Other Deductions,20110802,10,"55,098.38",Revenue,TEACHERS PENSIONS AGENCY
Childrens & Education Services,Delegated Ind Sec. Sch Budgets,Raynes Park High,Supplies and Services,Expenses,Advances,20110802,11,"200,000.00",Revenue,RAYNES PARK SECONDARY SCHOOL
Adult Social Care,Older People 65&Over inc OP-MH,OP West - Home Care External,Third Party Payments,Private Contractors,Miscellaneous Agency Services,20110811,12,"-23,104.47",Revenue,BELGRAVIA NURS. & CARE BUREAU
Central Services,Fully rechargeable Overheads,Post Room,Supplies and Services,Comms and Computing,Postage - General,20110802,13,"19,997.60",Revenue,TNT POST LONDON LTD
Childrens & Education Services,Children's Services - C & S W,CL Children Looked After Team1,Third Party Payments,Private Contractors,Miscellaneous Agency Services,20110801,14,609,Revenue,AMICUS RECRUITMENT
Housing Services,Homelessness,Homelessness Prevention,Transfer Payments,Housing Benefits,Rent Deposits,20110801,15,850,Revenue,REDACTED
Housing Services,Homelessness,Homelessness Prevention,Transfer Payments,Housing Benefits,Rent Deposits,20110801,16,847.69,Revenue,REDACTED
,No FE Detail,Payroll Summary Account,Fund Balances,Funded by Other grants & contr,Extl Payees Monthly,20110802,17,"5,151.41",Revenue,REDACTED
,No FE Detail,Payroll Summary Account,Fund Balances,Funded by Other grants & contr,Extl Payees Monthly,20110802,18,881.22,Revenue,REDACTED
,No FE Detail,Payroll Summary Account,Fund Balances,Funded by Other grants & contr,Extl Payees Monthly,20110802,19,"8,168.51",Revenue,REDACTED
,No FE Detail,Payroll Summary Account,Fund Balances,Funded by Other grants & contr,Extl Payees Monthly,20110802,20,"2,666.41",Revenue,REDACTED
,No FE Detail,Payroll Summary Account,Fund Balances,Funded by Other grants & contr,Extl Payees Monthly,20110802,21,"12,579.61",Revenue,REDACTED
,No FE Detail,Tiffin Boys,Fund Balances,,Other Deductions,20110802,22,"17,898.56",Revenue,LONDON BOROUGH OF KINGSTON
,No FE Detail,Payroll Summary Account,Fund Balances,Funded by Other grants & contr,Extl Payees Monthly,20110802,23,574.01,Revenue,REDACTED
,No FE Detail,Payroll Summary Account,Fund Balances,Funded by Other grants & contr,Extl Payees Monthly,20110802,24,"2,193.47",Revenue,REDACTED
,No FE Detail,Payroll Summary Account,Fund Balances,Funded by Other grants & contr,Extl Payees Monthly,20110802,25,648.06,Revenue,REDACTED
,No FE Detail,Payroll Summary Account,Fund Balances,Funded by Other grants & contr,Extl Payees Monthly,20110802,26,"15,246.39",Revenue,PRUDENTIAL (LOCAL GOVERMENT)
,No FE Detail,Ursuline  - Payroll Contract,Fund Balances,,Other Deductions,20110802,27,"1,004.93",Revenue,PRUDENTIAL (TEACHERS)
,No FE Detail,Payroll Summary Account,Fund Balances,Funded by Other grants & contr,Extl Payees Monthly,20110802,28,"1,323.19",Revenue,REDACTED
,No FE Detail,Payroll Summary Account,Fund Balances,Funded by Other grants & contr,Extl Payees Monthly,20110802,29,"9,735.25",Revenue,REDACTED
,No FE Detail,Tiffin Boys,Fund Balances,,Other Deductions,20110802,30,695.86,Revenue,PRUDENTIAL (TEACHERS)
Adult Social Care,Older People 65&Over inc OP-MH,OP East - Nursing Care,Third Party Payments,Private Contractors,Miscellaneous Agency Services,20110803,31,"5,196.47",Revenue,REDACTED
Highways & Transport Services,Winter Service,Winter Maintenance,Third Party Payments,Other Local Authorities,OLA-Payments - Day Schools,20110802,32,"81,000.00",Revenue,MOHINDRA MAINI LLP SOLICITORS
,No FE Detail,Payroll Summary Account,Fund Balances,Funded by Other grants & contr,Advances- Chqs Drawn,20110802,33,834,Revenue,REDACTED
,No FE Detail,Payroll Summary Account,Fund Balances,Funded by Other grants & contr,Advances- Chqs Drawn,20110802,34,"1,935.12",Revenue,REDACTED
,No FE Detail,Annual Season Ticket Loans,Fund Balances,,Payments X,20110803,35,"4,920.00",Revenue,SOUTH WEST TRAINS
,No FE Detail,Payroll Summary Account,Fund Balances,Funded by Other grants & contr,Advances- Chqs Drawn,20110802,36,551.04,Revenue,REDACTED
Central Services,Fully rechargeable Overheads,Legal Services,Supplies and Services,Services,Court Fees,20110802,37,"2,225.00",Revenue,REDACTED
Central Services,Fully rechargeable Overheads,Legal Services,Supplies and Services,Services,Court Fees,20110802,38,700,Revenue,REDACTED
Cultural Env Reg&Plan Services,Open Spaces,E & R Buildings,Premises Related Expenditure,RepairsAlterations&MtceOfBldgs,DDM - Mechanical,20110802,39,"-5,287.86",Revenue,COFELY LIMITED
,No FE Detail,Insurance Fund,Fund Balances,Funded by S106,Payment of Claims,20110802,40,"10,000.00",Revenue,KANE PCC LTD
,No FE Detail,Insurance Fund,Fund Balances,Funded by S106,Payment of Claims,20110802,41,"10,000.00",Revenue,KANE PCC LTD
Central Services,Fully rechargeable Overheads,Legal Services,Supplies and Services,Services,Court Fees,20110803,42,"1,900.00",Revenue,REDACTED
Childrens & Education Services,Children Looked After (24hrs+),CL Fostering Services,Premises Related Expenditure,RepairsAlterations&MtceOfBldgs,Repairs & Maintenance General,20110803,43,500,Revenue,REDACTED
Housing Services,Homelessness,Homelessness Prevention,Transfer Payments,Housing Benefits,Rent Deposits,20110804,44,825,Revenue,REDACTED
,,Joseph Hood Permanent Expansn,Construct Conversn Renovatn,Contractor - Site works,Contractor - Site works,20110810,45,"-177,000.00",Capital,GEE CONSTRUCTION LTD
Childrens & Education Services,Family Support Services,CS Children in Need Section 17,Transfer Payments,Adult Soc Servs Clients,Childr Act 1989 S17,20110805,46,550,Revenue,SAINSBURY'S BUSINESS DIRECT
Childrens & Education Services,Family Support Services,CS Referral & Assessment Sec17,Transfer Payments,Adult Soc Servs Clients,Childr Act 1989 S17,20110805,47,550,Revenue,SAINSBURY'S BUSINESS DIRECT
Childrens & Education Services,Family Support Services,CS Childr Act 1989 - Section17,Transfer Payments,Adult Soc Servs Clients,Childr Act 1989 S17,20110805,48,600,Revenue,SAINSBURY'S BUSINESS DIRECT
Central Services,Democ' Representation & Mgt,Mayors Office,Supplies and Services,Clothing Unfrms Laundry,Regalia,20110817,49,993.25,Revenue,TOYE KENNING & SPENSOR
Childrens & Education Services,Other Ch's & Family Services,CL Setting Up Home Allowance,Third Party Payments,Private Contractors,Miscellaneous Agency Services,20110810,50,"1,206.26",Revenue,REDACTED
Adult Social Care,Adlt u65 Learning Disabilities,LD Other Services,Third Party Payments,Private Contractors,Miscellaneous Agency Services,20110809,51,"2,276.65",Revenue,REDACTED
Housing Services,Homelessness,Homelessness Prevention,Transfer Payments,Housing Benefits,Rent Deposits,20110810,52,"1,025.00",Revenue,MAALEMS AGENTS
Cultural Env Reg&Plan Services,Environmental Health,Health & Safety,Supplies and Services,Services,Court Fees,20110810,53,"2,800.00",Revenue,TREEVOLUTION LTD
Cultural Env Reg&Plan Services,Cemetery Cremation & Mortuary,Gap Road Cemetery,Customer and client receipts,Fees,Internment Fees E,20110810,54,"1,236.00",Revenue,REDACTED
,No FE Detail,B591a Street Scene Improvement,Construct Conversn Renovatn,Contractor - Site works,Contractor - Site works,20110810,55,"11,258.64",Capital,VIRGIN MEDIA
,,Joseph Hood Permanent Expansn,Construct Conversn Renovatn,Contractor - Site works,Contractor - Site works,20110815,56,"177,000.00",Capital,GEE CONSTRUCTION LTD
Childrens & Education Services,Adult Education,AE-Adult Education Main,Supplies and Services,Services,Misc Advertising/Publicity,20110815,57,"20,620.00",Revenue,STUDIO 11 LTD
,No FE Detail,Wimbledon College,Fund Balances,Funded by Other grants & contr,Extl Payees Monthly,20110819,58,"58,918.18",Revenue,TEACHERS PENSIONS AGENCY
,No FE Detail,Payroll Summary Account,Fund Balances,Funded by Other grants & contr,Extl Payees Monthly,20110819,59,"729,993.05",Revenue,TEACHERS PENSIONS AGENCY
,No FE Detail,Tiffin Boys,Fund Balances,,Other Deductions,20110819,60,"48,052.99",Revenue,TEACHERS PENSIONS AGENCY
,No FE Detail,Ursuline  - Payroll Contract,Fund Balances,,Other Deductions,20110819,61,"55,452.76",Revenue,TEACHERS PENSIONS AGENCY
,No FE Detail,MAYORS'S CHARITY ,Fund Balances,,Payments X,20110810,62,"18,236.76",Revenue,WIMBLEDON CIVIC THEATRE TRUST
,No FE Detail,MAYORS'S CHARITY ,Fund Balances,,Payments X,20110810,63,"18,586.76",Revenue,MACMILLAN CANCER SUPPORT
Housing Services,Homelessness,Homelessness Prevention,Transfer Payments,Housing Benefits,Rent Deposits,20110811,64,800.02,Revenue,CAZENOVE ESTATES LTD
,No FE Detail,Payroll Summary Account,Fund Balances,Funded by Other grants & contr,Salary Sacrifice,20110811,65,"9,951.62",Revenue,ACCOR SERVICES
,No FE Detail,Payroll Summary Account,Fund Balances,Funded by Other grants & contr,Salary Sacrifice,20110811,66,547.34,Revenue,ACCOR SERVICES
Housing Services,Homelessness,Homelessness Prevention,Transfer Payments,Housing Benefits,Rent Deposits,20110812,67,849.98,Revenue,FAST HOMES UK LTD
Childrens & Education Services,Other Ch's & Family Services,CL Setting Up Home Allowance,Third Party Payments,Private Contractors,Miscellaneous Agency Services,20110817,68,910.19,Revenue,REDACTED
Cultural Env Reg&Plan Services,Waste Collection,Recycling Activities,Third Party Payments,Private Contractors,Disposal of Kitchen Waste,20110815,69,"6,388.47",Revenue,KINGSTON CORPORATION
Cultural Env Reg&Plan Services,Waste Collection,Recycling Activities,Third Party Payments,Private Contractors,Term Contract,20110815,70,"41,980.07",Revenue,KINGSTON CORPORATION
,No FE Detail,Bldng Sub-Cntrctrs Tax Acc,Fund Balances,,Payments X,20110815,71,"3,157.80",Revenue,HM REVENUE & CUSTOMS
Cultural Env Reg&Plan Services,Development Control,Development Control,Customer and client receipts,Fees,Application Fees X,20110817,72,686,Revenue,REDACTED
Housing Services,Homelessness,Homelessness Prevention,Transfer Payments,Housing Benefits,Rent Deposits,20110816,73,"3,400.00",Revenue,GOODFELLOWS LETTING & MANAG.
,No FE Detail,Car Loans Account,Fund Balances,,Loan Advances,20110817,74,"4,377.56",Revenue,PHOENIX
Central Services,Retiremt Benefit -Curtailments,Pension and Redundancy Costs,Employees,Indirect Employee Expenses,Severance-Creditors,20110817,75,"6,400.75",Revenue,TEACHERS PENSION
,No FE Detail,Crossrail BRS,Fund Balances,,Payments X,20110824,76,"186,733.00",Revenue,GREATER LONDON AUTHORITY
CS -Oth Operating Inc & Expend,Precepts and Levies,Lee Valley Regional Park,Corporate Items,,Expenditure,20110818,77,"18,350.46",Revenue,LEE VALLEY REGIONAL PARK AUTH.
,No FE Detail,Mtchm Cmmon Consvtors,Supplies and Services,Expenses,Special Projects,20110819,78,"1,500.00",Revenue,A.G.A. GROUP
Housing Services,Homelessness,Homelessness Prevention,Transfer Payments,Housing Benefits,Rent Deposits,20110819,79,849.98,Revenue,REDACTED
Housing Services,Homelessness,Homelessness Prevention,Transfer Payments,Housing Benefits,Rent Deposits,20110819,80,"1,025.01",Revenue,REDACTED
,No FE Detail,MITCHAM BUS STOP RELOCATION,Fund Balances,,Deposits Refunded,20110819,81,"80,405.92",Revenue,LONDON FIRE & EMER PLAN.AUTH.
Childrens & Education Services,Other Ch's & Family Services,CL Setting Up Home Allowance,Third Party Payments,Private Contractors,Miscellaneous Agency Services,20110824,82,"1,087.40",Revenue,REDACTED
Housing Services,Homelessness,Homelessness Prevention,Transfer Payments,Housing Benefits,Rent Deposits,20110822,83,"1,000.00",Revenue,HOMEBELLS ESTATE AGENTS
Housing Services,Homelessness,Homelessness Prevention,Transfer Payments,Housing Benefits,Rent Deposits,20110822,84,"2,500.00",Revenue,REDACTED
Housing Services,Homelessness,Homelessness Prevention,Transfer Payments,Housing Benefits,Sanctuary Scheme Rent Rescue,20110823,85,687.24,Revenue,SANTANDER
Central Services,Local Tax Collection,Local Taxation Bailiffs,Supplies and Services,Services,Bailiffs' Fees,20110824,86,863.88,Revenue,REDACTED
Childrens & Education Services,Other Ch's & Family Services,CL Permanency,Employees,Direct Employee Expenses,Agency Staff & Casual Paymts,20110824,87,930,Revenue,REDACTED
Childrens & Education Services,Other Ch's & Family Services,CL Permanency,Employees,Direct Employee Expenses,Agency Staff & Casual Paymts,20110824,88,930,Revenue,REDACTED
Adult Social Care,Adlt u65 Learning Disabilities,LD Meadow Sweet Close,Supplies and Services,Expenses,Subsistence-Creditors,20110824,89,560,Revenue,REDACTED
Childrens & Education Services,Family Support Services,CL 16+ Transport External,Transport Related Expenditure,Public Transport,Travel-AP-Creditors,20110824,90,"1,102.50",Revenue,TRANSPORT TRADING LTD
Housing Services,Homelessness,Homelessness Prevention,Transfer Payments,Housing Benefits,Rent Deposits,20110824,91,"1,025.00",Revenue,AD INTERIM LTD
Housing Services,Homelessness,Homelessness Prevention,Transfer Payments,Housing Benefits,Rent Deposits,20110824,92,"1,250.00",Revenue,CONCEPT ESTATE AGENTS LTD
,No FE Detail,Payroll Summary Account,Fund Balances,Funded by Other grants & contr,Salary Sacrifice,20110824,93,"2,082.00",Revenue,ACCOR SERVICES
,No FE Detail,Payroll Summary Account,Fund Balances,Funded by Other grants & contr,Salary Sacrifice,20110825,94,"13,457.00",Revenue,ACCOR SERVICES
,No FE Detail,Payroll Summary Account,Fund Balances,Funded by Other grants & contr,Salary Sacrifice,20110825,95,740.14,Revenue,ACCOR SERVICES
Housing Services,Homelessness,Homelessness Prevention,Transfer Payments,Housing Benefits,Rent Deposits,20110826,96,"2,000.00",Revenue,KNOWLEDGE INVEST & PROP CORP
Childrens & Education Services,Other Ch's & Family Services,CL Setting Up Home Allowance,Third Party Payments,Private Contractors,Miscellaneous Agency Services,20110830,97,"1,228.92",Revenue,REDACTED
Cultural Env Reg&Plan Services,Open Spaces,"Trans,Plnt WHA(Unl)",Supplies and Services,Equip Furniture/Materials,Equip-Purchases,20110830,98,"2,394.00",Revenue,GODFREYS
,No FE Detail,Payroll Summary Account,Fund Balances,Funded by Other grants & contr,Advances- Chqs Drawn,20110831,99,513.59,Revenue,REDACTED
,No FE Detail,Lavender CC - Nursery Deposits,Fund Balances,,Xfer to/from Rev A/C   X,20110831,100,764.5,Revenue,SURESTART IMPREST BANK ACCOUNT
,No FE Detail,Superannuation creditors,Fund Balances,,Payments X,20110803,101,583.27,Revenue,DAVID RUBIE  MITCHELL & CO
Adult Social Care,Adult u65 Mental Health Needs,MH Other Servs - Mitcham West,Third Party Payments,Private Contractors,Miscellaneous Agency Services,20110801,102,553.88,Revenue,MATRIX PROPERTIES SERVICES LTD
Adult Social Care,Older People 65&Over inc OP-MH,OP East - Nursing Care,Third Party Payments,Private Contractors,Miscellaneous Agency Services,20110801,103,"2,334.52",Revenue,THE CROFT NURSING HOME
Adult Social Care,Adlt u65 Learning Disabilities,LD Residential Care External,Third Party Payments,Private Contractors,Miscellaneous Agency Services,20110803,104,"2,471.60",Revenue,CANTERBURY OAST TRUST LTD
Adult Social Care,Adult u65 Phys/Sensory Impair,PD WEST TEAM-Residential Care,Third Party Payments,Private Contractors,Miscellaneous Agency Services,20110801,105,"3,399.76",Revenue,THE FRANCES TAYLOR FOUNDATION
Adult Social Care,Older People 65&Over inc OP-MH,OP West - Nursing Care,Third Party Payments,Private Contractors,Miscellaneous Agency Services,20110801,106,"2,134.60",Revenue,KELSTONE COURT NURSING HOME
Adult Social Care,Older People 65&Over inc OP-MH,OP Hosp - Nursing Care,Third Party Payments,Private Contractors,Miscellaneous Agency Services,20110801,107,"2,341.84",Revenue,KELSTONE COURT NURSING HOME
Adult Social Care,Older People 65&Over inc OP-MH,OP West - Residential Care Ext,Third Party Payments,Private Contractors,Miscellaneous Agency Services,20110801,108,"1,744.34",Revenue,KELSTONE COURT NURSING HOME
Adult Social Care,Older People 65&Over inc OP-MH,OP Hosp - Nursing Care,Third Party Payments,Private Contractors,Miscellaneous Agency Services,20110801,109,"2,380.00",Revenue,KELSTONE COURT NURSING HOME
Adult Social Care,Older People 65&Over inc OP-MH,OP West - Nursing Care,Third Party Payments,Private Contractors,Miscellaneous Agency Services,20110801,110,"2,173.96",Revenue,KELSTONE COURT NURSING HOME
Adult Social Care,Older People 65&Over inc OP-MH,OP Hosp - Nursing Care,Third Party Payments,Private Contractors,Miscellaneous Agency Services,20110801,111,"2,341.84",Revenue,KELSTONE COURT NURSING HOME
Adult Social Care,Older People 65&Over inc OP-MH,OP East - Nursing Care,Third Party Payments,Private Contractors,Miscellaneous Agency Services,20110801,112,"2,341.84",Revenue,KELSTONE COURT NURSING HOME
Adult Social Care,Older People 65&Over inc OP-MH,OP East - Residential Care Ext,Third Party Payments,Private Contractors,Miscellaneous Agency Services,20110801,113,"1,812.40",Revenue,KELSTONE COURT NURSING HOME
Adult Social Care,Older People 65&Over inc OP-MH,OP Hosp - Nursing Care,Third Party Payments,Private Contractors,Miscellaneous Agency Services,20110801,114,"2,341.84",Revenue,KELSTONE COURT NURSING HOME
Adult Social Care,Older People 65&Over inc OP-MH,OP West - Nursing Care,Third Party Payments,Private Contractors,Miscellaneous Agency Services,20110801,115,"2,341.84",Revenue,KELSTONE COURT NURSING HOME
Adult Social Care,Older People 65&Over inc OP-MH,OP West - Nursing Care,Third Party Payments,Private Contractors,Miscellaneous Agency Services,20110801,116,"2,341.84",Revenue,KELSTONE COURT NURSING HOME
Adult Social Care,Older People 65&Over inc OP-MH,OP Morden - Nursing Care,Third Party Payments,Private Contractors,Miscellaneous Agency Services,20110801,117,"2,341.84",Revenue,KELSTONE COURT NURSING HOME
Adult Social Care,Adult u65 Phys/Sensory Impair,PD WEST TEAM-Homecare,Third Party Payments,Private Contractors,Miscellaneous Agency Services,20110811,118,910.71,Revenue,BELGRAVIA NURS. & CARE BUREAU
Adult Social Care,Adult u65 Phys/Sensory Impair,PD EAST TEAM-Homecare,Third Party Payments,Private Contractors,Miscellaneous Agency Services,20110811,119,712.09,Revenue,BELGRAVIA NURS. & CARE BUREAU
Adult Social Care,Adult u65 Phys/Sensory Impair,PD WEST TEAM-Homecare,Third Party Payments,Private Contractors,Miscellaneous Agency Services,20110811,120,971.42,Revenue,BELGRAVIA NURS. & CARE BUREAU
Adult Social Care,Adult u65 Phys/Sensory Impair,PD EAST TEAM-Homecare,Third Party Payments,Private Contractors,Miscellaneous Agency Services,20110811,121,759.57,Revenue,BELGRAVIA NURS. & CARE BUREAU
Adult Social Care,Adult u65 Phys/Sensory Impair,PD WEST TEAM-Homecare,Third Party Payments,Private Contractors,Miscellaneous Agency Services,20110811,122,910.71,Revenue,BELGRAVIA NURS. & CARE BUREAU
Adult Social Care,Adult u65 Phys/Sensory Impair,PD WEST TEAM-Homecare,Third Party Payments,Private Contractors,Miscellaneous Agency Services,20110811,123,850,Revenue,BELGRAVIA NURS. & CARE BUREAU
Adult Social Care,Adult u65 Phys/Sensory Impair,PD WEST TEAM-Homecare,Third Party Payments,Private Contractors,Miscellaneous Agency Services,20110811,124,664.62,Revenue,BELGRAVIA NURS. & CARE BUREAU
Adult Social Care,Adult u65 Phys/Sensory Impair,PD EAST TEAM-Homecare,Third Party Payments,Private Contractors,Miscellaneous Agency Services,20110811,125,664.62,Revenue,BELGRAVIA NURS. & CARE BUREAU
Adult Social Care,Adult u65 Mental Health Needs,MH ResidentialCare Ext - Wim,Third Party Payments,Private Contractors,Miscellaneous Agency Services,20110803,126,"1,524.76",Revenue,ALDWICK RESIDENTIAL CARE HOME
Adult Social Care,Adlt u65 Learning Disabilities,LD Residential Care External,Third Party Payments,Private Contractors,Miscellaneous Agency Services,20110815,127,"2,904.52",Revenue,ST MICHAEL'S ADULT SERVICES
Adult Social Care,Adlt u65 Learning Disabilities,LD Nursing Care,Third Party Payments,Private Contractors,Miscellaneous Agency Services,20110815,128,"5,122.60",Revenue,WINGREACH LIMITED
Childrens & Education Services,Other Ch's & Family Services,CL Leaving Care/Supp Lodgings,Third Party Payments,Private Contractors,Private Tenant/Landlord,20110801,129,600,Revenue,REDACTED
Adult Social Care,Adult u65 Mental Health Needs,MH Adult Placement Cont-Wim,Third Party Payments,Private Contractors,Accommodation Based Support,20110801,130,"12,950.30",Revenue,SW LONDON ST GEORGES NHS TRUST
Adult Social Care,Adult u65 Mental Health Needs,MH Adult Placement Cont-Wim,Third Party Payments,Private Contractors,Accommodation Based Support,20110801,131,"16,188.00",Revenue,SW LONDON ST GEORGES NHS TRUST
Adult Social Care,Asylum seekers,AS Child - Res Care (Grant),Third Party Payments,Private Contractors,Supported Lodgings,20110801,132,600,Revenue,REDACTED
Adult Social Care,Older People 65&Over inc OP-MH,OP East - Daycare,Third Party Payments,Private Contractors,Miscellaneous Agency Services,20110801,133,779.6,Revenue,ENTERPRISE CARE SUPPORT LTD
Adult Social Care,Older People 65&Over inc OP-MH,OP West - Daycare,Third Party Payments,Private Contractors,Miscellaneous Agency Services,20110801,134,779.6,Revenue,ENTERPRISE CARE SUPPORT LTD
Adult Social Care,Older People 65&Over inc OP-MH,OP East - Daycare,Third Party Payments,Private Contractors,Miscellaneous Agency Services,20110801,135,779.6,Revenue,ENTERPRISE CARE SUPPORT LTD
Adult Social Care,Older People 65&Over inc OP-MH,OP West - Daycare,Third Party Payments,Private Contractors,Miscellaneous Agency Services,20110801,136,779.6,Revenue,ENTERPRISE CARE SUPPORT LTD
Adult Social Care,Adult u65 Mental Health Needs,MH Day Care - Morden,Third Party Payments,Private Contractors,Miscellaneous Agency Services,20110801,137,623.68,Revenue,ENTERPRISE CARE SUPPORT LTD
Adult Social Care,Older People 65&Over inc OP-MH,OP East - Daycare,Third Party Payments,Private Contractors,Miscellaneous Agency Services,20110801,138,779.6,Revenue,ENTERPRISE CARE SUPPORT LTD
Adult Social Care,Older People 65&Over inc OP-MH,OP East - Daycare,Third Party Payments,Private Contractors,Miscellaneous Agency Services,20110801,139,779.6,Revenue,ENTERPRISE CARE SUPPORT LTD
Adult Social Care,Older People 65&Over inc OP-MH,OP West - Home Care External,Third Party Payments,Private Contractors,Miscellaneous Agency Services,20110801,140,583.1,Revenue,LINK HOUSE
Adult Social Care,Adult u65 Phys/Sensory Impair,PD EAST TEAM-Homecare,Third Party Payments,Private Contractors,Miscellaneous Agency Services,20110801,141,"1,501.21",Revenue,SANCTUARY HOME CARE
Adult Social Care,Older People 65&Over inc OP-MH,OP East - Home Care External,Third Party Payments,Private Contractors,Miscellaneous Agency Services,20110801,142,"4,265.12",Revenue,SANCTUARY HOME CARE
Adult Social Care,Older People 65&Over inc OP-MH,OP West - Home Care External,Third Party Payments,Private Contractors,Miscellaneous Agency Services,20110801,143,"28,088.90",Revenue,SANCTUARY HOME CARE
Adult Social Care,Adult u65 Phys/Sensory Impair,PD EAST TEAM-Nursing,Third Party Payments,Private Contractors,Miscellaneous Agency Services,20110801,144,"3,940.00",Revenue,BRITISH HOME
Adult Social Care,Older People 65&Over inc OP-MH,OP East - Residential Care Ext,Third Party Payments,Private Contractors,Miscellaneous Agency Services,20110803,145,"8,608.90",Revenue,CENTRAL & CECIL
Adult Social Care,Adlt u65 Learning Disabilities,LD Residential Care External,Third Party Payments,Private Contractors,Miscellaneous Agency Services,20110803,146,"4,330.44",Revenue,HUNTERS' LODGE
Adult Social Care,Older People 65&Over inc OP-MH,OP East - Residential Care Ext,Third Party Payments,Private Contractors,Miscellaneous Agency Services,20110803,147,"3,371.44",Revenue,'LA LUZ'
Adult Social Care,Older People 65&Over inc OP-MH,OP East - Residential Care Ext,Third Party Payments,Private Contractors,Miscellaneous Agency Services,20110803,148,"2,200.00",Revenue,'LA LUZ'
Adult Social Care,Older People 65&Over inc OP-MH,OP East - Residential Care Ext,Third Party Payments,Private Contractors,Miscellaneous Agency Services,20110803,149,"2,200.00",Revenue,'LA LUZ'
Adult Social Care,Older People 65&Over inc OP-MH,OP East - Residential Care Ext,Third Party Payments,Private Contractors,Miscellaneous Agency Services,20110803,150,"2,750.00",Revenue,'LA LUZ'
Adult Social Care,Adlt u65 Learning Disabilities,LD Residential Care External,Third Party Payments,Private Contractors,Miscellaneous Agency Services,20110801,151,"2,000.00",Revenue,LINK HOUSE
Adult Social Care,Older People 65&Over inc OP-MH,OP West - Residential Care Ext,Third Party Payments,Private Contractors,Miscellaneous Agency Services,20110801,152,"2,730.00",Revenue,LINK HOUSE
Adult Social Care,Older People 65&Over inc OP-MH,OP Hosp - Residential Care Ext,Third Party Payments,Private Contractors,Miscellaneous Agency Services,20110801,153,"2,000.00",Revenue,LINK HOUSE
Adult Social Care,Older People 65&Over inc OP-MH,OP East - Residential Care Ext,Third Party Payments,Private Contractors,Miscellaneous Agency Services,20110803,154,"1,386.08",Revenue,REDACTED
Adult Social Care,Older People 65&Over inc OP-MH,OP Hosp - Residential Care Ext,Third Party Payments,Private Contractors,Miscellaneous Agency Services,20110801,155,"2,146.88",Revenue,SOUTHERN CROSS HEALTHCARE LTD
Adult Social Care,Older People 65&Over inc OP-MH,OP East - Residential Care Ext,Third Party Payments,Private Contractors,Miscellaneous Agency Services,20110801,156,"2,000.00",Revenue,WOODLANDS
Adult Social Care,Older People 65&Over inc OP-MH,OP West - Residential Care Ext,Third Party Payments,Private Contractors,Miscellaneous Agency Services,20110801,157,"2,000.00",Revenue,WOODLANDS
Adult Social Care,Older People 65&Over inc OP-MH,OP Hosp - Residential Care Ext,Third Party Payments,Private Contractors,Miscellaneous Agency Services,20110801,158,"2,200.00",Revenue,WOODLANDS
Adult Social Care,Older People 65&Over inc OP-MH,OP East - Nursing Care,Third Party Payments,Private Contractors,Miscellaneous Agency Services,20110801,159,"2,552.88",Revenue,WOODLANDS
Adult Social Care,Older People 65&Over inc OP-MH,OP West - Residential Care Ext,Third Party Payments,Private Contractors,Miscellaneous Agency Services,20110801,160,"2,044.56",Revenue,WOODLANDS
Adult Social Care,Adult u65 Mental Health Needs,MH Other Servs - Wim,Third Party Payments,Private Contractors,Miscellaneous Agency Services,20110801,161,"3,030.00",Revenue,SERVITE HOUSES
Adult Social Care,Other Adult Services,Fixed & Variable Client Paymen,Third Party Payments,Private Contractors,Miscellaneous Agency Services,20110801,162,"38,105.04",Revenue,ABILITY HOUSING ASSOCIATION
Adult Social Care,Other Adult Services,Fixed & Variable Client Paymen,Third Party Payments,Private Contractors,Miscellaneous Agency Services,20110801,163,"3,712.87",Revenue,ANCHOR SP PAYMENT FROM SEP'03
Adult Social Care,Other Adult Services,Fixed & Variable Client Paymen,Third Party Payments,Private Contractors,Miscellaneous Agency Services,20110801,164,"1,522.50",Revenue,ASIAN ELDERLY GROUP OF MERTON
Adult Social Care,Other Adult Services,Fixed & Variable Client Paymen,Third Party Payments,Private Contractors,Miscellaneous Agency Services,20110801,165,"1,850.83",Revenue,CENTRAL & CECIL HOUSING TRUST
Adult Social Care,Other Adult Services,Fixed & Variable Client Paymen,Third Party Payments,Private Contractors,Miscellaneous Agency Services,20110801,166,"1,973.30",Revenue,CROYDON CHURCHES HOUSING ASSOC
Adult Social Care,Other Adult Services,Fixed & Variable Client Paymen,Third Party Payments,Private Contractors,Miscellaneous Agency Services,20110801,167,"10,150.58",Revenue,EQUINOX
Adult Social Care,Other Adult Services,Fixed & Variable Client Paymen,Third Party Payments,Private Contractors,Miscellaneous Agency Services,20110801,168,"14,308.35",Revenue,FAMILY HOUSING ASSOCIATION
Adult Social Care,Other Adult Services,Fixed & Variable Client Paymen,Third Party Payments,Private Contractors,Miscellaneous Agency Services,20110801,169,"21,671.75",Revenue,GRENFELL HOUSING ASSOCIATION
Adult Social Care,Other Adult Services,Fixed & Variable Client Paymen,Third Party Payments,Private Contractors,Miscellaneous Agency Services,20110801,170,"1,702.10",Revenue,HANOVER HOUSING ASSOCIATION
Adult Social Care,Other Adult Services,Fixed & Variable Client Paymen,Third Party Payments,Private Contractors,Miscellaneous Agency Services,20110801,171,"10,749.99",Revenue,HESTIA HOUSING AND SUPPORT
Adult Social Care,Other Adult Services,Fixed & Variable Client Paymen,Third Party Payments,Private Contractors,Miscellaneous Agency Services,20110801,172,"1,728.88",Revenue,AMICUS HORIZON
Adult Social Care,Other Adult Services,Fixed & Variable Client Paymen,Third Party Payments,Private Contractors,Miscellaneous Agency Services,20110801,173,945.78,Revenue,HOUSING21
Adult Social Care,Other Adult Services,Fixed & Variable Client Paymen,Third Party Payments,Private Contractors,Miscellaneous Agency Services,20110801,174,536.9,Revenue,KINGSTON CHURCHES HSG ASSOC
Adult Social Care,Other Adult Services,Fixed & Variable Client Paymen,Third Party Payments,Private Contractors,Miscellaneous Agency Services,20110801,175,600.42,Revenue,KINGSTON CHURCHES ACTION ON HO
Adult Social Care,Other Adult Services,Fixed & Variable Client Paymen,Third Party Payments,Private Contractors,Miscellaneous Agency Services,20110801,176,"12,060.41",Revenue,MERTON ACT.FOR SINGLE HOMELESS
Adult Social Care,Other Adult Services,Fixed & Variable Client Paymen,Third Party Payments,Private Contractors,Miscellaneous Agency Services,20110801,177,"8,589.60",Revenue,MERTON REFUGE
Adult Social Care,Other Adult Services,Fixed & Variable Client Paymen,Third Party Payments,Private Contractors,Miscellaneous Agency Services,20110801,178,"6,350.12",Revenue,MERTON PRIORY HOMES
Adult Social Care,Other Adult Services,Fixed & Variable Client Paymen,Third Party Payments,Private Contractors,Miscellaneous Agency Services,20110801,179,"2,093.22",Revenue,MERTON PRIORY HOMES
Adult Social Care,Other Adult Services,Fixed & Variable Client Paymen,Third Party Payments,Private Contractors,Miscellaneous Agency Services,20110801,180,"7,556.90",Revenue,METROPOLITAN SUPPORT TRUST
Adult Social Care,Other Adult Services,Fixed & Variable Client Paymen,Third Party Payments,Private Contractors,Miscellaneous Agency Services,20110801,181,505.2,Revenue,MILLAT ASIAN HOUSING ASSOC
Adult Social Care,Other Adult Services,Fixed & Variable Client Paymen,Third Party Payments,Private Contractors,Miscellaneous Agency Services,20110801,182,"6,286.79",Revenue,NOTTING HILL HOUSING
Adult Social Care,Other Adult Services,Fixed & Variable Client Paymen,Third Party Payments,Private Contractors,Miscellaneous Agency Services,20110801,183,"5,061.54",Revenue,SANCTUARY CARE
Adult Social Care,Other Adult Services,Fixed & Variable Client Paymen,Third Party Payments,Private Contractors,Miscellaneous Agency Services,20110801,184,"8,781.99",Revenue,SERVITE HOUSES
Adult Social Care,Other Adult Services,Fixed & Variable Client Paymen,Third Party Payments,Private Contractors,Miscellaneous Agency Services,20110801,185,"26,886.55",Revenue,COMFORT CARE SERVICES (UK) LTD
Adult Social Care,Other Adult Services,Fixed & Variable Client Paymen,Third Party Payments,Private Contractors,Miscellaneous Agency Services,20110801,186,730,Revenue,SHAFTESBURY HOUSING ASSOC.
Adult Social Care,Other Adult Services,Fixed & Variable Client Paymen,Third Party Payments,Private Contractors,Miscellaneous Agency Services,20110801,187,"12,060.41",Revenue,SPEAR
Adult Social Care,Other Adult Services,Fixed & Variable Client Paymen,Third Party Payments,Private Contractors,Miscellaneous Agency Services,20110801,188,"2,095.40",Revenue,REDACTED
Adult Social Care,Other Adult Services,Fixed & Variable Client Paymen,Third Party Payments,Private Contractors,Miscellaneous Agency Services,20110801,189,709.45,Revenue,THRESHOLD CENTRE LTD
Adult Social Care,Other Adult Services,Fixed & Variable Client Paymen,Third Party Payments,Private Contractors,Miscellaneous Agency Services,20110801,190,"17,468.54",Revenue,WANDLE HOUSING ASSOCIATION LTD
Adult Social Care,Other Adult Services,Fixed & Variable Client Paymen,Third Party Payments,Private Contractors,Miscellaneous Agency Services,20110801,191,"33,899.28",Revenue,WIMBLEDON & DISTRICT YMCA
Childrens & Education Services,Children Looked After (24hrs+),ART Residential Placements,Third Party Payments,Private Contractors,Miscellaneous Agency Services,20110802,192,"12,478.07",Revenue,CHOICE LIFESTYLES LTD
Childrens & Education Services,Children Looked After (24hrs+),ART Independent Agency Foster,Supplies and Services,Services,Long Term Fostering,20110803,193,"2,973.52",Revenue,FOSTERPLUS LTD
Childrens & Education Services,Children Looked After (24hrs+),ART Independent Agency Foster,Supplies and Services,Services,Task Based Fostering,20110802,194,"6,913.62",Revenue,HILLCREST CARE LTD
Childrens & Education Services,Children Looked After (24hrs+),ART Independent Agency Foster,Supplies and Services,Services,Task Based Fostering,20110802,195,"7,185.80",Revenue,HILLCREST CARE LTD
Childrens & Education Services,Children Looked After (24hrs+),ART Independent Agency Foster,Supplies and Services,Services,Task Based Fostering,20110802,196,"6,913.62",Revenue,HILLCREST CARE LTD
Childrens & Education Services,Children Looked After (24hrs+),ART Independent Agency Foster,Supplies and Services,Services,Long Term Fostering,20110802,197,"3,126.04",Revenue,KINDERCARE FOSTERING
Childrens & Education Services,Children Looked After (24hrs+),ART Independent Agency Foster,Supplies and Services,Services,Task Based Fostering,20110802,198,"6,946.12",Revenue,KINDERCARE FOSTERING
Childrens & Education Services,Children Looked After (24hrs+),ART Independent Agency Foster,Supplies and Services,Services,Task Based Fostering,20110802,199,"6,609.82",Revenue,KINDERCARE FOSTERING
Childrens & Education Services,Children Looked After (24hrs+),ART Independent Agency Foster,Supplies and Services,Services,Task Based Fostering,20110802,200,"6,946.48",Revenue,KINDERCARE FOSTERING
Childrens & Education Services,Children Looked After (24hrs+),ART Independent Agency Foster,Supplies and Services,Services,Long Term Fostering,20110802,201,"3,126.04",Revenue,KINDERCARE FOSTERING
Childrens & Education Services,Children Looked After (24hrs+),ART Independent Agency Foster,Supplies and Services,Services,Task Based Fostering,20110802,202,"6,252.08",Revenue,KINDERCARE FOSTERING
Childrens & Education Services,Children Looked After (24hrs+),ART Independent Agency Foster,Supplies and Services,Services,Task Based Fostering,20110802,203,"6,961.72",Revenue,ST CHRISTOPHERS FELLOWSHIP
Adult Social Care,Adlt u65 Learning Disabilities,LD Home Care External,Third Party Payments,Private Contractors,Miscellaneous Agency Services,20110802,204,"2,658.20",Revenue,THE REGARD PARTNERSHIP LTD
Adult Social Care,Older People 65&Over inc OP-MH,OP East - Residential Care Ext,Third Party Payments,Private Contractors,Miscellaneous Agency Services,20110802,205,"1,887.90",Revenue,ABBEYGATE RESIDENTIAL HOME
Adult Social Care,Older People 65&Over inc OP-MH,OP West - Residential Care Ext,Third Party Payments,Private Contractors,Miscellaneous Agency Services,20110802,206,"1,380.00",Revenue,ASHMOUNT RESIDENTIAL & NURSING
Adult Social Care,Older People 65&Over inc OP-MH,OP West - Nursing Care,Third Party Payments,Private Contractors,Miscellaneous Agency Services,20110802,207,"2,654.87",Revenue,LONDON RESIDENTIAL H/CARE LTD
Adult Social Care,Older People 65&Over inc OP-MH,OP West - Nursing Care,Customer and client receipts,Charges,Miscellaneous Charges X,20110802,208,-543.5,Revenue,LONDON RESIDENTIAL H/CARE LTD
Adult Social Care,Older People 65&Over inc OP-MH,OP West - Nursing Care,Third Party Payments,Private Contractors,Miscellaneous Agency Services,20110802,209,"2,294.12",Revenue,BEACH LAWNS
Adult Social Care,Adult u65 Phys/Sensory Impair,PD EAST TEAM-Residential,Third Party Payments,Private Contractors,Miscellaneous Agency Services,20110802,210,"6,642.99",Revenue,BRAMBLEDOWN CARE HOME
Adult Social Care,Adlt u65 Learning Disabilities,LD Residential Care External,Third Party Payments,Private Contractors,Miscellaneous Agency Services,20110803,211,"7,094.57",Revenue,CARRICKS BROOK
Adult Social Care,Older People 65&Over inc OP-MH,OP East - Nursing Care,Third Party Payments,Private Contractors,Miscellaneous Agency Services,20110802,212,"2,406.60",Revenue,BUPA CARE HOMES
Adult Social Care,Older People 65&Over inc OP-MH,OP West - Nursing Care,Third Party Payments,Private Contractors,Miscellaneous Agency Services,20110802,213,"2,406.60",Revenue,BUPA CARE HOMES
Adult Social Care,Adult u65 Phys/Sensory Impair,PD EAST TEAM-Nursing,Third Party Payments,Private Contractors,Miscellaneous Agency Services,20110802,214,"2,819.80",Revenue,BUPA CARE HOMES
Adult Social Care,Older People 65&Over inc OP-MH,OP West - Residential Care Ext,Third Party Payments,Private Contractors,Miscellaneous Agency Services,20110802,215,"3,995.00",Revenue,BUPA CARE HOMES
Adult Social Care,Older People 65&Over inc OP-MH,OP Hosp - Nursing Care,Third Party Payments,Private Contractors,Miscellaneous Agency Services,20110802,216,"9,626.40",Revenue,BUPA CARE HOMES
Adult Social Care,Older People 65&Over inc OP-MH,OP Hosp - Residential Care Ext,Third Party Payments,Private Contractors,Miscellaneous Agency Services,20110802,217,"10,077.92",Revenue,BUPA CARE HOMES
Adult Social Care,Older People 65&Over inc OP-MH,OP East - Residential Care Ext,Third Party Payments,Private Contractors,Miscellaneous Agency Services,20110802,218,"14,754.05",Revenue,BUPA CARE HOMES
Adult Social Care,Older People 65&Over inc OP-MH,OP East - Nursing Care,Third Party Payments,Private Contractors,Miscellaneous Agency Services,20110802,219,"25,613.14",Revenue,BUPA CARE HOMES
Adult Social Care,Adlt u65 Learning Disabilities,LD Residential Care External,Third Party Payments,Private Contractors,Miscellaneous Agency Services,20110802,220,"4,760.00",Revenue,CARE MANAGEMENT GROUP
Adult Social Care,Adlt u65 Learning Disabilities,LD Residential Care External,Third Party Payments,Private Contractors,Miscellaneous Agency Services,20110802,221,"5,380.00",Revenue,CARE MANAGEMENT GROUP
Adult Social Care,Adlt u65 Learning Disabilities,LD Residential Care External,Third Party Payments,Private Contractors,Miscellaneous Agency Services,20110802,222,"5,500.00",Revenue,CARE MANAGEMENT GROUP
Adult Social Care,Adlt u65 Learning Disabilities,LD Residential Care External,Third Party Payments,Private Contractors,Miscellaneous Agency Services,20110802,223,"5,981.20",Revenue,CARE MANAGEMENT GROUP
Adult Social Care,Adult u65 Mental Health Needs,MH ResidentialCare Ext - Wim,Third Party Payments,Private Contractors,Miscellaneous Agency Services,20110802,224,"3,632.00",Revenue,CARE MANAGEMENT GROUP
Adult Social Care,Adlt u65 Learning Disabilities,LD Residential Care External,Third Party Payments,Private Contractors,Miscellaneous Agency Services,20110802,225,"5,980.00",Revenue,CARE MANAGEMENT GROUP
Adult Social Care,Adult u65 Phys/Sensory Impair,PD WEST TEAM-Homecare,Third Party Payments,Private Contractors,Miscellaneous Agency Services,20110802,226,"5,520.00",Revenue,CARE MANAGEMENT GROUP
Adult Social Care,Adult u65 Phys/Sensory Impair,PD EAST TEAM-Homecare,Third Party Payments,Private Contractors,Miscellaneous Agency Services,20110802,227,"4,168.00",Revenue,CARE MANAGEMENT GROUP
Adult Social Care,Adlt u65 Learning Disabilities,LD Residential Care External,Third Party Payments,Private Contractors,Miscellaneous Agency Services,20110802,228,"5,044.00",Revenue,CARE MANAGEMENT GROUP
Adult Social Care,Adlt u65 Learning Disabilities,LD Residential Care External,Third Party Payments,Private Contractors,Miscellaneous Agency Services,20110802,229,"3,336.00",Revenue,CARE MANAGEMENT GROUP
Adult Social Care,Older People 65&Over inc OP-MH,OP Hosp - Residential Care Ext,Third Party Payments,Private Contractors,Miscellaneous Agency Services,20110803,230,"1,880.00",Revenue,THE ELMS REST HOME LTD
Adult Social Care,Older People 65&Over inc OP-MH,OP Hosp - Residential Care Ext,Third Party Payments,Private Contractors,Miscellaneous Agency Services,20110802,231,"1,800.00",Revenue,GABLE LODGE
Adult Social Care,Adult u65 Phys/Sensory Impair,PD EAST TEAM-Residential,Third Party Payments,Private Contractors,Miscellaneous Agency Services,20110802,232,"5,314.02",Revenue,HIGHVIEW CARE SERVICES LTD
Adult Social Care,Adult u65 Phys/Sensory Impair,PD EAST TEAM-Residential,Third Party Payments,Private Contractors,Miscellaneous Agency Services,20110802,233,"5,314.02",Revenue,HIGHVIEW CARE SERVICES LTD
Adult Social Care,Older People 65&Over inc OP-MH,OP Hosp - Residential Care Ext,Third Party Payments,Private Contractors,Miscellaneous Agency Services,20110802,234,"1,812.40",Revenue,LINDEN HOUSE
Adult Social Care,Adlt u65 Learning Disabilities,LD Residential Care External,Third Party Payments,Private Contractors,Miscellaneous Agency Services,20110803,235,"2,214.05",Revenue,OAKDOWN HOUSE LTD
Adult Social Care,Adlt u65 Learning Disabilities,LD Residential Care External,Customer and client receipts,Charges,Miscellaneous Charges X,20110803,236,-573.75,Revenue,OAKDOWN HOUSE LTD
Adult Social Care,Older People 65&Over inc OP-MH,OP East - Nursing Care,Third Party Payments,Private Contractors,Miscellaneous Agency Services,20110802,237,"2,334.52",Revenue,THE CROFT NURSING HOME
Childrens & Education Services,Children Looked After (24hrs+),CL Fostering Services,Supplies and Services,Services,Task Based Fostering,20110802,238,780.44,Revenue,REDACTED
Childrens & Education Services,Children Looked After (24hrs+),CL Fostering Services,Supplies and Services,Services,Task Based Fostering,20110802,239,"2,229.18",Revenue,REDACTED
Childrens & Education Services,Children Looked After (24hrs+),CL Fostering Services,Supplies and Services,Services,Task Based Fostering,20110802,240,739.2,Revenue,REDACTED
Childrens & Education Services,Children Looked After (24hrs+),CL Fostering Services,Supplies and Services,Services,Task Based Fostering,20110802,241,"1,519.64",Revenue,REDACTED
Childrens & Education Services,Children Looked After (24hrs+),CL Fostering Services,Supplies and Services,Services,Task Based Fostering,20110802,242,"2,266.12",Revenue,REDACTED
Childrens & Education Services,Children Looked After (24hrs+),CL Fostering Services,Supplies and Services,Services,Task Based Fostering,20110802,243,780.44,Revenue,REDACTED
Childrens & Education Services,Children Looked After (24hrs+),CL Fostering Services,Supplies and Services,Services,Task Based Fostering,20110802,244,"2,006.84",Revenue,REDACTED
Childrens & Education Services,Children Looked After (24hrs+),CL Fostering Services,Supplies and Services,Services,Task Based Fostering,20110802,245,"2,324.34",Revenue,REDACTED
Childrens & Education Services,Children Looked After (24hrs+),CL Fostering Services,Supplies and Services,Services,Task Based Fostering,20110802,246,"2,283.10",Revenue,REDACTED
Childrens & Education Services,Children Looked After (24hrs+),CL Fostering Services,Supplies and Services,Services,Task Based Fostering,20110802,247,"2,324.34",Revenue,REDACTED
Childrens & Education Services,Children Looked After (24hrs+),CL Fostering Services,Supplies and Services,Services,Task Based Fostering,20110802,248,760,Revenue,REDACTED
Childrens & Education Services,Children Looked After (24hrs+),CL Fostering Services,Supplies and Services,Services,Task Based Fostering,20110802,249,"2,741.88",Revenue,REDACTED
Childrens & Education Services,Children Looked After (24hrs+),CL Fostering Services,Supplies and Services,Services,Task Based Fostering,20110802,250,"1,560.88",Revenue,REDACTED
Childrens & Education Services,Children Looked After (24hrs+),CL Fostering Services,Supplies and Services,Services,Task Based Fostering,20110802,251,"2,266.12",Revenue,REDACTED
Childrens & Education Services,Children Looked After (24hrs+),CL Fostering Services,Supplies and Services,Services,Task Based Fostering,20110802,252,739.2,Revenue,REDACTED
Childrens & Education Services,Children Looked After (24hrs+),CL Fostering Services,Supplies and Services,Services,Task Based Fostering,20110802,253,"2,324.34",Revenue,REDACTED
Childrens & Education Services,Children Looked After (24hrs+),CL Fostering Services,Supplies and Services,Services,Task Based Fostering,20110802,254,"1,543.90",Revenue,REDACTED
Childrens & Education Services,Children Looked After (24hrs+),CL Fostering Services,Supplies and Services,Services,Task Based Fostering,20110802,255,"2,258.84",Revenue,REDACTED
Childrens & Education Services,Children Looked After (24hrs+),CL Fostering Services,Supplies and Services,Services,Task Based Fostering,20110802,256,780.44,Revenue,REDACTED
Childrens & Education Services,Children Looked After (24hrs+),CL Fostering Services,Supplies and Services,Services,Task Based Fostering,20110802,257,"2,241.86",Revenue,REDACTED
Childrens & Education Services,Children Looked After (24hrs+),CL Fostering Services,Supplies and Services,Services,Task Based Fostering,20110802,258,"1,478.40",Revenue,REDACTED
Childrens & Education Services,Children Looked After (24hrs+),CL Fostering Services,Supplies and Services,Services,Task Based Fostering,20110802,259,780.44,Revenue,REDACTED
Childrens & Education Services,Children Looked After (24hrs+),CL Fostering Services,Supplies and Services,Services,Task Based Fostering,20110802,260,739.2,Revenue,REDACTED
Childrens & Education Services,Children Looked After (24hrs+),CL Fostering Services,Supplies and Services,Services,Task Based Fostering,20110802,261,"1,502.66",Revenue,REDACTED
Childrens & Education Services,Children Looked After (24hrs+),CL Fostering Services,Supplies and Services,Services,Task Based Fostering,20110802,262,"2,307.36",Revenue,REDACTED
Childrens & Education Services,Children Looked After (24hrs+),CL Fostering Services,Supplies and Services,Services,Task Based Fostering,20110802,263,"1,078.68",Revenue,REDACTED
Adult Social Care,Older People 65&Over inc OP-MH,OP West - Carer Services,Third Party Payments,Private Contractors,Miscellaneous Agency Services,20110802,264,"17,000.00",Revenue,HOLISTIC COMMUNITY CARE LTD
Childrens & Education Services,Children Looked After (24hrs+),ART Independent Agency Foster,Supplies and Services,Services,Task Based Fostering,20110803,265,"5,520.00",Revenue,CHILDREN OF COLOUR
Childrens & Education Services,Children Looked After (24hrs+),ART Independent Agency Foster,Supplies and Services,Services,Task Based Fostering,20110803,266,"6,560.00",Revenue,CHILDREN OF COLOUR
Childrens & Education Services,Children Looked After (24hrs+),ART Independent Agency Foster,Supplies and Services,Services,Task Based Fostering,20110803,267,"3,296.64",Revenue,CROHAM SERV.FOR CHILDREN LTD
Childrens & Education Services,Children Looked After (24hrs+),ART Independent Agency Foster,Supplies and Services,Services,Long Term Fostering,20110803,268,"4,638.65",Revenue,ETHELBERT SPECIALIST HOMES LTD
Childrens & Education Services,Children Looked After (24hrs+),ART Independent Agency Foster,Supplies and Services,Services,Task Based Fostering,20110803,269,"2,448.38",Revenue,THE NATIONAL FOSTERING AGENCY
Childrens & Education Services,Children Looked After (24hrs+),ART Independent Agency Foster,Supplies and Services,Services,Task Based Fostering,20110803,270,"2,670.96",Revenue,THE NATIONAL FOSTERING AGENCY
Childrens & Education Services,Children Looked After (24hrs+),ART Independent Agency Foster,Supplies and Services,Services,Task Based Fostering,20110803,271,"5,286.72",Revenue,THE NATIONAL FOSTERING AGENCY
Childrens & Education Services,Children Looked After (24hrs+),ART Independent Agency Foster,Supplies and Services,Services,Task Based Fostering,20110803,272,"12,000.00",Revenue,NEXT STEP FOSTERING SERV'S LTD
Childrens & Education Services,Children Looked After (24hrs+),ART Independent Agency Foster,Supplies and Services,Services,Task Based Fostering,20110803,273,"10,185.36",Revenue,OUTLOOK FOSTERING SERVICES LTD
Childrens & Education Services,Children Looked After (24hrs+),ART Independent Agency Foster,Supplies and Services,Services,Task Based Fostering,20110803,274,"10,185.36",Revenue,OUTLOOK FOSTERING SERVICES LTD
Adult Social Care,Older People 65&Over inc OP-MH,OP East - Nursing Care,Third Party Payments,Private Contractors,Miscellaneous Agency Services,20110803,275,"2,560.00",Revenue,KEW HOUSE
Adult Social Care,Older People 65&Over inc OP-MH,OP West - Nursing Care,Third Party Payments,Private Contractors,Miscellaneous Agency Services,20110803,276,"2,173.96",Revenue,THE WHITE HOUSE NURSING HOME
Adult Social Care,Older People 65&Over inc OP-MH,OP West - Nursing Care,Third Party Payments,Private Contractors,Miscellaneous Agency Services,20110803,277,"2,233.00",Revenue,THE WHITE HOUSE NURSING HOME
Adult Social Care,Adlt u65 Learning Disabilities,LD AdultPlacementCont,Third Party Payments,Private Contractors,Accommodation Based Support,20110803,278,"4,680.00",Revenue,PROVIDENCE CARE UK LTD
Adult Social Care,Adult u65 Phys/Sensory Impair,PD WEST TEAM-Homecare,Third Party Payments,Private Contractors,Miscellaneous Agency Services,20110811,279,850,Revenue,BELGRAVIA NURS. & CARE BUREAU
Adult Social Care,Adlt u65 Learning Disabilities,LD Home Care External,Third Party Payments,Private Contractors,Miscellaneous Agency Services,20110803,280,989.72,Revenue,HOUSING21
Adult Social Care,Older People 65&Over inc OP-MH,OP West - Home Care External,Third Party Payments,Private Contractors,Miscellaneous Agency Services,20110803,281,"5,214.60",Revenue,HOUSING21
Adult Social Care,Older People 65&Over inc OP-MH,OP East - Home Care External,Third Party Payments,Private Contractors,Miscellaneous Agency Services,20110803,282,"6,150.00",Revenue,HOUSING21
Adult Social Care,Older People 65&Over inc OP-MH,OP West - Home Care External,Third Party Payments,Private Contractors,Miscellaneous Agency Services,20110803,283,"3,389.40",Revenue,HOUSING21
Adult Social Care,Older People 65&Over inc OP-MH,OP West - Home Care External,Third Party Payments,Private Contractors,Miscellaneous Agency Services,20110803,284,"3,389.40",Revenue,HOUSING21
Childrens & Education Services,Children Looked After (24hrs+),ART Independent Agency Foster,Supplies and Services,Services,Task Based Fostering,20110804,285,"6,400.00",Revenue,CHILDREN OF COLOUR
Childrens & Education Services,Family Support Services,CS Day Care CWD,Third Party Payments,Private Contractors,Miscellaneous Agency Services,20110804,286,"1,392.35",Revenue,COMPLETE CARE CENTRE
Childrens & Education Services,Other Ch's & Family Services,CL Leaving Care/Supp Lodgings,Third Party Payments,Private Contractors,Miscellaneous Agency Services,20110804,287,600,Revenue,LIVINGSTONE SUPPORTED HOUSING
Childrens & Education Services,Other Ch's & Family Services,CL Leaving Care/Supp Lodgings,Third Party Payments,Private Contractors,Miscellaneous Agency Services,20110804,288,800,Revenue,LIVINGSTONE SUPPORTED HOUSING
Childrens & Education Services,Other Ch's & Family Services,CL Leaving Care/Supp Lodgings,Third Party Payments,Private Contractors,Miscellaneous Agency Services,20110804,289,800,Revenue,LIVINGSTONE SUPPORTED HOUSING
Adult Social Care,Older People 65&Over inc OP-MH,OP East -Direct Payment Scheme,Third Party Payments,Private Contractors,Direct Payments,20110804,290,"2,103.80",Revenue,REDACTED
Adult Social Care,Adult u65 Mental Health Needs,MH Other Servs - Mitcham West,Third Party Payments,Private Contractors,Miscellaneous Agency Services,20110805,291,919.6,Revenue,RNID
Adult Social Care,Adlt u65 Learning Disabilities,LD Home Care External,Third Party Payments,Private Contractors,Miscellaneous Agency Services,20110804,292,"1,007.15",Revenue,HOUSING21
Adult Social Care,Older People 65&Over inc OP-MH,OP West - Home Care External,Third Party Payments,Private Contractors,Miscellaneous Agency Services,20110804,293,"5,322.62",Revenue,HOUSING21
Adult Social Care,Older People 65&Over inc OP-MH,OP East - Home Care External,Third Party Payments,Private Contractors,Miscellaneous Agency Services,20110804,294,"5,986.18",Revenue,HOUSING21
Adult Social Care,Adlt u65 Learning Disabilities,LD Comm -Home Care-Orch Hill,Third Party Payments,Private Contractors,Miscellaneous Agency Services,20110804,295,848.05,Revenue,UNITED RESPONSE
Adult Social Care,Adlt u65 Learning Disabilities,LD Day Care Agency,Third Party Payments,Private Contractors,Miscellaneous Agency Services,20110804,296,646.56,Revenue,UNITED RESPONSE
Adult Social Care,Older People 65&Over inc OP-MH,OP Hosp - Nursing Care,Third Party Payments,Private Contractors,Miscellaneous Agency Services,20110804,297,"2,337.20",Revenue,CLARENDON LS
Adult Social Care,Adlt u65 Learning Disabilities,LD Residential Care External,Third Party Payments,Private Contractors,Miscellaneous Agency Services,20110804,298,"4,392.00",Revenue,MACINTYRE
Adult Social Care,Adlt u65 Learning Disabilities,LD Residential Care External,Third Party Payments,Private Contractors,Miscellaneous Agency Services,20110804,299,"4,392.00",Revenue,MACINTYRE
Adult Social Care,Older People 65&Over inc OP-MH,OP West - Nursing Care,Third Party Payments,Private Contractors,Miscellaneous Agency Services,20110804,300,"2,341.84",Revenue,SUTTON COURT CARE CENTRE
Adult Social Care,Older People 65&Over inc OP-MH,OP West - Nursing Care,Third Party Payments,Private Contractors,Miscellaneous Agency Services,20110804,301,"2,341.84",Revenue,SUTTON COURT CARE CENTRE
Adult Social Care,Older People 65&Over inc OP-MH,OP Hosp - Nursing Care,Third Party Payments,Private Contractors,Miscellaneous Agency Services,20110804,302,"2,341.84",Revenue,SUTTON COURT CARE CENTRE
Adult Social Care,Older People 65&Over inc OP-MH,OP East - Nursing Care,Third Party Payments,Private Contractors,Miscellaneous Agency Services,20110804,303,"2,341.84",Revenue,SUTTON COURT CARE CENTRE
Adult Social Care,Older People 65&Over inc OP-MH,OP Hosp - Nursing Care,Third Party Payments,Private Contractors,Miscellaneous Agency Services,20110804,304,"2,341.84",Revenue,SUTTON COURT CARE CENTRE
Adult Social Care,Older People 65&Over inc OP-MH,OP Hosp - Nursing Care,Third Party Payments,Private Contractors,Miscellaneous Agency Services,20110804,305,"2,341.84",Revenue,SUTTON COURT CARE CENTRE
Adult Social Care,Older People 65&Over inc OP-MH,OP Hosp - Nursing Care,Third Party Payments,Private Contractors,Miscellaneous Agency Services,20110804,306,"3,000.00",Revenue,SUTTON COURT CARE CENTRE
Adult Social Care,Older People 65&Over inc OP-MH,OP Hosp - Nursing Care,Third Party Payments,Private Contractors,Miscellaneous Agency Services,20110804,307,"2,341.84",Revenue,SUTTON COURT CARE CENTRE
Adult Social Care,Older People 65&Over inc OP-MH,OP Hosp - Nursing Care,Third Party Payments,Private Contractors,Miscellaneous Agency Services,20110804,308,"2,341.84",Revenue,SUTTON COURT CARE CENTRE
Adult Social Care,Older People 65&Over inc OP-MH,OP Hosp - Nursing Care,Third Party Payments,Private Contractors,Miscellaneous Agency Services,20110804,309,"2,341.84",Revenue,SUTTON COURT CARE CENTRE
Adult Social Care,Older People 65&Over inc OP-MH,OP Hosp - Nursing Care,Third Party Payments,Private Contractors,Miscellaneous Agency Services,20110804,310,"2,341.84",Revenue,SUTTON COURT CARE CENTRE
Adult Social Care,Older People 65&Over inc OP-MH,OP West - Nursing Care,Third Party Payments,Private Contractors,Miscellaneous Agency Services,20110804,311,"2,341.84",Revenue,SUTTON COURT CARE CENTRE
Adult Social Care,Older People 65&Over inc OP-MH,OP West - Nursing Care,Third Party Payments,Private Contractors,Miscellaneous Agency Services,20110804,312,"2,341.84",Revenue,SUTTON COURT CARE CENTRE
Adult Social Care,Older People 65&Over inc OP-MH,OP West - Nursing Care,Third Party Payments,Private Contractors,Miscellaneous Agency Services,20110804,313,"2,341.84",Revenue,SUTTON COURT CARE CENTRE
Adult Social Care,Older People 65&Over inc OP-MH,OP East - Nursing Care,Third Party Payments,Private Contractors,Miscellaneous Agency Services,20110804,314,"2,552.88",Revenue,SUTTON COURT CARE CENTRE
Adult Social Care,Older People 65&Over inc OP-MH,OP Hosp - Nursing Care,Third Party Payments,Private Contractors,Miscellaneous Agency Services,20110804,315,"2,341.84",Revenue,SUTTON COURT CARE CENTRE
Adult Social Care,Older People 65&Over inc OP-MH,OP West - Nursing Care,Third Party Payments,Private Contractors,Miscellaneous Agency Services,20110804,316,"2,341.84",Revenue,SUTTON COURT CARE CENTRE
Adult Social Care,Older People 65&Over inc OP-MH,OP East - Nursing Care,Third Party Payments,Private Contractors,Miscellaneous Agency Services,20110804,317,"2,341.84",Revenue,SUTTON COURT CARE CENTRE
Adult Social Care,Older People 65&Over inc OP-MH,OP Hosp - Nursing Care,Third Party Payments,Private Contractors,Miscellaneous Agency Services,20110804,318,"2,341.84",Revenue,SUTTON COURT CARE CENTRE
Adult Social Care,Older People 65&Over inc OP-MH,OP Hosp - Nursing Care,Third Party Payments,Private Contractors,Miscellaneous Agency Services,20110804,319,"2,341.84",Revenue,SUTTON COURT CARE CENTRE
Adult Social Care,Older People 65&Over inc OP-MH,OP East - Nursing Care,Third Party Payments,Private Contractors,Miscellaneous Agency Services,20110804,320,"2,341.84",Revenue,SUTTON COURT CARE CENTRE
Adult Social Care,Older People 65&Over inc OP-MH,OP Hosp - Nursing Care,Third Party Payments,Private Contractors,Miscellaneous Agency Services,20110804,321,"2,341.84",Revenue,SUTTON COURT CARE CENTRE
Adult Social Care,Older People 65&Over inc OP-MH,OP Hosp - Nursing Care,Third Party Payments,Private Contractors,Miscellaneous Agency Services,20110804,322,"2,341.84",Revenue,SUTTON COURT CARE CENTRE
Childrens & Education Services,Other Ch's & Family Services,CL Setting Up Home Allowance,Third Party Payments,Private Contractors,Miscellaneous Agency Services,20110804,323,642.19,Revenue,ARGOS BUSINESS SOLUTIONS LTD
Adult Social Care,Adult u65 Mental Health Needs,MH Adult Placement Cont- NRTPF,Third Party Payments,Private Contractors,Accommodation Based Support,20110804,324,946.52,Revenue,REDACTED
Adult Social Care,Older People 65&Over inc OP-MH,OP West - Carer Services,Third Party Payments,Private Contractors,Miscellaneous Agency Services,20110826,325,"-17,000.00",Revenue,HOLISTIC COMMUNITY CARE LTD
Adult Social Care,Adlt u65 Learning Disabilities,LD Home Care External,Third Party Payments,Private Contractors,Miscellaneous Agency Services,20110805,326,"2,757.00",Revenue,ABLE COMMUNITY CARE
Adult Social Care,Adlt u65 Learning Disabilities,LD Home Care External,Third Party Payments,Private Contractors,Miscellaneous Agency Services,20110805,327,655.3,Revenue,BEECH HOME CARE SERVICES
Adult Social Care,Adult u65 Phys/Sensory Impair,PD WEST TEAM-Homecare,Third Party Payments,Private Contractors,Miscellaneous Agency Services,20110811,328,664.62,Revenue,BELGRAVIA NURS. & CARE BUREAU
Adult Social Care,Adult u65 Phys/Sensory Impair,PD EAST TEAM-Homecare,Third Party Payments,Private Contractors,Miscellaneous Agency Services,20110811,329,664.62,Revenue,BELGRAVIA NURS. & CARE BUREAU
Adult Social Care,Adlt u65 Learning Disabilities,LD Day Care Agency,Third Party Payments,Private Contractors,Miscellaneous Agency Services,20110805,330,648.96,Revenue,ELIZABETH FITZROY HOMES
Adult Social Care,Adlt u65 Learning Disabilities,LD Home Care External,Third Party Payments,Private Contractors,Miscellaneous Agency Services,20110805,331,"2,488.48",Revenue,ELIZABETH FITZROY HOMES
Adult Social Care,Adlt u65 Learning Disabilities,LD Home Care External,Third Party Payments,Private Contractors,Miscellaneous Agency Services,20110805,332,965.32,Revenue,HOUSING21
Adult Social Care,Older People 65&Over inc OP-MH,OP West - Home Care External,Third Party Payments,Private Contractors,Miscellaneous Agency Services,20110805,333,"5,210.08",Revenue,HOUSING21
Adult Social Care,Older People 65&Over inc OP-MH,OP East - Home Care External,Third Party Payments,Private Contractors,Miscellaneous Agency Services,20110805,334,"5,830.42",Revenue,HOUSING21
Adult Social Care,Adlt u65 Learning Disabilities,LD Home Care External,Third Party Payments,Private Contractors,Miscellaneous Agency Services,20110805,335,687.28,Revenue,ROYAL MENCAP SOCIETY
Adult Social Care,Adult u65 Mental Health Needs,MH Home Care External-MitWest,Third Party Payments,Private Contractors,Miscellaneous Agency Services,20110805,336,871.36,Revenue,COMFORT CARE SERVICES (UK) LTD
Adult Social Care,Adult u65 Mental Health Needs,MH Home Care External-MitWest,Third Party Payments,Private Contractors,Miscellaneous Agency Services,20110805,337,871.36,Revenue,COMFORT CARE SERVICES (UK) LTD
Adult Social Care,Adlt u65 Learning Disabilities,LD Home Care External,Third Party Payments,Private Contractors,Miscellaneous Agency Services,20110805,338,"1,718.09",Revenue,SOLACE COMMUNITY CARE LTD
Adult Social Care,Adlt u65 Learning Disabilities,LD Home Care External,Third Party Payments,Private Contractors,Miscellaneous Agency Services,20110805,339,"1,150.41",Revenue,SOLACE COMMUNITY CARE LTD
Adult Social Care,Adlt u65 Learning Disabilities,LD Home Care External,Third Party Payments,Private Contractors,Miscellaneous Agency Services,20110805,340,"1,378.80",Revenue,SOLACE COMMUNITY CARE LTD
Adult Social Care,Adlt u65 Learning Disabilities,LD Home Care External,Third Party Payments,Private Contractors,Miscellaneous Agency Services,20110805,341,"1,076.56",Revenue,SOLACE COMMUNITY CARE LTD
Adult Social Care,Adlt u65 Learning Disabilities,LD Home Care External,Third Party Payments,Private Contractors,Miscellaneous Agency Services,20110805,342,"1,485.68",Revenue,SOLACE COMMUNITY CARE LTD
Adult Social Care,Adult u65 Mental Health Needs,MH Adult Placement Cont-Wim,Third Party Payments,Private Contractors,Accommodation Based Support,20110805,343,"2,000.00",Revenue,REDACTED
Adult Social Care,Adult u65 Mental Health Needs,MH Adult PlacementCont-MitWest,Third Party Payments,Private Contractors,Accommodation Based Support,20110805,344,"1,000.00",Revenue,REDACTED
Childrens & Education Services,Other Ch's & Family Services,CL Setting Up Home Allowance,Third Party Payments,Private Contractors,Miscellaneous Agency Services,20110805,345,"1,000.00",Revenue,REDACTED
Childrens & Education Services,Family Support Services,CS Direct Payments,Third Party Payments,Private Contractors,Direct Payments,20110805,346,"2,130.00",Revenue,REDACTED
Childrens & Education Services,Family Support Services,CS Day Care CWD,Third Party Payments,Private Contractors,Miscellaneous Agency Services,20110805,347,"1,392.35",Revenue,COMPLETE CARE CENTRE
Adult Social Care,Asylum seekers,AS Child Res Care  (No Grant),Third Party Payments,Private Contractors,Miscellaneous Agency Services,20110805,348,620,Revenue,LIVINGSTONE SUPPORTED HOUSING
Adult Social Care,Asylum seekers,AS Child - Res Care (Grant),Third Party Payments,Private Contractors,Miscellaneous Agency Services,20110805,349,500,Revenue,LIVINGSTONE SUPPORTED HOUSING
Childrens & Education Services,Other Ch's & Family Services,CL Leaving Care/Supp Lodgings,Third Party Payments,Private Contractors,Supported Lodgings,20110805,350,600,Revenue,REDACTED
Adult Social Care,Older People 65&Over inc OP-MH,OP Hosp - Nursing Care,Third Party Payments,Private Contractors,Miscellaneous Agency Services,20110805,351,"2,519.59",Revenue,ASHURST PARK CARE CENTRE
Adult Social Care,Older People 65&Over inc OP-MH,OP Hosp - Nursing Care,Third Party Payments,Private Contractors,Miscellaneous Agency Services,20110805,352,"2,628.29",Revenue,ASHURST PARK CARE CENTRE
Adult Social Care,Older People 65&Over inc OP-MH,OP Hosp - Nursing Care,Customer and client receipts,Charges,Miscellaneous Charges X,20110805,353,-543.5,Revenue,ASHURST PARK CARE CENTRE
Adult Social Care,Older People 65&Over inc OP-MH,OP Hosp - Residential Care Ext,Third Party Payments,Private Contractors,Miscellaneous Agency Services,20110805,354,"2,200.00",Revenue,REDACTED
Adult Social Care,Adlt u65 Learning Disabilities,LD Residential Care External,Third Party Payments,Private Contractors,Miscellaneous Agency Services,20110805,355,"4,460.92",Revenue,REDACTED
Adult Social Care,Older People 65&Over inc OP-MH,OP West - Residential Care Ext,Third Party Payments,Private Contractors,Miscellaneous Agency Services,20110805,356,"1,960.00",Revenue,CLOYDA REST HOME
Adult Social Care,Older People 65&Over inc OP-MH,OP Hosp - Residential Care Ext,Third Party Payments,Private Contractors,Miscellaneous Agency Services,20110805,357,"1,768.88",Revenue,CLOYDA REST HOME
Adult Social Care,Older People 65&Over inc OP-MH,OP Hosp - Residential Care Ext,Third Party Payments,Private Contractors,Miscellaneous Agency Services,20110805,358,"1,812.40",Revenue,CLOYDA REST HOME
Adult Social Care,Older People 65&Over inc OP-MH,OP Hosp - Residential Care Ext,Third Party Payments,Private Contractors,Miscellaneous Agency Services,20110805,359,"1,800.00",Revenue,EDMUND HOUSE
Adult Social Care,Older People 65&Over inc OP-MH,OP West - Nursing Care,Third Party Payments,Private Contractors,Miscellaneous Agency Services,20110805,360,"2,283.20",Revenue,GOFFS PARK NURSING HOME
Adult Social Care,Older People 65&Over inc OP-MH,OP East - Residential Care Ext,Third Party Payments,Private Contractors,Miscellaneous Agency Services,20110805,361,"2,678.57",Revenue,GREENHIVE
Adult Social Care,Adlt u65 Learning Disabilities,LD Residential Care External,Third Party Payments,Private Contractors,Miscellaneous Agency Services,20110805,362,"3,521.24",Revenue,HAYDON PARK LODGE
Adult Social Care,Adlt u65 Learning Disabilities,LD Residential Care External,Third Party Payments,Private Contractors,Miscellaneous Agency Services,20110805,363,"2,719.32",Revenue,HAYDON PARK LODGE
Adult Social Care,Adlt u65 Learning Disabilities,LD Residential Care External,Third Party Payments,Private Contractors,Miscellaneous Agency Services,20110805,364,"1,975.24",Revenue,HAYDON PARK LODGE
Adult Social Care,Adlt u65 Learning Disabilities,LD Residential Care External,Third Party Payments,Private Contractors,Miscellaneous Agency Services,20110805,365,"3,720.00",Revenue,HAYDON PARK LODGE
Adult Social Care,Adlt u65 Learning Disabilities,LD Residential Care External,Third Party Payments,Private Contractors,Miscellaneous Agency Services,20110805,366,"2,458.36",Revenue,HAYDON PARK LODGE
Adult Social Care,Adlt u65 Learning Disabilities,LD Residential Care External,Third Party Payments,Private Contractors,Miscellaneous Agency Services,20110805,367,"2,816.00",Revenue,HAYDON PARK LODGE
Adult Social Care,Adlt u65 Learning Disabilities,LD Residential Care External,Third Party Payments,Private Contractors,Miscellaneous Agency Services,20110805,368,"3,532.48",Revenue,HAYDON PARK LODGE
Adult Social Care,Adlt u65 Learning Disabilities,LD Residential Care External,Third Party Payments,Private Contractors,Miscellaneous Agency Services,20110805,369,"3,451.00",Revenue,HAYDON PARK LODGE
Adult Social Care,Adlt u65 Learning Disabilities,LD Residential Care External,Third Party Payments,Private Contractors,Miscellaneous Agency Services,20110805,370,"4,330.44",Revenue,HUNTERS' LODGE
Adult Social Care,Older People 65&Over inc OP-MH,OP Hosp - Residential Care Ext,Third Party Payments,Private Contractors,Miscellaneous Agency Services,20110805,371,"1,800.00",Revenue,REDACTED
Adult Social Care,Adlt u65 Learning Disabilities,LD Residential Care External,Third Party Payments,Private Contractors,Miscellaneous Agency Services,20110817,372,"2,087.64",Revenue,LINKAGE COMMUNITY TR.LONG-STAY
Adult Social Care,Older People 65&Over inc OP-MH,OP West - Nursing Care,Third Party Payments,Private Contractors,Miscellaneous Agency Services,20110805,373,"2,457.86",Revenue,LYNWOOD NURSING HOME
Adult Social Care,Older People 65&Over inc OP-MH,OP Hosp - Residential Care Ext,Third Party Payments,Private Contractors,Miscellaneous Agency Services,20110805,374,"4,400.00",Revenue,MAESYFELIN RESIDENTIAL HOME
Adult Social Care,Older People 65&Over inc OP-MH,OP East - Residential Care Ext,Third Party Payments,Private Contractors,Miscellaneous Agency Services,20110805,375,"1,386.08",Revenue,REDACTED
Adult Social Care,Adult u65 Phys/Sensory Impair,PD WEST TEAM-Nursing,Third Party Payments,Private Contractors,Miscellaneous Agency Services,20110805,376,"2,801.40",Revenue,MEADBANK NURSING CENTRE
Adult Social Care,Adult u65 Mental Health Needs,MH ResidentialCare Ext - Wim,Third Party Payments,Private Contractors,Miscellaneous Agency Services,20110805,377,"3,171.08",Revenue,MENTAL HEALTH CARE (UK) LTD
Adult Social Care,Adult u65 Phys/Sensory Impair,PD EAST TEAM-Nursing,Third Party Payments,Private Contractors,Miscellaneous Agency Services,20110805,378,"3,800.00",Revenue,QUEEN ALEXANDRA HOSPITAL HOME
Adult Social Care,Adult u65 Phys/Sensory Impair,PD WEST TEAM-Residential Care,Third Party Payments,Private Contractors,Miscellaneous Agency Services,20110805,379,"3,811.60",Revenue,VIRIDIAN HOUSING
Adult Social Care,Older People 65&Over inc OP-MH,OP Hosp - Residential Care Ext,Third Party Payments,Private Contractors,Miscellaneous Agency Services,20110805,380,"1,799.84",Revenue,ROSEDALE REST HOME
Adult Social Care,Older People 65&Over inc OP-MH,OP East - Residential Care Ext,Third Party Payments,Private Contractors,Miscellaneous Agency Services,20110805,381,"1,464.64",Revenue,ROSEDALE REST HOME
Adult Social Care,Older People 65&Over inc OP-MH,OP East - Residential Care Ext,Third Party Payments,Private Contractors,Miscellaneous Agency Services,20110805,382,"1,786.40",Revenue,ROSEDALE REST HOME
Adult Social Care,Older People 65&Over inc OP-MH,OP East - Residential Care Ext,Third Party Payments,Private Contractors,Miscellaneous Agency Services,20110805,383,"1,745.80",Revenue,ROSEDALE REST HOME
Adult Social Care,Adult u65 Phys/Sensory Impair,PD EAST TEAM-Nursing,Third Party Payments,Private Contractors,Miscellaneous Agency Services,20110805,384,"4,403.76",Revenue,ROYAL HOSP FOR NEURO-DISAB
Adult Social Care,Older People 65&Over inc OP-MH,OP Hosp - Residential Care Ext,Third Party Payments,Private Contractors,Miscellaneous Agency Services,20110805,385,"2,100.00",Revenue,ROYAL CAMBRIDGE HOME
Adult Social Care,Adlt u65 Learning Disabilities,LD Residential Care External,Third Party Payments,Private Contractors,Miscellaneous Agency Services,20110805,386,"14,600.00",Revenue,ST LUKE'S HOSPITAL- OLD LEIGH
Adult Social Care,Adlt u65 Learning Disabilities,LD Residential Care External,Third Party Payments,Private Contractors,Miscellaneous Agency Services,20110805,387,"23,905.28",Revenue,ST LUKE'S HOSPITAL- OLD LEIGH
Adult Social Care,Older People 65&Over inc OP-MH,OP Hosp - Residential Care Ext,Third Party Payments,Private Contractors,Miscellaneous Agency Services,20110805,388,"2,071.31",Revenue,SWEET HOMES LTD
Adult Social Care,Older People 65&Over inc OP-MH,OP Hosp - Nursing Care,Third Party Payments,Private Contractors,Miscellaneous Agency Services,20110805,389,"2,266.84",Revenue,SWEET HOMES LTD
Adult Social Care,Older People 65&Over inc OP-MH,OP Hosp - Residential Care Ext,Third Party Payments,Private Contractors,Miscellaneous Agency Services,20110805,390,"1,812.40",Revenue,SWEET HOMES LTD
Adult Social Care,Older People 65&Over inc OP-MH,OP Hosp - Nursing Care,Third Party Payments,Private Contractors,Miscellaneous Agency Services,20110805,391,"2,350.80",Revenue,SWEET HOMES LTD
Adult Social Care,Older People 65&Over inc OP-MH,OP West - Nursing Care,Third Party Payments,Private Contractors,Miscellaneous Agency Services,20110805,392,"2,842.00",Revenue,TRINITY COURT NURSING HOME
Adult Social Care,Older People 65&Over inc OP-MH,OP East - Residential Care Ext,Third Party Payments,Private Contractors,Miscellaneous Agency Services,20110805,393,"1,386.08",Revenue,EL-SHADDAI
Adult Social Care,Adlt u65 Learning Disabilities,LD Residential Care External,Third Party Payments,Private Contractors,Miscellaneous Agency Services,20110805,394,"1,438.44",Revenue,EL-SHADDAI
Adult Social Care,Adlt u65 Learning Disabilities,LD Residential Care External,Third Party Payments,Private Contractors,Miscellaneous Agency Services,20110805,395,"1,438.44",Revenue,EL-SHADDAI
Adult Social Care,Adult u65 Mental Health Needs,MH Other Servs - Mitcham West,Third Party Payments,Private Contractors,Miscellaneous Agency Services,20110805,396,"2,758.80",Revenue,RNID
Adult Social Care,Adult u65 Phys/Sensory Impair,PD EAST TEAM-Homecare,Third Party Payments,Private Contractors,Miscellaneous Agency Services,20110808,397,840,Revenue,REDACTED
Adult Social Care,Adlt u65 Learning Disabilities,LD Home Care External,Third Party Payments,Private Contractors,Miscellaneous Agency Services,20110808,398,579.3,Revenue,SOLACE COMMUNITY CARE LTD
Childrens & Education Services,Children Looked After (24hrs+),ART Independent Agency Foster,Supplies and Services,Services,Task Based Fostering,20110808,399,"9,135.68",Revenue,KINDERCARE FOSTERING
Childrens & Education Services,Children Looked After (24hrs+),ART Independent Agency Foster,Supplies and Services,Services,Task Based Fostering,20110808,400,"1,569.26",Revenue,CORNERWAYS FOSTERING SERV.LTD
Childrens & Education Services,Children Looked After (24hrs+),ART Independent Agency Foster,Supplies and Services,Services,Task Based Fostering,20110808,401,"1,569.26",Revenue,CORNERWAYS FOSTERING SERV.LTD
Childrens & Education Services,Other Ch's & Family Services,CL Leaving Care/Supp Lodgings,Third Party Payments,Private Contractors,Supported Lodgings,20110808,402,900,Revenue,REDACTED
Adult Social Care,Adult u65 Phys/Sensory Impair,PD WEST TEAM-Residential Care,Third Party Payments,Private Contractors,Miscellaneous Agency Services,20110808,403,"4,138.40",Revenue,ABBEY HOUSE RESIDENTIAL HOMES
Adult Social Care,Older People 65&Over inc OP-MH,OP Hosp - Residential Care Ext,Third Party Payments,Private Contractors,Miscellaneous Agency Services,20110808,404,"4,400.00",Revenue,ABBEY HOUSE RESIDENTIAL HOMES
Adult Social Care,Adult u65 Mental Health Needs,MH ResidentialCare Ext-Morden,Third Party Payments,Private Contractors,Miscellaneous Agency Services,20110808,405,"4,542.85",Revenue,ABBEY HOUSE RESIDENTIAL HOMES
Adult Social Care,Older People 65&Over inc OP-MH,OP Hosp - Residential Care Ext,Third Party Payments,Private Contractors,Miscellaneous Agency Services,20110808,406,"1,745.92",Revenue,ABBEY HOUSE RESIDENTIAL HOMES
Adult Social Care,Older People 65&Over inc OP-MH,OP West - Residential Care Ext,Third Party Payments,Private Contractors,Miscellaneous Agency Services,20110808,407,"3,434.68",Revenue,ABBEY HOUSE RESIDENTIAL HOMES
Adult Social Care,Older People 65&Over inc OP-MH,OP Hosp - Nursing Care,Third Party Payments,Private Contractors,Miscellaneous Agency Services,20110810,408,"2,575.64",Revenue,CLAREMONT CARE SVS LTD
Adult Social Care,Older People 65&Over inc OP-MH,OP Hosp - Nursing Care,Customer and client receipts,Charges,Miscellaneous Charges X,20110810,409,-543.5,Revenue,CLAREMONT CARE SVS LTD
Adult Social Care,Older People 65&Over inc OP-MH,OP Hosp - Residential Care Ext,Third Party Payments,Private Contractors,Miscellaneous Agency Services,20110808,410,"2,701.43",Revenue,AVERY HOMES LEEDS
Adult Social Care,Older People 65&Over inc OP-MH,OP East - Residential Care Ext,Third Party Payments,Private Contractors,Miscellaneous Agency Services,20110810,411,"1,285.71",Revenue,EVERSFIELD HOUSE
Adult Social Care,Older People 65&Over inc OP-MH,OP East - Residential Care Ext,Third Party Payments,Private Contractors,Miscellaneous Agency Services,20110810,412,"1,000.00",Revenue,EVERSFIELD HOUSE
Adult Social Care,Adlt u65 Learning Disabilities,LD Residential Care External,Third Party Payments,Private Contractors,Miscellaneous Agency Services,20110808,413,"2,552.84",Revenue,FREEWAYS TRUST LTD
Adult Social Care,Older People 65&Over inc OP-MH,OP West - Nursing Care,Customer and client receipts,Charges,Bd&Acc-contrib coll by home X,20110808,414,-635.68,Revenue,LINK HOUSE
Adult Social Care,Older People 65&Over inc OP-MH,OP Hosp - Residential Care Ext,Third Party Payments,Private Contractors,Miscellaneous Agency Services,20110808,415,"-5,351.68",Revenue,LINK HOUSE
Adult Social Care,Older People 65&Over inc OP-MH,OP East - Residential Care Ext,Third Party Payments,Private Contractors,Miscellaneous Agency Services,20110808,416,"5,977.28",Revenue,LINK HOUSE
Adult Social Care,Older People 65&Over inc OP-MH,OP East - Nursing Care,Third Party Payments,Private Contractors,Miscellaneous Agency Services,20110808,417,"11,214.44",Revenue,LINK HOUSE
Adult Social Care,Older People 65&Over inc OP-MH,OP West - Nursing Care,Third Party Payments,Private Contractors,Miscellaneous Agency Services,20110808,418,"20,423.04",Revenue,LINK HOUSE
Adult Social Care,Older People 65&Over inc OP-MH,OP West - Residential Care Ext,Third Party Payments,Private Contractors,Miscellaneous Agency Services,20110808,419,"52,857.12",Revenue,LINK HOUSE
Adult Social Care,Older People 65&Over inc OP-MH,OP West - Residential Care Ext,Customer and client receipts,Charges,Miscellaneous Charges X,20110808,420,"-1,113.60",Revenue,LINK HOUSE
Adult Social Care,Older People 65&Over inc OP-MH,OP West - Residential Care Ext,Third Party Payments,Private Contractors,Miscellaneous Agency Services,20110808,421,"2,054.06",Revenue,PORTELET LODGE
Adult Social Care,Adlt u65 Learning Disabilities,LD Residential Care External,Third Party Payments,Private Contractors,Miscellaneous Agency Services,20110808,422,"7,957.60",Revenue,SOLAR CARE GROUP LTD - ROBINIA
Adult Social Care,Adlt u65 Learning Disabilities,LD Residential Care External,Third Party Payments,Private Contractors,Miscellaneous Agency Services,20110808,423,"7,957.60",Revenue,SOLAR CARE GROUP LTD - ROBINIA
Adult Social Care,Older People 65&Over inc OP-MH,OP Hosp - Residential Care Ext,Third Party Payments,Private Contractors,Miscellaneous Agency Services,20110810,424,"1,812.40",Revenue,ST MARY'S LODGE
Adult Social Care,Older People 65&Over inc OP-MH,OP Hosp - Residential Care Ext,Third Party Payments,Private Contractors,Miscellaneous Agency Services,20110810,425,"1,812.40",Revenue,ST MARY'S LODGE
Adult Social Care,Older People 65&Over inc OP-MH,OP East - Residential Care Ext,Third Party Payments,Private Contractors,Miscellaneous Agency Services,20110810,426,"1,812.40",Revenue,ST MARY'S LODGE
Adult Social Care,Older People 65&Over inc OP-MH,OP East - Residential Care Ext,Third Party Payments,Private Contractors,Miscellaneous Agency Services,20110810,427,"1,812.40",Revenue,ST MARY'S LODGE
Adult Social Care,Older People 65&Over inc OP-MH,OP Hosp - Residential Care Ext,Third Party Payments,Private Contractors,Miscellaneous Agency Services,20110810,428,"1,812.40",Revenue,ST MARY'S LODGE
Adult Social Care,Older People 65&Over inc OP-MH,OP West - Residential Care Ext,Third Party Payments,Private Contractors,Miscellaneous Agency Services,20110810,429,"1,812.40",Revenue,ST MARY'S LODGE
Adult Social Care,Older People 65&Over inc OP-MH,OP Hosp - Residential Care Ext,Third Party Payments,Private Contractors,Miscellaneous Agency Services,20110810,430,"1,812.40",Revenue,ST MARY'S LODGE
Adult Social Care,Older People 65&Over inc OP-MH,OP East - Residential Care Ext,Third Party Payments,Private Contractors,Miscellaneous Agency Services,20110808,431,"11,761.48",Revenue,LINK HOUSE
Adult Social Care,Adult u65 Mental Health Needs,MH Day Care - Mitcham West,Third Party Payments,Private Contractors,Miscellaneous Agency Services,20110809,432,"1,305.36",Revenue,NAS SERVICES LIMITED
Childrens & Education Services,Other Ch's & Family Services,CL Leaving Care/Supp Lodgings,Third Party Payments,Private Contractors,Supported Lodgings,20110809,433,800,Revenue,REDACTED
Childrens & Education Services,Other Ch's & Family Services,CL Leaving Care/Supp Lodgings,Third Party Payments,Private Contractors,Supported Lodgings,20110809,434,600,Revenue,REDACTED
Adult Social Care,Adlt u65 Learning Disabilities,LD Direct Payment Scheme,Third Party Payments,Private Contractors,Direct Payments,20110809,435,"1,278.00",Revenue,REDACTED
Adult Social Care,Adult u65 Phys/Sensory Impair,PD EAST TEAM-Direct Payment,Third Party Payments,Private Contractors,Direct Payments,20110809,436,681.6,Revenue,REDACTED
Adult Social Care,Adult u65 Phys/Sensory Impair,PD EAST TEAM-Direct Payment,Third Party Payments,Private Contractors,Direct Payments,20110809,437,"2,363.00",Revenue,REDACTED
Adult Social Care,Adlt u65 Learning Disabilities,LD Direct Payment Scheme,Third Party Payments,Private Contractors,Direct Payments,20110809,438,852,Revenue,REDACTED
Adult Social Care,Older People 65&Over inc OP-MH,OP Hosp -Direct Payment Scheme,Customer and client receipts,Charges,Bd&Acc-contrib coll by home X,20110809,439,-579.08,Revenue,REDACTED
Adult Social Care,Older People 65&Over inc OP-MH,OP Hosp -Direct Payment Scheme,Third Party Payments,Private Contractors,Direct Payments,20110809,440,"2,515.12",Revenue,REDACTED
Adult Social Care,Older People 65&Over inc OP-MH,OP East -Direct Payment Scheme,Third Party Payments,Private Contractors,Direct Payments,20110809,441,"1,533.60",Revenue,REDACTED
Adult Social Care,Older People 65&Over inc OP-MH,OP East -Direct Payment Scheme,Third Party Payments,Private Contractors,Direct Payments,20110809,442,"1,096.92",Revenue,REDACTED
Adult Social Care,Older People 65&Over inc OP-MH,OP West -Direct Payment Scheme,Third Party Payments,Private Contractors,Direct Payments,20110809,443,"1,812.36",Revenue,REDACTED
Adult Social Care,Adult u65 Mental Health Needs,MH Res Care Ext- Mitcham West,Third Party Payments,Private Contractors,Miscellaneous Agency Services,20110809,444,"5,092.99",Revenue,BIBBY FACTORS SLOUGH LTD
Adult Social Care,Older People 65&Over inc OP-MH,OP West - Residential Care Ext,Third Party Payments,Private Contractors,Miscellaneous Agency Services,20110809,445,"1,907.04",Revenue,ABBEYFIELD PEABODY S.LOND.LTD
Adult Social Care,Older People 65&Over inc OP-MH,OP Hosp - Residential Care Ext,Third Party Payments,Private Contractors,Miscellaneous Agency Services,20110809,446,"2,094.40",Revenue,ABBEYFIELD PEABODY S.LOND.LTD
Adult Social Care,Older People 65&Over inc OP-MH,OP West - Residential Care Ext,Third Party Payments,Private Contractors,Miscellaneous Agency Services,20110809,447,"1,904.00",Revenue,ABBEYFIELD PEABODY S.LOND.LTD
Adult Social Care,Older People 65&Over inc OP-MH,OP East - Residential Care Ext,Third Party Payments,Private Contractors,Miscellaneous Agency Services,20110809,448,"1,812.40",Revenue,ABBEYFIELD PEABODY S.LOND.LTD
Adult Social Care,Older People 65&Over inc OP-MH,OP East - Residential Care Ext,Third Party Payments,Private Contractors,Miscellaneous Agency Services,20110809,449,"1,884.24",Revenue,ABBEYFIELD PEABODY S.LOND.LTD
Adult Social Care,Adult u65 Mental Health Needs,MH ResidentialCare Ext-Morden,Third Party Payments,Private Contractors,Miscellaneous Agency Services,20110810,450,"1,950.00",Revenue,ALDWICK RESIDENTIAL CARE HOME
Adult Social Care,Adlt u65 Learning Disabilities,LD Residential Care External,Third Party Payments,Private Contractors,Miscellaneous Agency Services,20110809,451,"4,299.88",Revenue,ASHCROFT CARE SERVICES
Adult Social Care,Older People 65&Over inc OP-MH,OP Hosp - Nursing Care,Third Party Payments,Private Contractors,Miscellaneous Agency Services,20110809,452,"2,341.84",Revenue,ST AUBYNS NURSING HOME
Adult Social Care,Older People 65&Over inc OP-MH,OP East - Residential Care Ext,Third Party Payments,Private Contractors,Miscellaneous Agency Services,20110809,453,"2,086.84",Revenue,CHURCH FARM RESIDENTIAL HOME
Adult Social Care,Adlt u65 Learning Disabilities,LD Residential Care External,Third Party Payments,Private Contractors,Miscellaneous Agency Services,20110809,454,"4,688.88",Revenue,CRAEGMOOR FACILITIES CO LTD
Adult Social Care,Older People 65&Over inc OP-MH,OP West - Residential Care Ext,Third Party Payments,Private Contractors,Miscellaneous Agency Services,20110815,455,"1,825.16",Revenue,DEEPDENE CARE LIMITED
Adult Social Care,Adult u65 Mental Health Needs,MH ResidentialCare Ext - Wim,Third Party Payments,Private Contractors,Miscellaneous Agency Services,20110815,456,"1,825.16",Revenue,DEEPDENE CARE LIMITED
Adult Social Care,Older People 65&Over inc OP-MH,OP Hosp - Residential Care Ext,Third Party Payments,Private Contractors,Miscellaneous Agency Services,20110810,457,"1,920.00",Revenue,THE ELMS REST HOME LTD
Adult Social Care,Older People 65&Over inc OP-MH,OP East - Residential Care Ext,Third Party Payments,Private Contractors,Miscellaneous Agency Services,20110810,458,"1,880.00",Revenue,THE ELMS REST HOME LTD
Adult Social Care,Older People 65&Over inc OP-MH,OP Hosp - Residential Care Ext,Third Party Payments,Private Contractors,Miscellaneous Agency Services,20110810,459,"1,840.00",Revenue,THE ELMS REST HOME LTD
Adult Social Care,Older People 65&Over inc OP-MH,OP East - Residential Care Ext,Third Party Payments,Private Contractors,Miscellaneous Agency Services,20110810,460,"1,880.00",Revenue,THE ELMS REST HOME LTD
Adult Social Care,Older People 65&Over inc OP-MH,OP West - Nursing Care,Third Party Payments,Private Contractors,Miscellaneous Agency Services,20110809,461,"2,232.84",Revenue,GRACE MANOR NURSING HOME
Adult Social Care,Older People 65&Over inc OP-MH,OP West - Nursing Care,Customer and client receipts,Charges,Miscellaneous Charges X,20110809,462,-579.76,Revenue,GRACE MANOR NURSING HOME
Adult Social Care,Adlt u65 Learning Disabilities,LD Residential Care External,Third Party Payments,Private Contractors,Miscellaneous Agency Services,20110809,463,"4,780.00",Revenue,GREENFIELD CARE HOMES LTD
Adult Social Care,Adlt u65 Learning Disabilities,LD Residential Care External,Third Party Payments,Private Contractors,Miscellaneous Agency Services,20110809,464,"4,780.00",Revenue,GREENFIELD CARE HOMES LTD
Adult Social Care,Adlt u65 Learning Disabilities,LD Residential Care External,Third Party Payments,Private Contractors,Miscellaneous Agency Services,20110809,465,"4,780.00",Revenue,GREENFIELD CARE HOMES LTD
Adult Social Care,Adlt u65 Learning Disabilities,LD Residential Care External,Third Party Payments,Private Contractors,Miscellaneous Agency Services,20110809,466,"4,732.00",Revenue,GREENFIELD CARE HOMES LTD
Adult Social Care,Adlt u65 Learning Disabilities,LD Residential Care External,Third Party Payments,Private Contractors,Miscellaneous Agency Services,20110809,467,"4,744.00",Revenue,GREENFIELD CARE HOMES LTD
Adult Social Care,Adlt u65 Learning Disabilities,LD Residential Care External,Third Party Payments,Private Contractors,Miscellaneous Agency Services,20110809,468,"4,624.00",Revenue,GREENFIELD CARE HOMES LTD
Adult Social Care,Adlt u65 Learning Disabilities,LD Residential Care External,Third Party Payments,Private Contractors,Miscellaneous Agency Services,20110809,469,"4,868.00",Revenue,GREENFIELD CARE HOMES LTD
Adult Social Care,Adult u65 Phys/Sensory Impair,PD WEST TEAM-Residential Care,Third Party Payments,Private Contractors,Miscellaneous Agency Services,20110809,470,"4,149.44",Revenue,HOTHFIELD MANOR FSHC
Adult Social Care,Older People 65&Over inc OP-MH,OP West - Residential Care Ext,Third Party Payments,Private Contractors,Miscellaneous Agency Services,20110809,471,"1,812.40",Revenue,THE ABBEYFIELD SOCIETY
Adult Social Care,Older People 65&Over inc OP-MH,OP East - Residential Care Ext,Third Party Payments,Private Contractors,Miscellaneous Agency Services,20110809,472,"1,880.00",Revenue,THE ABBEYFIELD SOCIETY
Adult Social Care,Older People 65&Over inc OP-MH,OP West - Residential Care Ext,Third Party Payments,Private Contractors,Miscellaneous Agency Services,20110809,473,"1,616.44",Revenue,THE ABBEYFIELD SOCIETY
Adult Social Care,Older People 65&Over inc OP-MH,OP West - Residential Care Ext,Customer and client receipts,Charges,Miscellaneous Charges X,20110809,474,-866.32,Revenue,THE ABBEYFIELD SOCIETY
Adult Social Care,Older People 65&Over inc OP-MH,OP West - Residential Care Ext,Third Party Payments,Private Contractors,Miscellaneous Agency Services,20110809,475,"1,636.20",Revenue,LYNCROFT RESIDENTIAL HOME
Adult Social Care,Older People 65&Over inc OP-MH,OP East - Residential Care Ext,Third Party Payments,Private Contractors,Miscellaneous Agency Services,20110815,476,"3,032.24",Revenue,SCOPE
Adult Social Care,Adlt u65 Learning Disabilities,LD Residential Care External,Third Party Payments,Private Contractors,Miscellaneous Agency Services,20110815,477,"3,487.92",Revenue,SCOPE
Adult Social Care,Adult u65 Phys/Sensory Impair,PD WEST TEAM-Residential Care,Third Party Payments,Private Contractors,Miscellaneous Agency Services,20110815,478,"3,300.96",Revenue,SCOPE
Adult Social Care,Older People 65&Over inc OP-MH,OP Hosp - Residential Care Ext,Third Party Payments,Private Contractors,Miscellaneous Agency Services,20110810,479,"1,812.00",Revenue,SWEET HOMES LTD
Childrens & Education Services,Family Support Services,CS Direct Payments,Third Party Payments,Private Contractors,Direct Payments,20110809,480,"3,680.40",Revenue,REDACTED
Childrens & Education Services,Children Looked After (24hrs+),CL Fostering Services,Supplies and Services,Services,Task Based Fostering,20110809,481,668.94,Revenue,REDACTED
Childrens & Education Services,Children Looked After (24hrs+),CL Fostering Services,Supplies and Services,Services,Task Based Fostering,20110809,482,"1,543.90",Revenue,REDACTED
Childrens & Education Services,Children Looked After (24hrs+),CL Fostering Services,Supplies and Services,Services,Task Based Fostering,20110809,483,"1,502.66",Revenue,REDACTED
Childrens & Education Services,Children Looked After (24hrs+),CL Fostering Services,Supplies and Services,Services,Task Based Fostering,20110809,484,739.2,Revenue,REDACTED
Childrens & Education Services,Children Looked After (24hrs+),CL Fostering Services,Supplies and Services,Services,Task Based Fostering,20110809,485,"1,296.66",Revenue,REDACTED
Childrens & Education Services,Children Looked After (24hrs+),CL Fostering Services,Supplies and Services,Services,Task Based Fostering,20110809,486,"2,266.12",Revenue,REDACTED
Childrens & Education Services,Children Looked After (24hrs+),CL Fostering Services,Supplies and Services,Services,Task Based Fostering,20110809,487,780.44,Revenue,REDACTED
Childrens & Education Services,Children Looked After (24hrs+),CL Fostering Services,Supplies and Services,Services,Task Based Fostering,20110809,488,"1,560.88",Revenue,REDACTED
Childrens & Education Services,Children Looked After (24hrs+),CL Fostering Services,Supplies and Services,Services,Task Based Fostering,20110809,489,"2,324.34",Revenue,REDACTED
Childrens & Education Services,Children Looked After (24hrs+),CL Fostering Services,Supplies and Services,Services,Task Based Fostering,20110809,490,"2,283.10",Revenue,REDACTED
Childrens & Education Services,Children Looked After (24hrs+),CL Fostering Services,Supplies and Services,Services,Task Based Fostering,20110809,491,780.44,Revenue,REDACTED
Childrens & Education Services,Children Looked After (24hrs+),CL Fostering Services,Supplies and Services,Services,Task Based Fostering,20110809,492,760,Revenue,REDACTED
Childrens & Education Services,Children Looked After (24hrs+),CL Fostering Services,Supplies and Services,Services,Task Based Fostering,20110809,493,"2,307.36",Revenue,REDACTED
Childrens & Education Services,Children Looked After (24hrs+),CL Fostering Services,Supplies and Services,Services,Task Based Fostering,20110809,494,"1,560.88",Revenue,REDACTED
Childrens & Education Services,Children Looked After (24hrs+),CL Fostering Services,Supplies and Services,Services,Task Based Fostering,20110809,495,763.46,Revenue,REDACTED
Childrens & Education Services,Children Looked After (24hrs+),CL Fostering Services,Supplies and Services,Services,Task Based Fostering,20110809,496,739.2,Revenue,REDACTED
Childrens & Education Services,Children Looked After (24hrs+),CL Fostering Services,Supplies and Services,Services,Task Based Fostering,20110809,497,"1,543.90",Revenue,REDACTED
Childrens & Education Services,Children Looked After (24hrs+),CL Fostering Services,Supplies and Services,Services,Task Based Fostering,20110809,498,"1,543.90",Revenue,REDACTED
Childrens & Education Services,Children Looked After (24hrs+),CL Fostering Services,Supplies and Services,Services,Task Based Fostering,20110809,499,"1,478.40",Revenue,REDACTED
Childrens & Education Services,Children Looked After (24hrs+),CL Fostering Services,Supplies and Services,Services,Task Based Fostering,20110809,500,780.44,Revenue,REDACTED
Childrens & Education Services,Children Looked After (24hrs+),CL Fostering Services,Supplies and Services,Services,Task Based Fostering,20110809,501,"2,241.86",Revenue,REDACTED
Childrens & Education Services,Children Looked After (24hrs+),CL Fostering Services,Supplies and Services,Services,Task Based Fostering,20110809,502,"2,534.40",Revenue,REDACTED
Childrens & Education Services,Children Looked After (24hrs+),CL Fostering Services,Supplies and Services,Services,Task Based Fostering,20110809,503,739.2,Revenue,REDACTED
Childrens & Education Services,Children Looked After (24hrs+),CL Fostering Services,Supplies and Services,Services,Task Based Fostering,20110809,504,"1,502.66",Revenue,REDACTED
Childrens & Education Services,Children Looked After (24hrs+),CL Fostering Services,Supplies and Services,Services,Task Based Fostering,20110809,505,"2,307.36",Revenue,REDACTED
Childrens & Education Services,Children Looked After (24hrs+),CL Fostering Services,Supplies and Services,Services,Task Based Fostering,20110809,506,739.2,Revenue,REDACTED
Childrens & Education Services,Children Looked After (24hrs+),ART Mother and Baby Unit,Third Party Payments,Private Contractors,Miscellaneous Agency Services,20110810,507,"4,140.00",Revenue,THE BRESLAFF CENTRE
Childrens & Education Services,Other Ch's & Family Services,CL Leaving Care/Supp Lodgings,Third Party Payments,Private Contractors,Supported Lodgings,20110810,508,600,Revenue,REDACTED
Childrens & Education Services,Other Ch's & Family Services,CL Leaving Care/Supp Lodgings,Third Party Payments,Private Contractors,Supported Lodgings,20110810,509,600,Revenue,REDACTED
Childrens & Education Services,Other Ch's & Family Services,CL Leaving Care/Supp Lodgings,Third Party Payments,Private Contractors,Supported Lodgings,20110810,510,"1,001.52",Revenue,REDACTED
Adult Social Care,Older People 65&Over inc OP-MH,OP East -Direct Payment Scheme,Third Party Payments,Private Contractors,Direct Payments,20110810,511,913.76,Revenue,REDACTED
Adult Social Care,Adult u65 Phys/Sensory Impair,PD EAST TEAM-Direct Payment,Third Party Payments,Private Contractors,Direct Payments,20110810,512,915.88,Revenue,REDACTED
Adult Social Care,Older People 65&Over inc OP-MH,OP East -Direct Payment Scheme,Third Party Payments,Private Contractors,Direct Payments,20110810,513,"2,103.80",Revenue,REDACTED
Adult Social Care,Older People 65&Over inc OP-MH,OP West -Direct Payment Scheme,Third Party Payments,Private Contractors,Direct Payments,20110810,514,511.2,Revenue,REDACTED
Adult Social Care,Adult u65 Phys/Sensory Impair,PD EAST TEAM-Direct Payment,Third Party Payments,Private Contractors,Direct Payments,20110810,515,532.48,Revenue,REDACTED
Adult Social Care,Adult u65 Mental Health Needs,MH Direct Payment Scheme- West,Third Party Payments,Private Contractors,Direct Payments,20110810,516,718.48,Revenue,REDACTED
Adult Social Care,Adult u65 Phys/Sensory Impair,PD WEST TEAM-Direct Payment,Third Party Payments,Private Contractors,Direct Payments,20110810,517,"1,323.72",Revenue,REDACTED
Adult Social Care,Older People 65&Over inc OP-MH,OP West -Direct Payment Scheme,Customer and client receipts,Charges,Bd&Acc-contrib coll by home X,20110810,518,-577.2,Revenue,REDACTED
Adult Social Care,Older People 65&Over inc OP-MH,OP West -Direct Payment Scheme,Third Party Payments,Private Contractors,Direct Payments,20110810,519,596.4,Revenue,REDACTED
Adult Social Care,Older People 65&Over inc OP-MH,OP West -Direct Payment Scheme,Third Party Payments,Private Contractors,Direct Payments,20110810,520,502.56,Revenue,REDACTED
Adult Social Care,Older People 65&Over inc OP-MH,OP West -Direct Payment Scheme,Third Party Payments,Private Contractors,Direct Payments,20110810,521,"1,128.88",Revenue,REDACTED
Adult Social Care,Older People 65&Over inc OP-MH,OP East -Direct Payment Scheme,Customer and client receipts,Charges,Bd&Acc-contrib coll by home X,20110810,522,-658.12,Revenue,REDACTED
Adult Social Care,Older People 65&Over inc OP-MH,OP East -Direct Payment Scheme,Third Party Payments,Private Contractors,Direct Payments,20110810,523,756.04,Revenue,REDACTED
Adult Social Care,Adult u65 Mental Health Needs,MH Direct Payment Scheme- West,Third Party Payments,Private Contractors,Direct Payments,20110810,524,838,Revenue,REDACTED
Adult Social Care,Adult u65 Phys/Sensory Impair,PD WEST TEAM-Direct Payment,Third Party Payments,Private Contractors,Direct Payments,20110810,525,"1,833.32",Revenue,REDACTED
Adult Social Care,Adult u65 Phys/Sensory Impair,PD EAST TEAM-Direct Payment,Third Party Payments,Private Contractors,Direct Payments,20110810,526,559.11,Revenue,REDACTED
Adult Social Care,Adult u65 Phys/Sensory Impair,PD WEST TEAM-Direct Payment,Third Party Payments,Private Contractors,Direct Payments,20110810,527,711.96,Revenue,REDACTED
Adult Social Care,Older People 65&Over inc OP-MH,OP East -Direct Payment Scheme,Third Party Payments,Private Contractors,Direct Payments,20110810,528,"1,435.44",Revenue,REDACTED
Adult Social Care,Adult u65 Phys/Sensory Impair,PD WEST TEAM-Direct Payment,Third Party Payments,Private Contractors,Direct Payments,20110810,529,565.36,Revenue,REDACTED
Adult Social Care,Older People 65&Over inc OP-MH,OP East -Direct Payment Scheme,Third Party Payments,Private Contractors,Direct Payments,20110810,530,832.16,Revenue,REDACTED
Adult Social Care,Adult u65 Phys/Sensory Impair,PD WEST TEAM-Direct Payment,Third Party Payments,Private Contractors,Direct Payments,20110810,531,"1,244.04",Revenue,REDACTED
Adult Social Care,Older People 65&Over inc OP-MH,OP East -Direct Payment Scheme,Third Party Payments,Private Contractors,Direct Payments,20110810,532,"2,384.16",Revenue,REDACTED
Adult Social Care,Adult u65 Phys/Sensory Impair,PD EAST TEAM-Direct Payment,Third Party Payments,Private Contractors,Direct Payments,20110810,533,"3,077.48",Revenue,REDACTED
Adult Social Care,Older People 65&Over inc OP-MH,OP East -Direct Payment Scheme,Third Party Payments,Private Contractors,Direct Payments,20110810,534,"1,704.00",Revenue,REDACTED
Adult Social Care,Adlt u65 Learning Disabilities,LD Direct Payment Scheme,Third Party Payments,Private Contractors,Direct Payments,20110810,535,533.28,Revenue,REDACTED
Adult Social Care,Adult u65 Phys/Sensory Impair,PD EAST TEAM-Direct Payment,Third Party Payments,Private Contractors,Direct Payments,20110810,536,924.08,Revenue,REDACTED
Adult Social Care,Older People 65&Over inc OP-MH,OP East -Direct Payment Scheme,Third Party Payments,Private Contractors,Direct Payments,20110810,537,833.2,Revenue,REDACTED
Adult Social Care,Adult u65 Phys/Sensory Impair,PD EAST TEAM-Direct Payment,Third Party Payments,Private Contractors,Direct Payments,20110810,538,511.2,Revenue,REDACTED
Adult Social Care,Older People 65&Over inc OP-MH,OP West -Direct Payment Scheme,Third Party Payments,Private Contractors,Direct Payments,20110810,539,894.6,Revenue,REDACTED
Adult Social Care,Older People 65&Over inc OP-MH,OP East -Direct Payment Scheme,Third Party Payments,Private Contractors,Direct Payments,20110810,540,"1,130.76",Revenue,REDACTED
Adult Social Care,Older People 65&Over inc OP-MH,OP West -Direct Payment Scheme,Third Party Payments,Private Contractors,Direct Payments,20110810,541,"1,172.64",Revenue,REDACTED
Adult Social Care,Older People 65&Over inc OP-MH,OP East -Direct Payment Scheme,Third Party Payments,Private Contractors,Direct Payments,20110810,542,521.84,Revenue,REDACTED
Adult Social Care,Older People 65&Over inc OP-MH,OP East -Direct Payment Scheme,Third Party Payments,Private Contractors,Direct Payments,20110810,543,"1,278.00",Revenue,REDACTED
Adult Social Care,Older People 65&Over inc OP-MH,OP Hosp -Direct Payment Scheme,Third Party Payments,Private Contractors,Direct Payments,20110810,544,"4,038.68",Revenue,REDACTED
Adult Social Care,Adult u65 Phys/Sensory Impair,PD WEST TEAM-Direct Payment,Third Party Payments,Private Contractors,Direct Payments,20110810,545,"1,280.00",Revenue,REDACTED
Adult Social Care,Older People 65&Over inc OP-MH,OP East -Direct Payment Scheme,Third Party Payments,Private Contractors,Direct Payments,20110810,546,500.52,Revenue,REDACTED
Adult Social Care,Older People 65&Over inc OP-MH,OP West -Direct Payment Scheme,Third Party Payments,Private Contractors,Direct Payments,20110810,547,745.48,Revenue,REDACTED
Adult Social Care,Adult u65 Phys/Sensory Impair,PD WEST TEAM-Direct Payment,Third Party Payments,Private Contractors,Direct Payments,20110810,548,"3,444.28",Revenue,REDACTED
Adult Social Care,Adult u65 Phys/Sensory Impair,PD EAST TEAM-Direct Payment,Third Party Payments,Private Contractors,Direct Payments,20110810,549,"1,022.40",Revenue,REDACTED
Adult Social Care,Adult u65 Phys/Sensory Impair,PD EAST TEAM-Direct Payment,Third Party Payments,Private Contractors,Direct Payments,20110810,550,766.8,Revenue,REDACTED
Adult Social Care,Older People 65&Over inc OP-MH,OP East -Direct Payment Scheme,Third Party Payments,Private Contractors,Direct Payments,20110810,551,607.04,Revenue,REDACTED
Adult Social Care,Older People 65&Over inc OP-MH,OP West -Direct Payment Scheme,Third Party Payments,Private Contractors,Direct Payments,20110810,552,"1,045.20",Revenue,REDACTED
Adult Social Care,Adlt u65 Learning Disabilities,LD Direct Payment Scheme,Third Party Payments,Private Contractors,Direct Payments,20110810,553,511.2,Revenue,REDACTED
Adult Social Care,Adult u65 Mental Health Needs,MH Direct Payment Sche -Morden,Third Party Payments,Private Contractors,Direct Payments,20110810,554,"1,192.80",Revenue,REDACTED
Adult Social Care,Adult u65 Phys/Sensory Impair,PD WEST TEAM-Direct Payment,Third Party Payments,Private Contractors,Direct Payments,20110810,555,867.04,Revenue,REDACTED
Adult Social Care,Adlt u65 Learning Disabilities,LD Direct Payment Scheme,Third Party Payments,Private Contractors,Direct Payments,20110810,556,683.56,Revenue,REDACTED
Adult Social Care,Older People 65&Over inc OP-MH,OP West -Direct Payment Scheme,Third Party Payments,Private Contractors,Direct Payments,20110810,557,692.24,Revenue,REDACTED
Adult Social Care,Older People 65&Over inc OP-MH,OP West -Direct Payment Scheme,Third Party Payments,Private Contractors,Direct Payments,20110810,558,"1,295.04",Revenue,REDACTED
Adult Social Care,Adult u65 Phys/Sensory Impair,PD WEST TEAM-Direct Payment,Third Party Payments,Private Contractors,Direct Payments,20110810,559,776.92,Revenue,REDACTED
Adult Social Care,Adult u65 Phys/Sensory Impair,PD WEST TEAM-Direct Payment,Third Party Payments,Private Contractors,Direct Payments,20110810,560,"2,982.00",Revenue,REDACTED
Adult Social Care,Adult u65 Phys/Sensory Impair,PD WEST TEAM-Direct Payment,Third Party Payments,Private Contractors,Direct Payments,20110810,561,"1,661.40",Revenue,REDACTED
Adult Social Care,Adult u65 Phys/Sensory Impair,PD WEST TEAM-Direct Payment,Third Party Payments,Private Contractors,Direct Payments,20110810,562,781.12,Revenue,REDACTED
Adult Social Care,Older People 65&Over inc OP-MH,OP East -Direct Payment Scheme,Third Party Payments,Private Contractors,Direct Payments,20110810,563,884,Revenue,REDACTED
Adult Social Care,Older People 65&Over inc OP-MH,OP West -Direct Payment Scheme,Third Party Payments,Private Contractors,Direct Payments,20110810,564,"5,712.00",Revenue,REDACTED
Adult Social Care,Older People 65&Over inc OP-MH,OP West -Direct Payment Scheme,Third Party Payments,Private Contractors,Direct Payments,20110810,565,"1,142.24",Revenue,REDACTED
Adult Social Care,Older People 65&Over inc OP-MH,OP West -Direct Payment Scheme,Third Party Payments,Private Contractors,Direct Payments,20110810,566,617.68,Revenue,REDACTED
Adult Social Care,Older People 65&Over inc OP-MH,OP Hosp -Direct Payment Scheme,Third Party Payments,Private Contractors,Direct Payments,20110810,567,"1,684.16",Revenue,REDACTED
Adult Social Care,Adlt u65 Learning Disabilities,LD Direct Payment Scheme,Third Party Payments,Private Contractors,Direct Payments,20110810,568,724.2,Revenue,REDACTED
Adult Social Care,Adult u65 Phys/Sensory Impair,PD EAST TEAM-Direct Payment,Third Party Payments,Private Contractors,Direct Payments,20110810,569,"1,491.00",Revenue,REDACTED
Adult Social Care,Adult u65 Phys/Sensory Impair,PD EAST TEAM-Direct Payment,Third Party Payments,Private Contractors,Direct Payments,20110810,570,639,Revenue,REDACTED
Adult Social Care,Adult u65 Phys/Sensory Impair,PD WEST TEAM-Direct Payment,Third Party Payments,Private Contractors,Direct Payments,20110810,571,"2,790.28",Revenue,REDACTED
Adult Social Care,Adult u65 Phys/Sensory Impair,PD WEST TEAM-Direct Payment,Third Party Payments,Private Contractors,Direct Payments,20110810,572,598.16,Revenue,REDACTED
Adult Social Care,Older People 65&Over inc OP-MH,OP West -Direct Payment Scheme,Third Party Payments,Private Contractors,Direct Payments,20110810,573,"1,219.56",Revenue,REDACTED
Adult Social Care,Older People 65&Over inc OP-MH,OP Hosp -Direct Payment Scheme,Third Party Payments,Private Contractors,Direct Payments,20110810,574,873.28,Revenue,REDACTED
Adult Social Care,Adlt u65 Learning Disabilities,LD Direct Payment Scheme,Third Party Payments,Private Contractors,Direct Payments,20110810,575,"1,170.20",Revenue,REDACTED
Adult Social Care,Older People 65&Over inc OP-MH,OP West -Direct Payment Scheme,Third Party Payments,Private Contractors,Direct Payments,20110810,576,"1,684.48",Revenue,REDACTED
Adult Social Care,Older People 65&Over inc OP-MH,OP East -Direct Payment Scheme,Third Party Payments,Private Contractors,Direct Payments,20110810,577,502.56,Revenue,REDACTED
Adult Social Care,Older People 65&Over inc OP-MH,OP East -Direct Payment Scheme,Third Party Payments,Private Contractors,Direct Payments,20110810,578,774.8,Revenue,REDACTED
Adult Social Care,Older People 65&Over inc OP-MH,OP West -Direct Payment Scheme,Third Party Payments,Private Contractors,Direct Payments,20110810,579,795.12,Revenue,REDACTED
Adult Social Care,Adlt u65 Learning Disabilities,LD Direct Payment Scheme,Third Party Payments,Private Contractors,Direct Payments,20110810,580,504,Revenue,REDACTED
Adult Social Care,Adult u65 Phys/Sensory Impair,PD WEST TEAM-Direct Payment,Third Party Payments,Private Contractors,Direct Payments,20110810,581,"1,778.56",Revenue,REDACTED
Adult Social Care,Adult u65 Phys/Sensory Impair,PD EAST TEAM-Direct Payment,Third Party Payments,Private Contractors,Direct Payments,20110810,582,"1,240.52",Revenue,REDACTED
Adult Social Care,Adult u65 Phys/Sensory Impair,PD EAST TEAM-Direct Payment,Third Party Payments,Private Contractors,Direct Payments,20110810,583,607.04,Revenue,REDACTED
Adult Social Care,Older People 65&Over inc OP-MH,OP East -Direct Payment Scheme,Third Party Payments,Private Contractors,Direct Payments,20110810,584,937.2,Revenue,REDACTED
Adult Social Care,Older People 65&Over inc OP-MH,OP West -Direct Payment Scheme,Third Party Payments,Private Contractors,Direct Payments,20110810,585,858.52,Revenue,REDACTED
Adult Social Care,Older People 65&Over inc OP-MH,OP East -Direct Payment Scheme,Third Party Payments,Private Contractors,Direct Payments,20110810,586,"1,606.64",Revenue,REDACTED
Adult Social Care,Older People 65&Over inc OP-MH,OP Hosp -Direct Payment Scheme,Third Party Payments,Private Contractors,Direct Payments,20110810,587,"1,183.08",Revenue,REDACTED
Adult Social Care,Adult u65 Phys/Sensory Impair,PD EAST TEAM-Direct Payment,Third Party Payments,Private Contractors,Direct Payments,20110810,588,"1,949.08",Revenue,REDACTED
Adult Social Care,Older People 65&Over inc OP-MH,OP Hosp -Direct Payment Scheme,Third Party Payments,Private Contractors,Direct Payments,20110810,589,"2,279.08",Revenue,REDACTED
Adult Social Care,Adlt u65 Learning Disabilities,LD Direct Payment Scheme,Third Party Payments,Private Contractors,Direct Payments,20110810,590,887.32,Revenue,REDACTED
Adult Social Care,Adult u65 Phys/Sensory Impair,PD EAST TEAM-Direct Payment,Third Party Payments,Private Contractors,Direct Payments,20110810,591,894.6,Revenue,REDACTED
Adult Social Care,Adult u65 Phys/Sensory Impair,PD WEST TEAM-Direct Payment,Third Party Payments,Private Contractors,Direct Payments,20110810,592,766.8,Revenue,REDACTED
Adult Social Care,Older People 65&Over inc OP-MH,OP East -Direct Payment Scheme,Third Party Payments,Private Contractors,Direct Payments,20110810,593,692.24,Revenue,REDACTED
Adult Social Care,Older People 65&Over inc OP-MH,OP East -Direct Payment Scheme,Third Party Payments,Private Contractors,Direct Payments,20110810,594,593.6,Revenue,REDACTED
Adult Social Care,Adlt u65 Learning Disabilities,LD Direct Payment Scheme,Third Party Payments,Private Contractors,Direct Payments,20110810,595,894.6,Revenue,REDACTED
Adult Social Care,Adult u65 Phys/Sensory Impair,PD EAST TEAM-Direct Payment,Third Party Payments,Private Contractors,Direct Payments,20110810,596,958.48,Revenue,REDACTED
Adult Social Care,Older People 65&Over inc OP-MH,OP West -Direct Payment Scheme,Third Party Payments,Private Contractors,Direct Payments,20110810,597,"1,565.56",Revenue,REDACTED
Adult Social Care,Adult u65 Phys/Sensory Impair,PD EAST TEAM-Direct Payment,Third Party Payments,Private Contractors,Direct Payments,20110810,598,724.2,Revenue,REDACTED
Adult Social Care,Adlt u65 Learning Disabilities,LD Direct Payment Scheme,Third Party Payments,Private Contractors,Direct Payments,20110810,599,596.8,Revenue,REDACTED
Adult Social Care,Older People 65&Over inc OP-MH,OP East -Direct Payment Scheme,Third Party Payments,Private Contractors,Direct Payments,20110810,600,745.52,Revenue,REDACTED
Adult Social Care,Adult u65 Phys/Sensory Impair,PD WEST TEAM-Direct Payment,Third Party Payments,Private Contractors,Direct Payments,20110810,601,596.4,Revenue,REDACTED
Adult Social Care,Adlt u65 Learning Disabilities,LD Direct Payment Scheme,Third Party Payments,Private Contractors,Direct Payments,20110810,602,"2,635.20",Revenue,REDACTED
Adult Social Care,Older People 65&Over inc OP-MH,OP West -Direct Payment Scheme,Third Party Payments,Private Contractors,Direct Payments,20110810,603,555.72,Revenue,REDACTED
Adult Social Care,Adult u65 Phys/Sensory Impair,PD WEST TEAM-Direct Payment,Third Party Payments,Private Contractors,Direct Payments,20110810,604,665.4,Revenue,REDACTED
Adult Social Care,Adult u65 Mental Health Needs,MH Direct Payment Scheme- West,Third Party Payments,Private Contractors,Direct Payments,20110810,605,986.6,Revenue,REDACTED
Adult Social Care,Older People 65&Over inc OP-MH,OP East -Direct Payment Scheme,Third Party Payments,Private Contractors,Direct Payments,20110810,606,596.4,Revenue,REDACTED
Adult Social Care,Adult u65 Phys/Sensory Impair,PD EAST TEAM-Direct Payment,Third Party Payments,Private Contractors,Direct Payments,20110810,607,724.2,Revenue,REDACTED
Adult Social Care,Older People 65&Over inc OP-MH,OP West -Direct Payment Scheme,Third Party Payments,Private Contractors,Direct Payments,20110810,608,"1,119.60",Revenue,REDACTED
Adult Social Care,Older People 65&Over inc OP-MH,OP East -Direct Payment Scheme,Third Party Payments,Private Contractors,Direct Payments,20110810,609,"3,230.76",Revenue,REDACTED
Adult Social Care,Older People 65&Over inc OP-MH,OP West -Direct Payment Scheme,Third Party Payments,Private Contractors,Direct Payments,20110810,610,596.4,Revenue,REDACTED
Adult Social Care,Older People 65&Over inc OP-MH,OP Hosp -Direct Payment Scheme,Third Party Payments,Private Contractors,Direct Payments,20110810,611,"1,192.80",Revenue,REDACTED
Adult Social Care,Older People 65&Over inc OP-MH,OP Hosp -Direct Payment Scheme,Third Party Payments,Private Contractors,Direct Payments,20110810,612,"1,661.40",Revenue,REDACTED
Adult Social Care,Older People 65&Over inc OP-MH,OP East -Direct Payment Scheme,Third Party Payments,Private Contractors,Direct Payments,20110810,613,"1,813.40",Revenue,REDACTED
Adult Social Care,Older People 65&Over inc OP-MH,OP East -Direct Payment Scheme,Third Party Payments,Private Contractors,Direct Payments,20110810,614,"1,341.88",Revenue,REDACTED
Adult Social Care,Adlt u65 Learning Disabilities,LD Direct Payment Scheme,Third Party Payments,Private Contractors,Direct Payments,20110810,615,565.04,Revenue,REDACTED
Adult Social Care,Adlt u65 Learning Disabilities,LD Direct Payment Scheme,Third Party Payments,Private Contractors,Direct Payments,20110810,616,646.88,Revenue,REDACTED
Adult Social Care,Adult u65 Phys/Sensory Impair,PD EAST TEAM-Direct Payment,Third Party Payments,Private Contractors,Direct Payments,20110810,617,596.4,Revenue,REDACTED
Adult Social Care,Older People 65&Over inc OP-MH,OP East - Residential Care Ext,Third Party Payments,Private Contractors,Miscellaneous Agency Services,20110810,618,"1,873.20",Revenue,BETHUNE COURT
Adult Social Care,Older People 65&Over inc OP-MH,OP East - Residential Care Ext,Third Party Payments,Private Contractors,Miscellaneous Agency Services,20110810,619,"2,056.24",Revenue,BOLTERS CORNER CARE HOME
Adult Social Care,Older People 65&Over inc OP-MH,OP East - Nursing Care,Third Party Payments,Private Contractors,Miscellaneous Agency Services,20110810,620,"2,074.68",Revenue,BUPA CARE HOMES
Adult Social Care,Older People 65&Over inc OP-MH,OP Hosp - Nursing Care,Third Party Payments,Private Contractors,Miscellaneous Agency Services,20110810,621,"2,341.84",Revenue,REDACTED
Adult Social Care,Older People 65&Over inc OP-MH,OP Hosp - Nursing Care,Third Party Payments,Private Contractors,Miscellaneous Agency Services,20110810,622,"2,341.84",Revenue,REDACTED
Adult Social Care,Older People 65&Over inc OP-MH,OP East - Nursing Care,Third Party Payments,Private Contractors,Miscellaneous Agency Services,20110810,623,"2,221.84",Revenue,REDACTED
Adult Social Care,Older People 65&Over inc OP-MH,OP Hosp - Nursing Care,Third Party Payments,Private Contractors,Miscellaneous Agency Services,20110810,624,"2,746.40",Revenue,CHELSTON PARK
Adult Social Care,Adult u65 Mental Health Needs,MH Res Care Ext- Mitcham West,Third Party Payments,Private Contractors,Miscellaneous Agency Services,20110810,625,"5,681.56",Revenue,COMMUNITY CARE SOLUTIONS LTD
Adult Social Care,Older People 65&Over inc OP-MH,OP East - Residential Care Ext,Third Party Payments,Private Contractors,Miscellaneous Agency Services,20110810,626,"2,233.00",Revenue,ELM LODGE
Adult Social Care,Older People 65&Over inc OP-MH,OP Mitcham-Residential CareExt,Third Party Payments,Private Contractors,Miscellaneous Agency Services,20110810,627,"1,448.00",Revenue,MARIFA LODGE
Adult Social Care,Older People 65&Over inc OP-MH,OP Mitcham-Residential CareExt,Third Party Payments,Private Contractors,Miscellaneous Agency Services,20110810,628,"1,448.00",Revenue,MARIFA LODGE
Adult Social Care,Older People 65&Over inc OP-MH,OP Mitcham-Residential CareExt,Third Party Payments,Private Contractors,Miscellaneous Agency Services,20110810,629,"1,448.00",Revenue,MARIFA LODGE
Adult Social Care,Adlt u65 Learning Disabilities,LD Residential Care External,Third Party Payments,Private Contractors,Miscellaneous Agency Services,20110815,630,"7,618.16",Revenue,SOLAR CARE GROUP LTD - ROBINIA
Adult Social Care,Adlt u65 Learning Disabilities,LD Residential Care External,Third Party Payments,Private Contractors,Miscellaneous Agency Services,20110815,631,"6,757.04",Revenue,SOLAR CARE GROUP LTD - ROBINIA
Adult Social Care,Older People 65&Over inc OP-MH,OP East - Residential Care Ext,Third Party Payments,Private Contractors,Miscellaneous Agency Services,20110810,632,"1,703.44",Revenue,SOUTHPARK RESIDENTIAL HOME
Adult Social Care,Older People 65&Over inc OP-MH,OP West - Residential Care Ext,Third Party Payments,Private Contractors,Miscellaneous Agency Services,20110810,633,"1,812.40",Revenue,SOUTHPARK RESIDENTIAL HOME
Adult Social Care,Older People 65&Over inc OP-MH,OP West - Residential Care Ext,Third Party Payments,Private Contractors,Miscellaneous Agency Services,20110810,634,"1,784.20",Revenue,SOUTHPARK RESIDENTIAL HOME
Adult Social Care,Adult u65 Mental Health Needs,MH ResidentialCare Ext-Morden,Third Party Payments,Private Contractors,Miscellaneous Agency Services,20110810,635,"1,043.96",Revenue,SOUTHPARK RESIDENTIAL HOME
Adult Social Care,Older People 65&Over inc OP-MH,OP East - Residential Care Ext,Third Party Payments,Private Contractors,Miscellaneous Agency Services,20110810,636,"1,044.00",Revenue,SOUTHPARK RESIDENTIAL HOME
Adult Social Care,Older People 65&Over inc OP-MH,OP Hosp - Residential Care Ext,Third Party Payments,Private Contractors,Miscellaneous Agency Services,20110810,637,617.14,Revenue,LITTLE SISTERS OF THE POOR
Adult Social Care,Older People 65&Over inc OP-MH,OP East - Residential Care Ext,Third Party Payments,Private Contractors,Miscellaneous Agency Services,20110810,638,"1,302.86",Revenue,LITTLE SISTERS OF THE POOR
Adult Social Care,Older People 65&Over inc OP-MH,OP East - Residential Care Ext,Third Party Payments,Private Contractors,Miscellaneous Agency Services,20110810,639,"1,806.12",Revenue,THORNTON LODGE
Adult Social Care,Adlt u65 Learning Disabilities,LD Home Care External,Third Party Payments,Private Contractors,Miscellaneous Agency Services,20110810,640,"2,756.88",Revenue,ABLE COMMUNITY CARE
Adult Social Care,Adult u65 Phys/Sensory Impair,PD WEST TEAM-Homecare,Third Party Payments,Private Contractors,Miscellaneous Agency Services,20110810,641,"2,884.00",Revenue,ABLE COMMUNITY CARE
Adult Social Care,Adlt u65 Learning Disabilities,LD Home Care External,Third Party Payments,Private Contractors,Miscellaneous Agency Services,20110810,642,"2,930.00",Revenue,ABLE COMMUNITY CARE
Adult Social Care,Adlt u65 Learning Disabilities,LD Home Care External,Third Party Payments,Private Contractors,Miscellaneous Agency Services,20110810,643,"2,865.00",Revenue,ABLE COMMUNITY CARE
Adult Social Care,Adult u65 Mental Health Needs,HS Adult Placements,Third Party Payments,Private Contractors,Accommodation Based Support,20110810,644,"2,055.04",Revenue,TRISWIT LIMITED
Adult Social Care,Adult u65 Mental Health Needs,MH Adult Placement Cont- NRTPF,Third Party Payments,Private Contractors,Accommodation Based Support,20110810,645,946.52,Revenue,REDACTED
Adult Social Care,Adult u65 Mental Health Needs,HS Adult Placements,Third Party Payments,Private Contractors,Accommodation Based Support,20110810,646,"3,100.76",Revenue,REDACTED
Adult Social Care,Adult u65 Mental Health Needs,HS Adult Placements,Third Party Payments,Private Contractors,Accommodation Based Support,20110810,647,"1,167.60",Revenue,REDACTED
Adult Social Care,Adult u65 Mental Health Needs,MH Adult Placement Cont- NRTPF,Third Party Payments,Private Contractors,Accommodation Based Support,20110810,648,878.16,Revenue,REDACTED
Adult Social Care,Adult u65 Mental Health Needs,HS Adult Placements,Third Party Payments,Private Contractors,Accommodation Based Support,20110810,649,879.28,Revenue,REDACTED
Adult Social Care,Adult u65 Mental Health Needs,MH Adult Placement Cont-Morden,Third Party Payments,Private Contractors,Accommodation Based Support,20110810,650,879.28,Revenue,REDACTED
Adult Social Care,Adult u65 Mental Health Needs,MH Adult Placement Cont- NRTPF,Third Party Payments,Private Contractors,Accommodation Based Support,20110810,651,"1,287.40",Revenue,REDACTED
Adult Social Care,Adult u65 Mental Health Needs,HS Adult Placements,Third Party Payments,Private Contractors,Accommodation Based Support,20110830,652,"1,112.00",Revenue,REDACTED
Adult Social Care,Adlt u65 Learning Disabilities,LD AdultPlacementCont,Third Party Payments,Private Contractors,Accommodation Based Support,20110810,653,606.4,Revenue,REDACTED
Adult Social Care,Adult u65 Mental Health Needs,HS Adult Placements,Third Party Payments,Private Contractors,Accommodation Based Support,20110810,654,"1,592.08",Revenue,REDACTED
Adult Social Care,Adult u65 Mental Health Needs,HS Adult Placements,Third Party Payments,Private Contractors,Accommodation Based Support,20110810,655,636.72,Revenue,REDACTED
Adult Social Care,Adult u65 Mental Health Needs,HS Adult Placements,Third Party Payments,Private Contractors,Accommodation Based Support,20110810,656,"2,473.88",Revenue,REDACTED
Adult Social Care,Adult u65 Mental Health Needs,HS Adult Placements,Third Party Payments,Private Contractors,Accommodation Based Support,20110810,657,806.2,Revenue,REDACTED
Adult Social Care,Adlt u65 Learning Disabilities,LD Adult Placements - HST,Third Party Payments,Private Contractors,Accommodation Based Support,20110810,658,"1,121.84",Revenue,REDACTED
Adult Social Care,Adult u65 Mental Health Needs,MH Res Care Ext- Mitcham West,Third Party Payments,Private Contractors,Miscellaneous Agency Services,20110810,659,"2,214.33",Revenue,BIBBY FACTORS SLOUGH LTD
Adult Social Care,Adlt u65 Learning Disabilities,LD AdultPlacementCont,Third Party Payments,Private Contractors,Accommodation Based Support,20110810,660,"1,071.52",Revenue,REDACTED
Adult Social Care,Adlt u65 Learning Disabilities,LD AdultPlacementCont,Third Party Payments,Private Contractors,Accommodation Based Support,20110810,661,"1,071.52",Revenue,REDACTED
Adult Social Care,Adult u65 Mental Health Needs,HS Adult Placements,Third Party Payments,Private Contractors,Accommodation Based Support,20110810,662,955.08,Revenue,REDACTED
Adult Social Care,Adlt u65 Learning Disabilities,LD Adult Placements - HST,Third Party Payments,Private Contractors,Accommodation Based Support,20110810,663,848.96,Revenue,REDACTED
Adult Social Care,Adult u65 Mental Health Needs,MH Adult PlacementCont-MitWest,Third Party Payments,Private Contractors,Accommodation Based Support,20110810,664,583.8,Revenue,REDACTED
Adult Social Care,Adult u65 Mental Health Needs,HS Adult Placements,Third Party Payments,Private Contractors,Accommodation Based Support,20110810,665,973,Revenue,REDACTED
Adult Social Care,Adult u65 Mental Health Needs,HS Adult Placements,Third Party Payments,Private Contractors,Accommodation Based Support,20110810,666,"1,857.24",Revenue,REDACTED
Adult Social Care,Adult u65 Mental Health Needs,MH Adult Placement Cont-Morden,Third Party Payments,Private Contractors,Accommodation Based Support,20110810,667,848.96,Revenue,EL-SHADDAI
Adult Social Care,Adult u65 Mental Health Needs,MH Adult PlacementCont-MitWest,Third Party Payments,Private Contractors,Accommodation Based Support,20110810,668,848.96,Revenue,EL-SHADDAI
Childrens & Education Services,Family Support Services,CS Direct Payments,Third Party Payments,Private Contractors,Direct Payments,20110811,669,"1,022.40",Revenue,REDACTED
Childrens & Education Services,Family Support Services,CS Direct Payments,Third Party Payments,Private Contractors,Direct Payments,20110811,670,"1,278.00",Revenue,REDACTED
Childrens & Education Services,Family Support Services,CS Direct Payments,Third Party Payments,Private Contractors,Direct Payments,20110811,671,639,Revenue,REDACTED
Childrens & Education Services,Family Support Services,CS Direct Payments,Third Party Payments,Private Contractors,Direct Payments,20110811,672,511.2,Revenue,REDACTED
Adult Social Care,Adult u65 Mental Health Needs,MH Other Servs - Mitcham West,Third Party Payments,Private Contractors,Miscellaneous Agency Services,20110811,673,553.88,Revenue,MATRIX PROPERTIES SERVICES LTD
Adult Social Care,Adult u65 Phys/Sensory Impair,PD EAST TEAM-Direct Payment,Third Party Payments,Private Contractors,Direct Payments,20110811,674,"1,240.52",Revenue,REDACTED
Childrens & Education Services,Family Support Services,CS Day Care CWD,Third Party Payments,Private Contractors,Miscellaneous Agency Services,20110811,675,"2,207.70",Revenue,COMPLETE CARE CENTRE
Childrens & Education Services,Other Ch's & Family Services,CL Leaving Care/Supp Lodgings,Third Party Payments,Private Contractors,Private Tenant/Landlord,20110811,676,"1,661.52",Revenue,REDACTED
Adult Social Care,Asylum seekers,AS Child - Res Care (Grant),Third Party Payments,Private Contractors,Miscellaneous Agency Services,20110811,677,"1,039.00",Revenue,KEYA SUPPORT LTD
Childrens & Education Services,Other Ch's & Family Services,CL Leaving Care/Supp Lodgings,Third Party Payments,Private Contractors,Miscellaneous Agency Services,20110811,678,800,Revenue,KEYA SUPPORT LTD
Adult Social Care,Asylum seekers,AS Child - Res Care (Grant),Third Party Payments,Private Contractors,Miscellaneous Agency Services,20110811,679,800,Revenue,KEYA SUPPORT LTD
Adult Social Care,Asylum seekers,AS Child - Res Care (Grant),Third Party Payments,Private Contractors,Miscellaneous Agency Services,20110811,680,800,Revenue,KEYA SUPPORT LTD
Childrens & Education Services,Family Support Services,CS Day Care CWD,Third Party Payments,Private Contractors,Miscellaneous Agency Services,20110811,681,522,Revenue,TRADEWIND RECRUITMENT
Adult Social Care,Adlt u65 Learning Disabilities,LD Day Care Agency,Third Party Payments,Private Contractors,Miscellaneous Agency Services,20110811,682,517.5,Revenue,ACT TOO
Adult Social Care,Older People 65&Over inc OP-MH,OP Hosp - Home Care External,Third Party Payments,Private Contractors,Miscellaneous Agency Services,20110811,683,"1,179.21",Revenue,BELGRAVIA NURS. & CARE BUREAU
Adult Social Care,Adult u65 Phys/Sensory Impair,PD WEST TEAM-Homecare,Third Party Payments,Private Contractors,Miscellaneous Agency Services,20110811,684,"2,112.41",Revenue,BELGRAVIA NURS. & CARE BUREAU
Adult Social Care,Older People 65&Over inc OP-MH,OP East - Home Care External,Third Party Payments,Private Contractors,Miscellaneous Agency Services,20110811,685,"7,821.92",Revenue,BELGRAVIA NURS. & CARE BUREAU
Adult Social Care,Older People 65&Over inc OP-MH,OP West - Home Care External,Third Party Payments,Private Contractors,Miscellaneous Agency Services,20110811,686,"10,766.24",Revenue,BELGRAVIA NURS. & CARE BUREAU
Adult Social Care,Adlt u65 Learning Disabilities,LD Direct Payment Scheme,Third Party Payments,Private Contractors,Direct Payments,20110811,687,502.56,Revenue,REDACTED
Adult Social Care,Older People 65&Over inc OP-MH,OP East -Direct Payment Scheme,Third Party Payments,Private Contractors,Direct Payments,20110811,688,"1,096.92",Revenue,REDACTED
Adult Social Care,Older People 65&Over inc OP-MH,OP West -Direct Payment Scheme,Third Party Payments,Private Contractors,Direct Payments,20110811,689,"1,278.00",Revenue,REDACTED
Adult Social Care,Adlt u65 Learning Disabilities,LD Direct Payment Scheme,Third Party Payments,Private Contractors,Direct Payments,20110811,690,"1,222.40",Revenue,REDACTED
Adult Social Care,Adlt u65 Learning Disabilities,LD Direct Payment Scheme,Third Party Payments,Private Contractors,Direct Payments,20110811,691,"2,275.64",Revenue,REDACTED
Adult Social Care,Adult u65 Phys/Sensory Impair,PD WEST TEAM-Direct Payment,Third Party Payments,Private Contractors,Direct Payments,20110811,692,596.4,Revenue,REDACTED
Adult Social Care,Older People 65&Over inc OP-MH,OP West -Direct Payment Scheme,Third Party Payments,Private Contractors,Direct Payments,20110811,693,603.76,Revenue,REDACTED
Adult Social Care,Older People 65&Over inc OP-MH,OP West -Direct Payment Scheme,Third Party Payments,Private Contractors,Direct Payments,20110811,694,695.28,Revenue,REDACTED
Adult Social Care,Adlt u65 Learning Disabilities,LD Direct Payment Scheme,Third Party Payments,Private Contractors,Direct Payments,20110811,695,"1,241.72",Revenue,REDACTED
Adult Social Care,Adlt u65 Learning Disabilities,LD Direct Payment Scheme,Third Party Payments,Private Contractors,Direct Payments,20110811,696,668.72,Revenue,REDACTED
Adult Social Care,Adlt u65 Learning Disabilities,LD Direct Payment Scheme,Third Party Payments,Private Contractors,Direct Payments,20110811,697,"5,464.20",Revenue,REDACTED
Adult Social Care,Adlt u65 Learning Disabilities,LD Direct Payment Scheme,Third Party Payments,Private Contractors,Direct Payments,20110811,698,593.88,Revenue,REDACTED
Adult Social Care,Adult u65 Phys/Sensory Impair,PD WEST TEAM-Direct Payment,Third Party Payments,Private Contractors,Direct Payments,20110811,699,881.6,Revenue,REDACTED
Adult Social Care,Adult u65 Phys/Sensory Impair,PD EAST TEAM-Direct Payment,Third Party Payments,Private Contractors,Direct Payments,20110811,700,"2,301.80",Revenue,REDACTED
Adult Social Care,Older People 65&Over inc OP-MH,OP West -Direct Payment Scheme,Third Party Payments,Private Contractors,Direct Payments,20110811,701,"1,911.60",Revenue,REDACTED
Adult Social Care,Older People 65&Over inc OP-MH,OP Hosp -Direct Payment Scheme,Third Party Payments,Private Contractors,Direct Payments,20110811,702,894.6,Revenue,REDACTED
Adult Social Care,Adult u65 Phys/Sensory Impair,PD WEST TEAM-Direct Payment,Third Party Payments,Private Contractors,Direct Payments,20110811,703,792,Revenue,REDACTED
Adult Social Care,Older People 65&Over inc OP-MH,OP East -Direct Payment Scheme,Third Party Payments,Private Contractors,Direct Payments,20110811,704,724.2,Revenue,REDACTED
Adult Social Care,Adult u65 Phys/Sensory Impair,PD EAST TEAM-Direct Payment,Third Party Payments,Private Contractors,Direct Payments,20110811,705,"1,150.20",Revenue,REDACTED
Adult Social Care,Adlt u65 Learning Disabilities,LD Direct Payment Scheme,Third Party Payments,Private Contractors,Direct Payments,20110811,706,566.16,Revenue,REDACTED
Adult Social Care,Adlt u65 Learning Disabilities,LD Direct Payment Scheme,Third Party Payments,Private Contractors,Direct Payments,20110811,707,566.16,Revenue,REDACTED
Adult Social Care,Older People 65&Over inc OP-MH,OP West -Direct Payment Scheme,Third Party Payments,Private Contractors,Direct Payments,20110811,708,670.96,Revenue,REDACTED
Adult Social Care,Adult u65 Phys/Sensory Impair,PD WEST TEAM-Direct Payment,Third Party Payments,Private Contractors,Direct Payments,20110811,709,722.92,Revenue,REDACTED
Adult Social Care,Adult u65 Phys/Sensory Impair,PD EAST TEAM-Direct Payment,Third Party Payments,Private Contractors,Direct Payments,20110811,710,668.88,Revenue,REDACTED
Adult Social Care,Older People 65&Over inc OP-MH,OP East -Direct Payment Scheme,Third Party Payments,Private Contractors,Direct Payments,20110811,711,"1,210.64",Revenue,REDACTED
Adult Social Care,Older People 65&Over inc OP-MH,OP West -Direct Payment Scheme,Third Party Payments,Private Contractors,Direct Payments,20110811,712,691.96,Revenue,REDACTED
Adult Social Care,Older People 65&Over inc OP-MH,OP Hosp -Direct Payment Scheme,Third Party Payments,Private Contractors,Direct Payments,20110811,713,"1,235.40",Revenue,REDACTED
Adult Social Care,Older People 65&Over inc OP-MH,OP East -Direct Payment Scheme,Third Party Payments,Private Contractors,Direct Payments,20110811,714,769.2,Revenue,REDACTED
Adult Social Care,Older People 65&Over inc OP-MH,OP East -Direct Payment Scheme,Third Party Payments,Private Contractors,Direct Payments,20110811,715,779.6,Revenue,REDACTED
Adult Social Care,Adlt u65 Learning Disabilities,LD Direct Payment Scheme,Third Party Payments,Private Contractors,Direct Payments,20110811,716,532.48,Revenue,REDACTED
Adult Social Care,Adlt u65 Learning Disabilities,LD Direct Payment Scheme,Third Party Payments,Private Contractors,Direct Payments,20110811,717,"1,437.40",Revenue,REDACTED
Adult Social Care,Adlt u65 Learning Disabilities,LD Residential Care External,Third Party Payments,Private Contractors,Miscellaneous Agency Services,20110811,718,"5,374.92",Revenue,ASHCROFT CARE SERVICES
Adult Social Care,Adult u65 Mental Health Needs,MH ResidentialCare Ext - Wim,Third Party Payments,Private Contractors,Miscellaneous Agency Services,20110812,719,"2,756.36",Revenue,ASRA G.LONDON HOUSING ASS.LTD
Adult Social Care,Adlt u65 Learning Disabilities,LD Residential Care External,Third Party Payments,Private Contractors,Miscellaneous Agency Services,20110812,720,"1,830.80",Revenue,ASRA G.LONDON HOUSING ASS.LTD
Adult Social Care,Older People 65&Over inc OP-MH,OP Hosp - Nursing Care,Third Party Payments,Private Contractors,Miscellaneous Agency Services,20110811,721,"7,276.43",Revenue,LONDON RESIDENTIAL H/CARE LTD
Adult Social Care,Older People 65&Over inc OP-MH,OP Hosp - Nursing Care,Customer and client receipts,Charges,Miscellaneous Charges X,20110811,722,"-1,350.99",Revenue,LONDON RESIDENTIAL H/CARE LTD
Adult Social Care,Older People 65&Over inc OP-MH,OP Hosp - Nursing Care,Third Party Payments,Private Contractors,Miscellaneous Agency Services,20110811,723,"2,654.87",Revenue,LONDON RESIDENTIAL H/CARE LTD
Adult Social Care,Older People 65&Over inc OP-MH,OP Hosp - Nursing Care,Customer and client receipts,Charges,Miscellaneous Charges X,20110811,724,-543.5,Revenue,LONDON RESIDENTIAL H/CARE LTD
Adult Social Care,Older People 65&Over inc OP-MH,OP East - Residential Care Ext,Third Party Payments,Private Contractors,Miscellaneous Agency Services,20110812,725,"2,056.24",Revenue,BOLTERS CORNER CARE HOME
Adult Social Care,Older People 65&Over inc OP-MH,OP East - Nursing Care,Third Party Payments,Private Contractors,Miscellaneous Agency Services,20110811,726,"2,540.00",Revenue,REDACTED
Adult Social Care,Older People 65&Over inc OP-MH,OP East - Residential Care Ext,Third Party Payments,Private Contractors,Miscellaneous Agency Services,20110811,727,"2,086.84",Revenue,CHURCH FARM RESIDENTIAL HOME
Adult Social Care,Other Adult Services,MH Residential Care Ext- SM&A,Third Party Payments,Private Contractors,Miscellaneous Agency Services,20110811,728,"2,590.00",Revenue,CRANSTOUN DRUG SERVICES
Adult Social Care,Other Adult Services,MH Residential Care Ext - SM&D,Third Party Payments,Private Contractors,Miscellaneous Agency Services,20110811,729,"2,417.40",Revenue,CRANSTOUN DRUG SERVICES
Adult Social Care,Other Adult Services,MH Residential Care Ext - SM&D,Third Party Payments,Private Contractors,Miscellaneous Agency Services,20110811,730,863.36,Revenue,CRANSTOUN DRUG SERVICES
Adult Social Care,Adlt u65 Learning Disabilities,LD Residential Care External,Third Party Payments,Private Contractors,Miscellaneous Agency Services,20110811,731,"2,672.76",Revenue,THE NAK CENTRE
Adult Social Care,Adlt u65 Learning Disabilities,LD Residential Care External,Third Party Payments,Private Contractors,Miscellaneous Agency Services,20110811,732,"3,182.08",Revenue,ODYSSEY CARE SOLUTIONS
Adult Social Care,Adlt u65 Learning Disabilities,LD Residential Care External,Third Party Payments,Private Contractors,Miscellaneous Agency Services,20110811,733,"4,984.60",Revenue,ODYSSEY CARE SOLUTIONS
Adult Social Care,Adlt u65 Learning Disabilities,LD Residential Care External,Third Party Payments,Private Contractors,Miscellaneous Agency Services,20110811,734,"4,356.00",Revenue,REDACTED
Adult Social Care,Adlt u65 Learning Disabilities,LD Residential Care External,Third Party Payments,Private Contractors,Miscellaneous Agency Services,20110815,735,"5,536.00",Revenue,THE REGARD PARTNERSHIP LTD
Adult Social Care,Adlt u65 Learning Disabilities,LD Residential Care External,Third Party Payments,Private Contractors,Miscellaneous Agency Services,20110811,736,"3,809.09",Revenue,THE REGARD PARTNERSHIP LTD
Adult Social Care,Adlt u65 Learning Disabilities,LD Residential Care External,Third Party Payments,Private Contractors,Miscellaneous Agency Services,20110811,737,"2,688.77",Revenue,THE REGARD PARTNERSHIP LTD
Adult Social Care,Older People 65&Over inc OP-MH,OP West - Residential Care Ext,Third Party Payments,Private Contractors,Miscellaneous Agency Services,20110811,738,"2,589.14",Revenue,SOUTHPARK RESIDENTIAL HOME
Adult Social Care,Older People 65&Over inc OP-MH,OP West - Residential Care Ext,Third Party Payments,Private Contractors,Miscellaneous Agency Services,20110811,739,"1,812.40",Revenue,SOUTHPARK RESIDENTIAL HOME
Adult Social Care,Older People 65&Over inc OP-MH,OP West - Residential Care Ext,Third Party Payments,Private Contractors,Miscellaneous Agency Services,20110811,740,"2,000.00",Revenue,SOUTHPARK RESIDENTIAL HOME
Adult Social Care,Older People 65&Over inc OP-MH,OP Hosp - Residential Care Ext,Third Party Payments,Private Contractors,Miscellaneous Agency Services,20110811,741,"2,006.59",Revenue,STOKEFIELD CARE HOME
Adult Social Care,Older People 65&Over inc OP-MH,OP West - Nursing Care,Third Party Payments,Private Contractors,Miscellaneous Agency Services,20110812,742,"2,400.00",Revenue,ST TERESA`S HOME FORTHE ELDER
Adult Social Care,Older People 65&Over inc OP-MH,OP West - Residential Care Ext,Third Party Payments,Private Contractors,Miscellaneous Agency Services,20110812,743,"2,341.84",Revenue,ST TERESA`S HOME FORTHE ELDER
Adult Social Care,Older People 65&Over inc OP-MH,OP West - Nursing Care,Third Party Payments,Private Contractors,Miscellaneous Agency Services,20110812,744,"2,199.12",Revenue,ST TERESA`S HOME FORTHE ELDER
Adult Social Care,Older People 65&Over inc OP-MH,OP West - Residential Care Ext,Third Party Payments,Private Contractors,Miscellaneous Agency Services,20110812,745,"1,888.16",Revenue,ST TERESA`S HOME FORTHE ELDER
Adult Social Care,Adult u65 Mental Health Needs,MH Hostels/B & B - NRTPF,Third Party Payments,Private Contractors,Miscellaneous Agency Services,20110812,746,"1,380.40",Revenue,ASTRA HOMES
Adult Social Care,Adult u65 Mental Health Needs,MH Hostels/B & B- Mitcham West,Third Party Payments,Private Contractors,Miscellaneous Agency Services,20110812,747,"1,000.00",Revenue,ASTRA HOMES
Adult Social Care,Adult u65 Mental Health Needs,MH Hostels/ B & B - Wim,Third Party Payments,Private Contractors,Miscellaneous Agency Services,20110812,748,"1,222.04",Revenue,ASTRA HOMES
Adult Social Care,Adult u65 Mental Health Needs,MH Hostels/ B & B - Wim,Third Party Payments,Private Contractors,Miscellaneous Agency Services,20110812,749,763.24,Revenue,ASTRA HOMES
Adult Social Care,Adult u65 Mental Health Needs,MH Res Care Ext- Mitcham West,Third Party Payments,Private Contractors,Miscellaneous Agency Services,20110812,750,"2,074.72",Revenue,ASTRA HOMES
Adult Social Care,Adlt u65 Learning Disabilities,LD Supported Housing,Third Party Payments,Private Contractors,Miscellaneous Agency Services,20110812,751,965.68,Revenue,ASTRA HOMES
Adult Social Care,Adlt u65 Learning Disabilities,LD Supported Housing,Third Party Payments,Private Contractors,Miscellaneous Agency Services,20110812,752,"1,287.68",Revenue,ASTRA HOMES
Adult Social Care,Older People 65&Over inc OP-MH,OP East - Nursing Care,Third Party Payments,Private Contractors,Miscellaneous Agency Services,20110812,753,"2,143.73",Revenue,BRIDGE HOUSE CARE CENTRE
Adult Social Care,Older People 65&Over inc OP-MH,OP East - Nursing Care,Customer and client receipts,Charges,Miscellaneous Charges X,20110812,754,-782.65,Revenue,BRIDGE HOUSE CARE CENTRE
Adult Social Care,Older People 65&Over inc OP-MH,OP Hosp - Nursing Care,Third Party Payments,Private Contractors,Miscellaneous Agency Services,20110812,755,"2,805.19",Revenue,CARE UK
Adult Social Care,Older People 65&Over inc OP-MH,OP East - Nursing Care,Third Party Payments,Private Contractors,Miscellaneous Agency Services,20110812,756,"2,741.13",Revenue,CLAREMONT CARE SVS LTD
Adult Social Care,Older People 65&Over inc OP-MH,OP East - Nursing Care,Customer and client receipts,Charges,Miscellaneous Charges X,20110812,757,-543.5,Revenue,CLAREMONT CARE SVS LTD
Adult Social Care,Older People 65&Over inc OP-MH,OP Hosp - Residential Care Ext,Third Party Payments,Private Contractors,Miscellaneous Agency Services,20110812,758,"1,423.71",Revenue,CLOYDA REST HOME
Adult Social Care,Adult u65 Mental Health Needs,MH ResidentialCare Ext - Wim,Third Party Payments,Private Contractors,Miscellaneous Agency Services,20110812,759,"4,440.65",Revenue,COMMUNITY HOUSING & THERAPY
Adult Social Care,Adult u65 Mental Health Needs,MH Res Care Ext- Mitcham West,Third Party Payments,Private Contractors,Miscellaneous Agency Services,20110812,760,"4,875.00",Revenue,COMMUNITY HOUSING & THERAPY
Adult Social Care,Older People 65&Over inc OP-MH,OP West - Nursing Care,Third Party Payments,Private Contractors,Miscellaneous Agency Services,20110815,761,"2,233.68",Revenue,GARTH HOUSE NURSING HOME
Adult Social Care,Older People 65&Over inc OP-MH,OP East - Residential Care Ext,Third Party Payments,Private Contractors,Miscellaneous Agency Services,20110812,762,"1,692.40",Revenue,GENESIS CARE HOME
Adult Social Care,Adlt u65 Learning Disabilities,LD Comm -Residential-Campus Hm,Third Party Payments,Private Contractors,Miscellaneous Agency Services,20110812,763,"14,234.08",Revenue,HARBOUR CARE GROUP
Adult Social Care,Older People 65&Over inc OP-MH,OP Hosp - Residential Care Ext,Third Party Payments,Private Contractors,Miscellaneous Agency Services,20110812,764,"2,890.80",Revenue,NEWENT HOUSE
Adult Social Care,Older People 65&Over inc OP-MH,OP West - Residential Care Ext,Third Party Payments,Private Contractors,Miscellaneous Agency Services,20110812,765,"2,100.00",Revenue,THE DEVONSHIRE RESID CARE HOME
Adult Social Care,Older People 65&Over inc OP-MH,OP West - Residential Care Ext,Third Party Payments,Private Contractors,Miscellaneous Agency Services,20110812,766,"2,200.00",Revenue,THRESHFIELD CRT NURSING HOME
Adult Social Care,Adlt u65 Learning Disabilities,LD Home Care External,Third Party Payments,Private Contractors,Miscellaneous Agency Services,20110812,767,"19,321.28",Revenue,UNITED RESPONSE
Adult Social Care,Adlt u65 Learning Disabilities,LD Residential Care External,Third Party Payments,Private Contractors,Miscellaneous Agency Services,20110812,768,"1,160.00",Revenue,VITALISE
Adult Social Care,Older People 65&Over inc OP-MH,OP Hosp - Residential Care Ext,Third Party Payments,Private Contractors,Miscellaneous Agency Services,20110812,769,"1,812.40",Revenue,WHITECLIFF RESID. CARE HOME
Childrens & Education Services,Other Ch's & Family Services,CL Leaving Care/Supp Lodgings,Third Party Payments,Private Contractors,Supported Lodgings,20110812,770,600,Revenue,REDACTED
Childrens & Education Services,Family Support Services,CS Day Care CWD,Third Party Payments,Private Contractors,Playscheme,20110812,771,"1,320.00",Revenue,LINDEN LODGE SCHOOL
Adult Social Care,Asylum seekers,AS Child - Res Care (Grant),Third Party Payments,Private Contractors,Miscellaneous Agency Services,20110812,772,"1,000.00",Revenue,LIVINGSTONE SUPPORTED HOUSING
Childrens & Education Services,Other Ch's & Family Services,CL Adoption Allowances,Transfer Payments,Adult Soc Servs Clients,Adodption Allowances,20110812,773,562.88,Revenue,REDACTED
Childrens & Education Services,Other Ch's & Family Services,CL Adoption Allowances,Transfer Payments,Adult Soc Servs Clients,Adodption Allowances,20110812,774,607.08,Revenue,REDACTED
Childrens & Education Services,Other Ch's & Family Services,CL Adoption Allowances,Transfer Payments,Adult Soc Servs Clients,Adodption Allowances,20110812,775,912.4,Revenue,REDACTED
Childrens & Education Services,Family Support Services,CL Residence Orders,Supplies and Services,Grants and Subscriptions,Residence Orders,20110812,776,607.78,Revenue,REDACTED
Childrens & Education Services,Family Support Services,CL Residence Orders,Supplies and Services,Grants and Subscriptions,Residence Orders,20110812,777,879.02,Revenue,REDACTED
Adult Social Care,Asylum seekers,AS Child Res Care  (No Grant),Third Party Payments,Private Contractors,Supported Lodgings,20110816,778,992.09,Revenue,LONDON BOROUGH OF CROYDON
Adult Social Care,Adult u65 Mental Health Needs,MH Home Care External-MitWest,Third Party Payments,Private Contractors,Miscellaneous Agency Services,20110816,779,552.68,Revenue,GOLDSBOROUGH HOMECARE
Adult Social Care,Adult u65 Phys/Sensory Impair,PD WEST TEAM-Homecare,Third Party Payments,Private Contractors,Miscellaneous Agency Services,20110816,780,837.28,Revenue,GOLDSBOROUGH HOMECARE
Adult Social Care,Older People 65&Over inc OP-MH,OP West - Carer Services,Third Party Payments,Private Contractors,Miscellaneous Agency Services,20110816,781,"1,334.42",Revenue,GOLDSBOROUGH HOMECARE
Adult Social Care,Older People 65&Over inc OP-MH,OP East - Carer Services,Third Party Payments,Private Contractors,Miscellaneous Agency Services,20110816,782,"2,010.43",Revenue,GOLDSBOROUGH HOMECARE
Adult Social Care,Adult u65 Phys/Sensory Impair,PD EAST TEAM-Homecare,Third Party Payments,Private Contractors,Miscellaneous Agency Services,20110816,783,"2,210.67",Revenue,GOLDSBOROUGH HOMECARE
Adult Social Care,Older People 65&Over inc OP-MH,OP Hosp - Home Care External,Third Party Payments,Private Contractors,Miscellaneous Agency Services,20110816,784,"2,664.24",Revenue,GOLDSBOROUGH HOMECARE
Adult Social Care,Older People 65&Over inc OP-MH,OP West - Home Care External,Third Party Payments,Private Contractors,Miscellaneous Agency Services,20110816,785,"12,688.79",Revenue,GOLDSBOROUGH HOMECARE
Adult Social Care,Older People 65&Over inc OP-MH,OP East - Home Care External,Third Party Payments,Private Contractors,Miscellaneous Agency Services,20110816,786,"46,013.75",Revenue,GOLDSBOROUGH HOMECARE
Adult Social Care,Adult u65 Phys/Sensory Impair,PD EAST TEAM-Homecare,Third Party Payments,Private Contractors,Miscellaneous Agency Services,20110816,787,"1,135.94",Revenue,HFH HOMECARE LTD
Adult Social Care,Older People 65&Over inc OP-MH,OP East - Carer Services,Third Party Payments,Private Contractors,Miscellaneous Agency Services,20110816,788,"1,690.08",Revenue,HFH HOMECARE LTD
Adult Social Care,Older People 65&Over inc OP-MH,OP West - Home Care External,Third Party Payments,Private Contractors,Miscellaneous Agency Services,20110816,789,"2,052.27",Revenue,HFH HOMECARE LTD
Adult Social Care,Older People 65&Over inc OP-MH,OP East - Home Care External,Third Party Payments,Private Contractors,Miscellaneous Agency Services,20110816,790,"2,109.44",Revenue,HFH HOMECARE LTD
Adult Social Care,Adlt u65 Learning Disabilities,LD Day Care Agency,Third Party Payments,Private Contractors,Miscellaneous Agency Services,20110816,791,556.2,Revenue,THRIVE
Childrens & Education Services,Family Support Services,CL Residence Orders,Supplies and Services,Grants and Subscriptions,Residence Orders,20110816,792,607.78,Revenue,REDACTED
Adult Social Care,Adlt u65 Learning Disabilities,LD Direct Payment Scheme,Third Party Payments,Private Contractors,Direct Payments,20110816,793,"2,626.00",Revenue,REDACTED
Adult Social Care,Older People 65&Over inc OP-MH,OP West -Direct Payment Scheme,Third Party Payments,Private Contractors,Direct Payments,20110816,794,"1,023.47",Revenue,REDACTED
Adult Social Care,Adlt u65 Learning Disabilities,LD Direct Payment Scheme,Third Party Payments,Private Contractors,Direct Payments,20110816,795,529.04,Revenue,REDACTED
Adult Social Care,Adlt u65 Learning Disabilities,LD Direct Payment Scheme,Third Party Payments,Private Contractors,Direct Payments,20110816,796,"1,022.40",Revenue,REDACTED
Adult Social Care,Adlt u65 Learning Disabilities,LD Direct Payment Scheme,Third Party Payments,Private Contractors,Direct Payments,20110816,797,715.89,Revenue,REDACTED
Adult Social Care,Older People 65&Over inc OP-MH,OP East - Nursing Care,Third Party Payments,Private Contractors,Miscellaneous Agency Services,20110816,798,"2,552.00",Revenue,BEVERLEY LODGE NURSING HOME
Adult Social Care,Older People 65&Over inc OP-MH,OP Hosp - Nursing Care,Third Party Payments,Private Contractors,Miscellaneous Agency Services,20110816,799,"2,341.84",Revenue,CRNH LTD
Adult Social Care,Older People 65&Over inc OP-MH,OP Hosp - Residential Care Ext,Third Party Payments,Private Contractors,Miscellaneous Agency Services,20110816,800,"1,800.00",Revenue,GABLE LODGE
Adult Social Care,Older People 65&Over inc OP-MH,OP East - Residential Care Ext,Third Party Payments,Private Contractors,Miscellaneous Agency Services,20110816,801,"1,812.40",Revenue,GRASMERE RESIDENTIAL HOME
Adult Social Care,Adlt u65 Learning Disabilities,LD Residential Care External,Third Party Payments,Private Contractors,Miscellaneous Agency Services,20110816,802,"5,535.52",Revenue,THE REGARD PARTNERSHIP LTD
Adult Social Care,Adlt u65 Learning Disabilities,LD Residential Care External,Third Party Payments,Private Contractors,Miscellaneous Agency Services,20110816,803,"2,464.71",Revenue,THE REGARD PARTNERSHIP LTD
Adult Social Care,Adlt u65 Learning Disabilities,LD Residential Care External,Third Party Payments,Private Contractors,Miscellaneous Agency Services,20110816,804,"2,240.64",Revenue,THE REGARD PARTNERSHIP LTD
Adult Social Care,Older People 65&Over inc OP-MH,OP East - Nursing Care,Third Party Payments,Private Contractors,Miscellaneous Agency Services,20110816,805,"-1,624.00",Revenue,SOUTHERN CROSS HEALTHCARE LTD
Adult Social Care,Older People 65&Over inc OP-MH,OP West - Misc services,Third Party Payments,Private Contractors,Miscellaneous Agency Services,20110817,806,580,Revenue,TOTAL PROPERTY SERVICES
Childrens & Education Services,Other Ch's & Family Services,CL Leaving Care/Supp Lodgings,Third Party Payments,Private Contractors,Supported Lodgings,20110816,807,600,Revenue,REDACTED
Adult Social Care,Older People 65&Over inc OP-MH,OP East - Residential Care Ext,Third Party Payments,Private Contractors,Miscellaneous Agency Services,20110816,808,"6,807.29",Revenue,WOODLANDS
Adult Social Care,Adult u65 Phys/Sensory Impair,PD WEST TEAM-Homecare,Third Party Payments,Private Contractors,Miscellaneous Agency Services,20110816,809,"1,236.00",Revenue,ABLE COMMUNITY CARE
Adult Social Care,Other Adult Services,MH Day Care - SM&Drugs,Third Party Payments,Private Contractors,Miscellaneous Agency Services,20110817,810,979,Revenue,CHEMICAL DEPENDENCY CTR.LTD.
Adult Social Care,Adult u65 Phys/Sensory Impair,PD EAST TEAM-Homecare,Third Party Payments,Private Contractors,Miscellaneous Agency Services,20110816,811,660.9,Revenue,ENARA COMMUNITY CARE
Adult Social Care,Older People 65&Over inc OP-MH,OP East - Carer Services,Third Party Payments,Private Contractors,Miscellaneous Agency Services,20110816,812,795.65,Revenue,ENARA COMMUNITY CARE
Adult Social Care,Older People 65&Over inc OP-MH,OP West - Home Care External,Third Party Payments,Private Contractors,Miscellaneous Agency Services,20110816,813,"8,477.30",Revenue,ENARA COMMUNITY CARE
Adult Social Care,Older People 65&Over inc OP-MH,OP East - Home Care External,Third Party Payments,Private Contractors,Miscellaneous Agency Services,20110816,814,"9,450.51",Revenue,ENARA COMMUNITY CARE
Adult Social Care,Adult u65 Mental Health Needs,MH Home Care External - Wim,Third Party Payments,Private Contractors,Miscellaneous Agency Services,20110816,815,877.31,Revenue,PLAN PERSONNEL
Adult Social Care,Older People 65&Over inc OP-MH,OP Hosp - Home Care External,Third Party Payments,Private Contractors,Miscellaneous Agency Services,20110816,816,"1,306.63",Revenue,PLAN PERSONNEL
Adult Social Care,Adult u65 Phys/Sensory Impair,PD WEST TEAM-Homecare,Third Party Payments,Private Contractors,Miscellaneous Agency Services,20110816,817,"1,438.49",Revenue,PLAN PERSONNEL
Adult Social Care,Adult u65 Phys/Sensory Impair,PD EAST TEAM-Homecare,Third Party Payments,Private Contractors,Miscellaneous Agency Services,20110816,818,"1,632.11",Revenue,PLAN PERSONNEL
Adult Social Care,Adlt u65 Learning Disabilities,LD Home Care External,Third Party Payments,Private Contractors,Miscellaneous Agency Services,20110816,819,"4,653.33",Revenue,PLAN PERSONNEL
Adult Social Care,Older People 65&Over inc OP-MH,OP East - Home Care External,Third Party Payments,Private Contractors,Miscellaneous Agency Services,20110816,820,"14,448.15",Revenue,PLAN PERSONNEL
Adult Social Care,Older People 65&Over inc OP-MH,OP West - Home Care External,Third Party Payments,Private Contractors,Miscellaneous Agency Services,20110816,821,"19,617.66",Revenue,PLAN PERSONNEL
Adult Social Care,Older People 65&Over inc OP-MH,OP East - Daycare,Third Party Payments,Private Contractors,Miscellaneous Agency Services,20110816,822,845.6,Revenue,WANDSWORTH BENGALI WELFARE ASS
Adult Social Care,Older People 65&Over inc OP-MH,OP West - Daycare,Third Party Payments,Private Contractors,Miscellaneous Agency Services,20110816,823,"4,956.46",Revenue,WOODLANDS
Adult Social Care,Older People 65&Over inc OP-MH,OP - Hosp - Daycare,Third Party Payments,Private Contractors,Miscellaneous Agency Services,20110816,824,"7,120.99",Revenue,WOODLANDS
Adult Social Care,Older People 65&Over inc OP-MH,OP East - Daycare,Third Party Payments,Private Contractors,Miscellaneous Agency Services,20110816,825,"15,057.60",Revenue,WOODLANDS
Adult Social Care,Older People 65&Over inc OP-MH,OP East - Residential Care Ext,Third Party Payments,Private Contractors,Miscellaneous Agency Services,20110816,826,"2,681.97",Revenue,CARTER HOUSE
Adult Social Care,Older People 65&Over inc OP-MH,OP East - Residential Care Ext,Third Party Payments,Private Contractors,Miscellaneous Agency Services,20110816,827,"1,836.46",Revenue,CARTER HOUSE
Adult Social Care,Adult u65 Mental Health Needs,MH Adult Placement Cont-Wim,Third Party Payments,Private Contractors,Accommodation Based Support,20110816,828,"12,972.80",Revenue,SW LONDON ST GEORGES NHS TRUST
Adult Social Care,Adult u65 Phys/Sensory Impair,PD EAST TEAM-Hostel,Third Party Payments,Private Contractors,Miscellaneous Agency Services,20110816,829,"1,285.50",Revenue,ADMINLAND LTD
Adult Social Care,Older People 65&Over inc OP-MH,OP West - Residential Care Ext,Third Party Payments,Private Contractors,Miscellaneous Agency Services,20110816,830,"1,679.46",Revenue,CARTER HOUSE
Adult Social Care,Older People 65&Over inc OP-MH,OP East - Nursing Care,Third Party Payments,Private Contractors,Miscellaneous Agency Services,20110816,831,"2,552.88",Revenue,CARTER HOUSE
Adult Social Care,Older People 65&Over inc OP-MH,OP East - Residential Care Ext,Third Party Payments,Private Contractors,Miscellaneous Agency Services,20110816,832,"4,662.92",Revenue,CARTER HOUSE
Adult Social Care,Older People 65&Over inc OP-MH,OP Hosp - Residential Care Ext,Third Party Payments,Private Contractors,Miscellaneous Agency Services,20110816,833,"5,111.40",Revenue,CARTER HOUSE
Adult Social Care,Older People 65&Over inc OP-MH,OP West - Nursing Care,Third Party Payments,Private Contractors,Miscellaneous Agency Services,20110816,834,"10,302.69",Revenue,CARTER HOUSE
Adult Social Care,Older People 65&Over inc OP-MH,OP Hosp - Nursing Care,Third Party Payments,Private Contractors,Miscellaneous Agency Services,20110816,835,"12,582.06",Revenue,CARTER HOUSE
Adult Social Care,Older People 65&Over inc OP-MH,OP West - Residential Care Ext,Third Party Payments,Private Contractors,Miscellaneous Agency Services,20110816,836,"30,126.18",Revenue,CARTER HOUSE
Adult Social Care,Older People 65&Over inc OP-MH,OP West - Residential Care Ext,Customer and client receipts,Charges,Miscellaneous Charges X,20110816,837,"-1,008.40",Revenue,CARTER HOUSE
Adult Social Care,Older People 65&Over inc OP-MH,OP East - Nursing Care,Third Party Payments,Private Contractors,Miscellaneous Agency Services,20110816,838,"2,552.88",Revenue,CARTER HOUSE
Adult Social Care,Older People 65&Over inc OP-MH,OP East - Residential Care Ext,Third Party Payments,Private Contractors,Miscellaneous Agency Services,20110816,839,"3,932.72",Revenue,CARTER HOUSE
Adult Social Care,Older People 65&Over inc OP-MH,OP West - Nursing Care,Third Party Payments,Private Contractors,Miscellaneous Agency Services,20110816,840,"10,211.52",Revenue,CARTER HOUSE
Adult Social Care,Older People 65&Over inc OP-MH,OP Hosp - Residential Care Ext,Third Party Payments,Private Contractors,Miscellaneous Agency Services,20110816,841,"10,222.80",Revenue,CARTER HOUSE
Adult Social Care,Older People 65&Over inc OP-MH,OP Hosp - Nursing Care,Third Party Payments,Private Contractors,Miscellaneous Agency Services,20110816,842,"12,308.53",Revenue,CARTER HOUSE
Adult Social Care,Older People 65&Over inc OP-MH,OP West - Residential Care Ext,Third Party Payments,Private Contractors,Miscellaneous Agency Services,20110816,843,"27,868.14",Revenue,CARTER HOUSE
Adult Social Care,Older People 65&Over inc OP-MH,OP West - Residential Care Ext,Customer and client receipts,Charges,Miscellaneous Charges X,20110816,844,"-1,008.40",Revenue,CARTER HOUSE
Adult Social Care,Older People 65&Over inc OP-MH,OP East - Nursing Care,Third Party Payments,Private Contractors,Miscellaneous Agency Services,20110816,845,"2,406.60",Revenue,HERITAGE CARE CENTRE
Adult Social Care,Older People 65&Over inc OP-MH,OP East - Nursing Care,Third Party Payments,Private Contractors,Miscellaneous Agency Services,20110816,846,"2,560.00",Revenue,KEW HOUSE
Adult Social Care,Adlt u65 Learning Disabilities,LD Residential Care External,Third Party Payments,Private Contractors,Miscellaneous Agency Services,20110817,847,"3,256.32",Revenue,L'ARCHE
Adult Social Care,Older People 65&Over inc OP-MH,OP East - Residential Care Ext,Third Party Payments,Private Contractors,Miscellaneous Agency Services,20110816,848,"1,878.52",Revenue,SOUTHERN CROSS HEALTHCARE LTD
Adult Social Care,Older People 65&Over inc OP-MH,OP East - Nursing Care,Third Party Payments,Private Contractors,Miscellaneous Agency Services,20110816,849,"2,237.64",Revenue,SOUTHERN CROSS HEALTHCARE LTD
Adult Social Care,Older People 65&Over inc OP-MH,OP Hosp - Nursing Care,Third Party Payments,Private Contractors,Miscellaneous Agency Services,20110816,850,"2,237.64",Revenue,SOUTHERN CROSS HEALTHCARE LTD
Adult Social Care,Older People 65&Over inc OP-MH,OP East - Residential Care Ext,Third Party Payments,Private Contractors,Miscellaneous Agency Services,20110816,851,"1,878.52",Revenue,SOUTHERN CROSS HEALTHCARE LTD
Adult Social Care,Older People 65&Over inc OP-MH,OP Hosp - Residential Care Ext,Third Party Payments,Private Contractors,Miscellaneous Agency Services,20110816,852,"2,840.00",Revenue,SOUTHERN CROSS HEALTHCARE LTD
Adult Social Care,Older People 65&Over inc OP-MH,OP Hosp - Residential Care Ext,Third Party Payments,Private Contractors,Miscellaneous Agency Services,20110816,853,"1,878.52",Revenue,SOUTHERN CROSS HEALTHCARE LTD
Adult Social Care,Older People 65&Over inc OP-MH,OP Hosp - Residential Care Ext,Third Party Payments,Private Contractors,Miscellaneous Agency Services,20110816,854,"1,878.52",Revenue,SOUTHERN CROSS HEALTHCARE LTD
Adult Social Care,Older People 65&Over inc OP-MH,OP East - Residential Care Ext,Third Party Payments,Private Contractors,Miscellaneous Agency Services,20110816,855,"1,878.52",Revenue,SOUTHERN CROSS HEALTHCARE LTD
Adult Social Care,Older People 65&Over inc OP-MH,OP Hosp - Residential Care Ext,Third Party Payments,Private Contractors,Miscellaneous Agency Services,20110816,856,"1,878.52",Revenue,SOUTHERN CROSS HEALTHCARE LTD
Adult Social Care,Older People 65&Over inc OP-MH,OP East - Nursing Care,Third Party Payments,Private Contractors,Miscellaneous Agency Services,20110816,857,"2,237.64",Revenue,SOUTHERN CROSS HEALTHCARE LTD
Adult Social Care,Older People 65&Over inc OP-MH,OP East - Residential Care Ext,Third Party Payments,Private Contractors,Miscellaneous Agency Services,20110816,858,"1,878.52",Revenue,SOUTHERN CROSS HEALTHCARE LTD
Adult Social Care,Older People 65&Over inc OP-MH,OP East - Residential Care Ext,Third Party Payments,Private Contractors,Miscellaneous Agency Services,20110816,859,"2,000.00",Revenue,SOUTHERN CROSS HEALTHCARE LTD
Childrens & Education Services,Children Looked After (24hrs+),CL Fostering Services,Supplies and Services,Services,Task Based Fostering,20110816,860,"1,265.20",Revenue,REDACTED
Childrens & Education Services,Children Looked After (24hrs+),CL Fostering Services,Supplies and Services,Services,Task Based Fostering,20110816,861,"1,783.86",Revenue,REDACTED
Childrens & Education Services,Children Looked After (24hrs+),CL Fostering Services,Supplies and Services,Services,Task Based Fostering,20110816,862,"1,502.66",Revenue,REDACTED
Childrens & Education Services,Children Looked After (24hrs+),CL Fostering Services,Supplies and Services,Services,Task Based Fostering,20110816,863,"1,296.66",Revenue,REDACTED
Childrens & Education Services,Children Looked After (24hrs+),CL Fostering Services,Supplies and Services,Services,Task Based Fostering,20110816,864,"2,266.12",Revenue,REDACTED
Childrens & Education Services,Children Looked After (24hrs+),CL Fostering Services,Supplies and Services,Services,Task Based Fostering,20110816,865,"2,324.34",Revenue,REDACTED
Childrens & Education Services,Children Looked After (24hrs+),CL Fostering Services,Supplies and Services,Services,Task Based Fostering,20110816,866,"3,491.62",Revenue,REDACTED
Childrens & Education Services,Children Looked After (24hrs+),CL Fostering Services,Supplies and Services,Services,Task Based Fostering,20110816,867,956.98,Revenue,REDACTED
Childrens & Education Services,Children Looked After (24hrs+),CL Fostering Services,Supplies and Services,Services,Task Based Fostering,20110816,868,"2,307.36",Revenue,REDACTED
Childrens & Education Services,Children Looked After (24hrs+),CL Fostering Services,Supplies and Services,Services,Task Based Fostering,20110816,869,"2,641.56",Revenue,REDACTED
Childrens & Education Services,Children Looked After (24hrs+),CL Fostering Services,Supplies and Services,Services,Task Based Fostering,20110816,870,739.2,Revenue,REDACTED
Childrens & Education Services,Children Looked After (24hrs+),CL Fostering Services,Supplies and Services,Services,Task Based Fostering,20110816,871,"1,560.88",Revenue,REDACTED
Childrens & Education Services,Children Looked After (24hrs+),CL Fostering Services,Supplies and Services,Services,Task Based Fostering,20110816,872,"1,320.92",Revenue,REDACTED
Childrens & Education Services,Children Looked After (24hrs+),CL Fostering Services,Supplies and Services,Services,Task Based Fostering,20110816,873,"1,543.90",Revenue,REDACTED
Childrens & Education Services,Children Looked After (24hrs+),CL Fostering Services,Supplies and Services,Services,Task Based Fostering,20110816,874,780.44,Revenue,REDACTED
Childrens & Education Services,Children Looked After (24hrs+),CL Fostering Services,Supplies and Services,Services,Task Based Fostering,20110816,875,"2,241.86",Revenue,REDACTED
Childrens & Education Services,Children Looked After (24hrs+),CL Fostering Services,Supplies and Services,Services,Task Based Fostering,20110816,876,844.8,Revenue,REDACTED
Childrens & Education Services,Children Looked After (24hrs+),CL Fostering Services,Supplies and Services,Services,Task Based Fostering,20110816,877,739.2,Revenue,REDACTED
Childrens & Education Services,Children Looked After (24hrs+),CL Fostering Services,Supplies and Services,Services,Task Based Fostering,20110816,878,"2,307.36",Revenue,REDACTED
Childrens & Education Services,Children Looked After (24hrs+),CL Fostering Services,Supplies and Services,Services,Task Based Fostering,20110816,879,739.2,Revenue,REDACTED
Adult Social Care,Adult u65 Phys/Sensory Impair,PD EAST TEAM-Hostel,Third Party Payments,Private Contractors,Miscellaneous Agency Services,20110817,880,"1,328.35",Revenue,ADMINLAND LTD
Adult Social Care,Adult u65 Phys/Sensory Impair,PD EAST TEAM-Hostel,Third Party Payments,Private Contractors,Miscellaneous Agency Services,20110817,881,"1,285.50",Revenue,ADMINLAND LTD
Adult Social Care,Adult u65 Phys/Sensory Impair,PD EAST TEAM-Hostel,Third Party Payments,Private Contractors,Miscellaneous Agency Services,20110817,882,"1,328.35",Revenue,ADMINLAND LTD
Adult Social Care,Adlt u65 Learning Disabilities,LD Residential Care External,Third Party Payments,Private Contractors,Miscellaneous Agency Services,20110817,883,"1,680.00",Revenue,BROADHAM CARE LTD
Adult Social Care,Adlt u65 Learning Disabilities,LD Residential Care External,Third Party Payments,Private Contractors,Miscellaneous Agency Services,20110817,884,"6,725.24",Revenue,BROADHAM CARE LTD
Adult Social Care,Adlt u65 Learning Disabilities,LD Residential Care External,Third Party Payments,Private Contractors,Miscellaneous Agency Services,20110817,885,"8,212.00",Revenue,BROADHAM CARE LTD
Adult Social Care,Adlt u65 Learning Disabilities,LD Residential Care External,Third Party Payments,Private Contractors,Miscellaneous Agency Services,20110817,886,"5,680.00",Revenue,BROADHAM CARE LTD
Adult Social Care,Older People 65&Over inc OP-MH,OP West - Nursing Care,Third Party Payments,Private Contractors,Miscellaneous Agency Services,20110817,887,"2,406.60",Revenue,BUPA CARE HOMES
Adult Social Care,Adult u65 Phys/Sensory Impair,PD EAST TEAM-Nursing,Third Party Payments,Private Contractors,Miscellaneous Agency Services,20110817,888,"2,819.80",Revenue,BUPA CARE HOMES
Adult Social Care,Older People 65&Over inc OP-MH,OP West - Residential Care Ext,Third Party Payments,Private Contractors,Miscellaneous Agency Services,20110817,889,"3,995.00",Revenue,BUPA CARE HOMES
Adult Social Care,Older People 65&Over inc OP-MH,OP Hosp - Nursing Care,Third Party Payments,Private Contractors,Miscellaneous Agency Services,20110817,890,"9,626.40",Revenue,BUPA CARE HOMES
Adult Social Care,Older People 65&Over inc OP-MH,OP Hosp - Residential Care Ext,Third Party Payments,Private Contractors,Miscellaneous Agency Services,20110817,891,"10,077.96",Revenue,BUPA CARE HOMES
Adult Social Care,Older People 65&Over inc OP-MH,OP East - Residential Care Ext,Third Party Payments,Private Contractors,Miscellaneous Agency Services,20110817,892,"17,887.04",Revenue,BUPA CARE HOMES
Adult Social Care,Older People 65&Over inc OP-MH,OP East - Nursing Care,Third Party Payments,Private Contractors,Miscellaneous Agency Services,20110817,893,"21,659.40",Revenue,BUPA CARE HOMES
Adult Social Care,Adult u65 Phys/Sensory Impair,PD EAST TEAM-Nursing,Third Party Payments,Private Contractors,Miscellaneous Agency Services,20110817,894,"4,000.00",Revenue,BUPA CARE HOMES (ANS) LTD
Adult Social Care,Adult u65 Phys/Sensory Impair,PD EAST TEAM-Nursing,Third Party Payments,Private Contractors,Miscellaneous Agency Services,20110817,895,"4,000.00",Revenue,BUPA CARE HOMES (ANS) LTD
Adult Social Care,Adult u65 Phys/Sensory Impair,PD EAST TEAM-Nursing,Third Party Payments,Private Contractors,Miscellaneous Agency Services,20110817,896,"4,000.00",Revenue,BUPA CARE HOMES (ANS) LTD
Adult Social Care,Adult u65 Phys/Sensory Impair,PD EAST TEAM-Nursing,Third Party Payments,Private Contractors,Miscellaneous Agency Services,20110817,897,555.9,Revenue,BUPA CARE HOMES (ANS) LTD
Adult Social Care,Adult u65 Phys/Sensory Impair,PD EAST TEAM-Nursing,Third Party Payments,Private Contractors,Miscellaneous Agency Services,20110817,898,"4,000.00",Revenue,BUPA CARE HOMES (ANS) LTD
Adult Social Care,Adult u65 Phys/Sensory Impair,PD EAST TEAM-Nursing,Third Party Payments,Private Contractors,Miscellaneous Agency Services,20110817,899,"4,000.00",Revenue,BUPA CARE HOMES (ANS) LTD
Adult Social Care,Adult u65 Phys/Sensory Impair,PD EAST TEAM-Nursing,Third Party Payments,Private Contractors,Miscellaneous Agency Services,20110817,900,"4,000.00",Revenue,BUPA CARE HOMES (ANS) LTD
Adult Social Care,Adult u65 Phys/Sensory Impair,PD EAST TEAM-Nursing,Third Party Payments,Private Contractors,Miscellaneous Agency Services,20110822,901,"4,000.00",Revenue,BUPA CARE HOMES (ANS) LTD
Adult Social Care,Older People 65&Over inc OP-MH,OP East - Residential Care Ext,Third Party Payments,Private Contractors,Miscellaneous Agency Services,20110817,902,"1,717.80",Revenue,CHERRY TREE HOUSE
Adult Social Care,Older People 65&Over inc OP-MH,OP Hosp - Residential Care Ext,Third Party Payments,Private Contractors,Miscellaneous Agency Services,20110817,903,"1,812.40",Revenue,CHERRY TREE HOUSE
Adult Social Care,Older People 65&Over inc OP-MH,OP West - Residential Care Ext,Third Party Payments,Private Contractors,Miscellaneous Agency Services,20110817,904,"1,940.00",Revenue,CHERRY TREE HOUSE
Adult Social Care,Older People 65&Over inc OP-MH,OP East - Nursing Care,Third Party Payments,Private Contractors,Miscellaneous Agency Services,20110817,905,"2,332.36",Revenue,ELMWOOD
Adult Social Care,Adlt u65 Learning Disabilities,LD Residential Care External,Third Party Payments,Private Contractors,Miscellaneous Agency Services,20110817,906,"3,800.00",Revenue,ST GEORGES RES. CARE HOME
Adult Social Care,Adlt u65 Learning Disabilities,LD Residential Care External,Third Party Payments,Private Contractors,Miscellaneous Agency Services,20110817,907,"3,800.00",Revenue,ST GEORGES RES. CARE HOME
Adult Social Care,Adlt u65 Learning Disabilities,LD Comm -Residential-Campus Hm,Third Party Payments,Private Contractors,Miscellaneous Agency Services,20110817,908,"8,896.30",Revenue,HARBOUR CARE GROUP
Adult Social Care,Older People 65&Over inc OP-MH,OP East - Nursing Care,Third Party Payments,Private Contractors,Miscellaneous Agency Services,20110817,909,"2,577.00",Revenue,SOUTHERN CROSS HEALTHCARE
Adult Social Care,Adlt u65 Learning Disabilities,LD Residential Care External,Third Party Payments,Private Contractors,Miscellaneous Agency Services,20110817,910,"2,087.64",Revenue,LINKAGE COMMUNITY TR.LONG-STAY
Adult Social Care,Adlt u65 Learning Disabilities,LD Residential Care External,Third Party Payments,Private Contractors,Miscellaneous Agency Services,20110817,911,"5,535.52",Revenue,THE REGARD PARTNERSHIP LTD
Adult Social Care,Adlt u65 Learning Disabilities,LD Residential Care External,Third Party Payments,Private Contractors,Miscellaneous Agency Services,20110817,912,"5,200.00",Revenue,THE REGARD PARTNERSHIP LTD
Adult Social Care,Adlt u65 Learning Disabilities,LD Residential Care External,Customer and client receipts,Charges,Miscellaneous Charges X,20110817,913,-512.7,Revenue,THE REGARD PARTNERSHIP LTD
Adult Social Care,Older People 65&Over inc OP-MH,OP East - Residential Care Ext,Third Party Payments,Private Contractors,Miscellaneous Agency Services,20110817,914,"1,214.29",Revenue,SOUTHERN CROSS HEALTHCARE LTD
Adult Social Care,Older People 65&Over inc OP-MH,OP East - Residential Care Ext,Third Party Payments,Private Contractors,Miscellaneous Agency Services,20110817,915,"2,000.00",Revenue,SOUTHERN CROSS HEALTHCARE LTD
Adult Social Care,Older People 65&Over inc OP-MH,OP East - Residential Care Ext,Third Party Payments,Private Contractors,Miscellaneous Agency Services,20110817,916,"1,878.52",Revenue,SOUTHERN CROSS HEALTHCARE LTD
Adult Social Care,Older People 65&Over inc OP-MH,OP Hosp - Residential Care Ext,Third Party Payments,Private Contractors,Miscellaneous Agency Services,20110817,917,"1,878.52",Revenue,SOUTHERN CROSS HEALTHCARE LTD
Adult Social Care,Older People 65&Over inc OP-MH,OP Hosp - Residential Care Ext,Third Party Payments,Private Contractors,Miscellaneous Agency Services,20110817,918,"1,878.52",Revenue,SOUTHERN CROSS HEALTHCARE LTD
Adult Social Care,Older People 65&Over inc OP-MH,OP East - Nursing Care,Third Party Payments,Private Contractors,Miscellaneous Agency Services,20110817,919,"2,237.64",Revenue,SOUTHERN CROSS HEALTHCARE LTD
Adult Social Care,Adult u65 Phys/Sensory Impair,PD EAST TEAM-Nursing,Third Party Payments,Private Contractors,Miscellaneous Agency Services,20110817,920,"3,096.00",Revenue,SOUTHERN CROSS HEALTHCARE LTD
Adult Social Care,Older People 65&Over inc OP-MH,OP West - Nursing Care,Third Party Payments,Private Contractors,Miscellaneous Agency Services,20110817,921,"2,431.96",Revenue,SOUTHERN CROSS HEALTHCARE LTD
Adult Social Care,Older People 65&Over inc OP-MH,OP West - Nursing Care,Third Party Payments,Private Contractors,Miscellaneous Agency Services,20110817,922,"2,593.00",Revenue,SOUTHERN CROSS HEALTHCARE LTD
Adult Social Care,Older People 65&Over inc OP-MH,OP Hosp - Nursing Care,Third Party Payments,Private Contractors,Miscellaneous Agency Services,20110817,923,"2,717.76",Revenue,SOUTHERN CROSS HEALTHCARE LTD
Adult Social Care,Older People 65&Over inc OP-MH,OP Hosp - Nursing Care,Third Party Payments,Private Contractors,Miscellaneous Agency Services,20110817,924,"2,341.84",Revenue,SOUTHERN CROSS HEALTHCARE LTD
Adult Social Care,Adlt u65 Learning Disabilities,LD Residential Care External,Third Party Payments,Private Contractors,Miscellaneous Agency Services,20110817,925,"13,948.00",Revenue,SPRING LAKE CARE HOME LTD
Adult Social Care,Adlt u65 Learning Disabilities,LD Residential Care External,Third Party Payments,Private Contractors,Miscellaneous Agency Services,20110817,926,"17,435.00",Revenue,SPRING LAKE CARE HOME LTD
Adult Social Care,Adlt u65 Learning Disabilities,LD Residential Care External,Third Party Payments,Private Contractors,Miscellaneous Agency Services,20110817,927,"13,948.00",Revenue,SPRING LAKE CARE HOME LTD
Adult Social Care,Older People 65&Over inc OP-MH,OP East - Residential Care Ext,Customer and client receipts,Charges,Bd&Acc-contrib coll by home X,20110817,928,"-1,059.73",Revenue,WOODLANDS
Adult Social Care,Older People 65&Over inc OP-MH,OP Morden-Residential Care Ext,Customer and client receipts,Charges,Bd&Acc-contrib coll by home X,20110817,929,"1,059.73",Revenue,WOODLANDS
Adult Social Care,Older People 65&Over inc OP-MH,OP Morden-Residential Care Ext,Third Party Payments,Private Contractors,Miscellaneous Agency Services,20110817,930,"-3,577.98",Revenue,WOODLANDS
Adult Social Care,Older People 65&Over inc OP-MH,OP West - Nursing Care,Third Party Payments,Private Contractors,Miscellaneous Agency Services,20110817,931,"7,658.64",Revenue,WOODLANDS
Adult Social Care,Older People 65&Over inc OP-MH,OP Hosp - Residential Care Ext,Third Party Payments,Private Contractors,Miscellaneous Agency Services,20110817,932,"14,155.52",Revenue,WOODLANDS
Adult Social Care,Older People 65&Over inc OP-MH,OP West - Residential Care Ext,Third Party Payments,Private Contractors,Miscellaneous Agency Services,20110817,933,"16,356.48",Revenue,WOODLANDS
Adult Social Care,Older People 65&Over inc OP-MH,OP East - Nursing Care,Third Party Payments,Private Contractors,Miscellaneous Agency Services,20110817,934,"35,251.76",Revenue,WOODLANDS
Adult Social Care,Older People 65&Over inc OP-MH,OP East - Residential Care Ext,Third Party Payments,Private Contractors,Miscellaneous Agency Services,20110817,935,"40,578.40",Revenue,WOODLANDS
Adult Social Care,Older People 65&Over inc OP-MH,OP East - Residential Care Ext,Customer and client receipts,Charges,Miscellaneous Charges X,20110817,936,"-1,162.92",Revenue,WOODLANDS
Adult Social Care,Adult u65 Mental Health Needs,MH Adult Placement Cont-Wim,Third Party Payments,Private Contractors,Accommodation Based Support,20110817,937,"12,950.40",Revenue,SW LONDON ST GEORGES NHS TRUST
Adult Social Care,Older People 65&Over inc OP-MH,OP East - Residential Care Ext,Third Party Payments,Private Contractors,Miscellaneous Agency Services,20110817,938,"1,314.28",Revenue,WOODLANDS
Adult Social Care,Adult u65 Phys/Sensory Impair,PD EAST TEAM-Day Care,Third Party Payments,Private Contractors,Miscellaneous Agency Services,20110817,939,"1,066.40",Revenue,ACTION FOR BLIND PEOPLE
Adult Social Care,Adult u65 Phys/Sensory Impair,PD EAST TEAM-Homecare,Third Party Payments,Private Contractors,Miscellaneous Agency Services,20110817,940,"2,346.00",Revenue,BUPA CARE HOMES (ANS) LTD
Adult Social Care,Adult u65 Phys/Sensory Impair,PD EAST TEAM-Homecare,Third Party Payments,Private Contractors,Miscellaneous Agency Services,20110817,941,"2,199.68",Revenue,BUPA CARE HOMES (ANS) LTD
Adult Social Care,Adult u65 Phys/Sensory Impair,PD EAST TEAM-Homecare,Third Party Payments,Private Contractors,Miscellaneous Agency Services,20110817,942,"2,199.68",Revenue,BUPA CARE HOMES (ANS) LTD
Adult Social Care,Adult u65 Phys/Sensory Impair,PD EAST TEAM-Homecare,Third Party Payments,Private Contractors,Miscellaneous Agency Services,20110817,943,"2,199.68",Revenue,BUPA CARE HOMES (ANS) LTD
Adult Social Care,Adult u65 Phys/Sensory Impair,PD EAST TEAM-Homecare,Third Party Payments,Private Contractors,Miscellaneous Agency Services,20110817,944,"2,199.68",Revenue,BUPA CARE HOMES (ANS) LTD
Adult Social Care,Adult u65 Phys/Sensory Impair,PD EAST TEAM-Homecare,Third Party Payments,Private Contractors,Miscellaneous Agency Services,20110822,945,"2,199.68",Revenue,BUPA CARE HOMES (ANS) LTD
Adult Social Care,Adult u65 Mental Health Needs,MH Home Care External-MitWest,Third Party Payments,Private Contractors,Miscellaneous Agency Services,20110817,946,871.36,Revenue,COMFORT CARE SERVICES (UK) LTD
Childrens & Education Services,Other Ch's & Family Services,CL Leaving Care/Supp Lodgings,Third Party Payments,Private Contractors,Supported Lodgings,20110817,947,600,Revenue,REDACTED
Childrens & Education Services,Children's Services - C & S W,CL IndepAssess Expert Witness,Third Party Payments,Private Contractors,Miscellaneous Agency Services,20110817,948,816.5,Revenue,REDACTED
Adult Social Care,Adult u65 Phys/Sensory Impair,PD EAST TEAM-Day Care,Third Party Payments,Private Contractors,Miscellaneous Agency Services,20110819,949,"1,066.40",Revenue,ACTION FOR BLIND PEOPLE
Adult Social Care,Adult u65 Phys/Sensory Impair,PD EAST TEAM-Homecare,Third Party Payments,Private Contractors,Miscellaneous Agency Services,20110818,950,758.45,Revenue,HOME CARE SERVICE PROVIDER
Adult Social Care,Adult u65 Phys/Sensory Impair,PD EAST TEAM-Homecare,Third Party Payments,Private Contractors,Miscellaneous Agency Services,20110818,951,"1,201.70",Revenue,HOME CARE SERVICE PROVIDER
Adult Social Care,Adlt u65 Learning Disabilities,LD Home Care External,Third Party Payments,Private Contractors,Miscellaneous Agency Services,20110818,952,"9,498.24",Revenue,METROPOLITAN SUPPORT TRUST
Adult Social Care,Adlt u65 Learning Disabilities,LD Home Care External,Third Party Payments,Private Contractors,Miscellaneous Agency Services,20110818,953,"3,600.00",Revenue,PROVIDENCE CARE UK LTD
Adult Social Care,Adult u65 Phys/Sensory Impair,PD EAST TEAM-Homecare,Third Party Payments,Private Contractors,Miscellaneous Agency Services,20110818,954,"1,445.09",Revenue,SANCTUARY HOME CARE
Adult Social Care,Older People 65&Over inc OP-MH,OP East - Home Care External,Third Party Payments,Private Contractors,Miscellaneous Agency Services,20110818,955,"4,132.95",Revenue,SANCTUARY HOME CARE
Adult Social Care,Older People 65&Over inc OP-MH,OP West - Home Care External,Third Party Payments,Private Contractors,Miscellaneous Agency Services,20110818,956,"29,351.18",Revenue,SANCTUARY HOME CARE
Childrens & Education Services,Other Ch's & Family Services,CL Leaving Care/Supp Lodgings,Third Party Payments,Private Contractors,Miscellaneous Agency Services,20110818,957,"1,199.80",Revenue,ON BEHALF SP HOMES LTD NO2 ACC
Adult Social Care,Adult u65 Phys/Sensory Impair,PD EAST TEAM-Other Services,Third Party Payments,Private Contractors,Miscellaneous Agency Services,20110818,958,500,Revenue,HIGHVIEW CARE SERVICES LTD
Adult Social Care,Adult u65 Phys/Sensory Impair,PS Other Serv - NRTPF,Third Party Payments,Private Contractors,Miscellaneous Agency Services,20110818,959,530.16,Revenue,WANDSWORTH BOROUGH COUNCIL
Childrens & Education Services,Family Support Services,CS Children in Need Section 17,Transfer Payments,Adult Soc Servs Clients,Childr Act 1989 S17,20110818,960,518.4,Revenue,TRIMEGA LABORATORIES LTD
Adult Social Care,Older People 65&Over inc OP-MH,OP Mitcham-Residential CareExt,Third Party Payments,Private Contractors,Miscellaneous Agency Services,20110818,961,"2,000.00",Revenue,BROOK CARE HOMES LTD
Adult Social Care,Older People 65&Over inc OP-MH,OP Mitcham-Residential CareExt,Third Party Payments,Private Contractors,Miscellaneous Agency Services,20110818,962,"2,000.00",Revenue,BROOK CARE HOMES LTD
Adult Social Care,Older People 65&Over inc OP-MH,OP West - Nursing Care,Third Party Payments,Private Contractors,Miscellaneous Agency Services,20110818,963,"2,805.19",Revenue,CARE UK
Adult Social Care,Adult u65 Mental Health Needs,MH Hostels/ B & B - EIS,Third Party Payments,Private Contractors,Miscellaneous Agency Services,20110819,964,900,Revenue,THE CONQUEST HOTEL
Adult Social Care,Adult u65 Mental Health Needs,MH Hostels/ B & B - EIS,Third Party Payments,Private Contractors,Miscellaneous Agency Services,20110819,965,930,Revenue,THE CONQUEST HOTEL
Adult Social Care,Adlt u65 Learning Disabilities,LD Residential Care External,Third Party Payments,Private Contractors,Miscellaneous Agency Services,20110818,966,"6,400.00",Revenue,EVERGREEN PARTNERSHIP
Adult Social Care,Older People 65&Over inc OP-MH,OP Wimbledon - Nursing Care,Third Party Payments,Private Contractors,Miscellaneous Agency Services,20110818,967,"2,173.96",Revenue,HERITAGE CARE CENTRE
Adult Social Care,Adult u65 Phys/Sensory Impair,PS ResidentialCare Ext- NRTPF,Third Party Payments,Private Contractors,Miscellaneous Agency Services,20110819,968,"3,100.00",Revenue,LOVE WALK RESIDENTIAL HOME
Adult Social Care,Adult u65 Phys/Sensory Impair,PS ResidentialCare Ext- NRTPF,Third Party Payments,Private Contractors,Miscellaneous Agency Services,20110819,969,"6,200.00",Revenue,LOVE WALK RESIDENTIAL HOME
Adult Social Care,Older People 65&Over inc OP-MH,OP West - Residential Care Ext,Third Party Payments,Private Contractors,Miscellaneous Agency Services,20110818,970,670.9,Revenue,SOUTHERN CROSS HEALTHCARE LTD
Adult Social Care,Older People 65&Over inc OP-MH,OP East - Residential Care Ext,Third Party Payments,Private Contractors,Miscellaneous Agency Services,20110818,971,"3,757.04",Revenue,SOUTHERN CROSS HEALTHCARE LTD
Adult Social Care,Older People 65&Over inc OP-MH,OP Hosp - Residential Care Ext,Third Party Payments,Private Contractors,Miscellaneous Agency Services,20110818,972,"4,964.54",Revenue,SOUTHERN CROSS HEALTHCARE LTD
Adult Social Care,Older People 65&Over inc OP-MH,OP Hosp - Residential Care Ext,Third Party Payments,Private Contractors,Miscellaneous Agency Services,20110818,973,785.71,Revenue,SOUTHERN CROSS HEALTHCARE LTD
Adult Social Care,Older People 65&Over inc OP-MH,OP Hosp - Residential Care Ext,Third Party Payments,Private Contractors,Miscellaneous Agency Services,20110818,974,"2,000.00",Revenue,SOUTHERN CROSS HEALTHCARE LTD
Adult Social Care,Adult u65 Mental Health Needs,MH Home Care External-MitWest,Third Party Payments,Private Contractors,Miscellaneous Agency Services,20110819,975,804.8,Revenue,LIFEWAYS COMMUNITY CARE LTD
Adult Social Care,Older People 65&Over inc OP-MH,OP East - Home Care External,Third Party Payments,Private Contractors,Miscellaneous Agency Services,20110819,976,764.25,Revenue,SYNERGY PERSONNEL SOLUTIONS LT
Adult Social Care,Older People 65&Over inc OP-MH,OP East - Home Care External,Third Party Payments,Private Contractors,Miscellaneous Agency Services,20110819,977,750.49,Revenue,SYNERGY PERSONNEL SOLUTIONS LT
Adult Social Care,Adlt u65 Learning Disabilities,LD Comm -Home Care-Orch Hill,Third Party Payments,Private Contractors,Miscellaneous Agency Services,20110819,978,848.05,Revenue,UNITED RESPONSE
Adult Social Care,Adlt u65 Learning Disabilities,LD Comm -Home Care-Orch Hill,Third Party Payments,Private Contractors,Miscellaneous Agency Services,20110819,979,848.05,Revenue,UNITED RESPONSE
Adult Social Care,Older People 65&Over inc OP-MH,OP West - Residential Care Ext,Third Party Payments,Private Contractors,Miscellaneous Agency Services,20110819,980,"8,450.00",Revenue,BARONS LODGE NURSING HOME
Adult Social Care,Adlt u65 Learning Disabilities,LD Nursing Care,Third Party Payments,Private Contractors,Miscellaneous Agency Services,20110819,981,"11,088.96",Revenue,BARONS LODGE NURSING HOME
Adult Social Care,Adlt u65 Learning Disabilities,LD Residential Care External,Third Party Payments,Private Contractors,Miscellaneous Agency Services,20110819,982,"8,450.00",Revenue,BARONS LODGE NURSING HOME
Adult Social Care,Older People 65&Over inc OP-MH,OP East - Nursing Care,Third Party Payments,Private Contractors,Miscellaneous Agency Services,20110819,983,"2,800.00",Revenue,THE BRADBURY CENT.NURSING HOME
Adult Social Care,Adult u65 Phys/Sensory Impair,PD WEST TEAM-Nursing,Third Party Payments,Private Contractors,Miscellaneous Agency Services,20110819,984,"2,775.76",Revenue,BRITISH HOME
Adult Social Care,Adult u65 Phys/Sensory Impair,PD WEST TEAM-Nursing,Customer and client receipts,Charges,Miscellaneous Charges X,20110819,985,-893.8,Revenue,BRITISH HOME
Adult Social Care,Adult u65 Phys/Sensory Impair,PD EAST TEAM-Nursing,Third Party Payments,Private Contractors,Miscellaneous Agency Services,20110819,986,"3,940.00",Revenue,BRITISH HOME
Adult Social Care,Adult u65 Phys/Sensory Impair,PD EAST TEAM-Nursing,Third Party Payments,Private Contractors,Miscellaneous Agency Services,20110819,987,"3,237.64",Revenue,BRITISH HOME
Adult Social Care,Adult u65 Mental Health Needs,MH ResidentialCare Ext-Morden,Third Party Payments,Private Contractors,Miscellaneous Agency Services,20110819,988,"2,321.90",Revenue,BROOKDALE HEALTH CARE
Adult Social Care,Adlt u65 Learning Disabilities,LD Residential Care External,Third Party Payments,Private Contractors,Miscellaneous Agency Services,20110819,989,"7,951.81",Revenue,CARE ASPIRATIONS LIMITED
Adult Social Care,Adlt u65 Learning Disabilities,LD Comm-Residential-Surrey Oak,Third Party Payments,Private Contractors,Miscellaneous Agency Services,20110819,990,"4,610.56",Revenue,COTTISBRAINE HOUSE
Adult Social Care,Older People 65&Over inc OP-MH,OP East - Nursing Care,Third Party Payments,Private Contractors,Miscellaneous Agency Services,20110819,991,"2,210.16",Revenue,GREAT WHEATLEY NURSING HOME
Adult Social Care,Adlt u65 Learning Disabilities,LD Home Care External,Third Party Payments,Private Contractors,Miscellaneous Agency Services,20110819,992,"3,234.96",Revenue,H F TRUST LTD
Adult Social Care,Older People 65&Over inc OP-MH,OP East - Residential Care Ext,Third Party Payments,Private Contractors,Miscellaneous Agency Services,20110819,993,"1,664.60",Revenue,KINGSDALE NURSING HOME
Adult Social Care,Adlt u65 Learning Disabilities,LD Residential Care External,Third Party Payments,Private Contractors,Miscellaneous Agency Services,20110819,994,"5,600.00",Revenue,REDACTED
Adult Social Care,Older People 65&Over inc OP-MH,OP East - Nursing Care,Customer and client receipts,Charges,Bd&Acc-contrib coll by home X,20110819,995,"-1,614.97",Revenue,FOUR SEASONS LTD T/A UPLANDS
Adult Social Care,Older People 65&Over inc OP-MH,OP East - Nursing Care,Third Party Payments,Private Contractors,Miscellaneous Agency Services,20110819,996,"2,341.84",Revenue,FOUR SEASONS LTD T/A UPLANDS
Adult Social Care,Older People 65&Over inc OP-MH,OP East - Nursing Care,Third Party Payments,Private Contractors,Miscellaneous Agency Services,20110819,997,"2,341.84",Revenue,FOUR SEASONS LTD T/A UPLANDS
Adult Social Care,Older People 65&Over inc OP-MH,OP East - Nursing Care,Third Party Payments,Private Contractors,Miscellaneous Agency Services,20110819,998,"2,341.84",Revenue,FOUR SEASONS LTD T/A UPLANDS
Adult Social Care,Older People 65&Over inc OP-MH,OP West - Residential Care Ext,Third Party Payments,Private Contractors,Miscellaneous Agency Services,20110819,999,"1,976.60",Revenue,NIGHTINGALE HOUSE
Adult Social Care,Older People 65&Over inc OP-MH,OP East - Nursing Care,Third Party Payments,Private Contractors,Miscellaneous Agency Services,20110819,1000,"2,420.24",Revenue,NIGHTINGALE HOUSE
Adult Social Care,Adult u65 Phys/Sensory Impair,PD WEST TEAM-Residential Care,Third Party Payments,Private Contractors,Miscellaneous Agency Services,20110819,1001,"3,811.60",Revenue,VIRIDIAN HOUSING
Adult Social Care,Older People 65&Over inc OP-MH,OP East - Residential Care Ext,Third Party Payments,Private Contractors,Miscellaneous Agency Services,20110819,1002,"3,308.92",Revenue,RNID - ACTION ON HEARING LOSS
Adult Social Care,Adult u65 Phys/Sensory Impair,PD EAST TEAM-Residential,Third Party Payments,Private Contractors,Miscellaneous Agency Services,20110819,1003,"8,384.84",Revenue,RNID
Adult Social Care,Older People 65&Over inc OP-MH,OP Hosp - Residential Care Ext,Third Party Payments,Private Contractors,Miscellaneous Agency Services,20110819,1004,"2,160.40",Revenue,SOUTHVIEW CARE HOME
Adult Social Care,Adult u65 Phys/Sensory Impair,PD EAST TEAM-Direct Payment,Third Party Payments,Private Contractors,Direct Payments,20110819,1005,"1,090.28",Revenue,REDACTED
Adult Social Care,Adlt u65 Learning Disabilities,LD Direct Payment Scheme,Third Party Payments,Private Contractors,Direct Payments,20110819,1006,518,Revenue,REDACTED
Adult Social Care,Adlt u65 Learning Disabilities,LD Day Care Agency,Third Party Payments,Private Contractors,Miscellaneous Agency Services,20110822,1007,"2,953.44",Revenue,ACT TOO
Adult Social Care,Adlt u65 Learning Disabilities,LD Home Care External,Third Party Payments,Private Contractors,Miscellaneous Agency Services,20110822,1008,655.3,Revenue,BEECH HOME CARE SERVICES
Adult Social Care,Adlt u65 Learning Disabilities,LD Home Care External,Third Party Payments,Private Contractors,Miscellaneous Agency Services,20110822,1009,655.3,Revenue,BEECH HOME CARE SERVICES
Adult Social Care,Older People 65&Over inc OP-MH,OP Mitcham - Daycare,Third Party Payments,Private Contractors,Miscellaneous Agency Services,20110822,1010,602.75,Revenue,SOLACE COMMUNITY CARE LTD
Adult Social Care,Adult u65 Phys/Sensory Impair,PD WEST TEAM-Homecare,Third Party Payments,Private Contractors,Miscellaneous Agency Services,20110822,1011,600,Revenue,TOTAL PROPERTY SERVICES
Adult Social Care,Older People 65&Over inc OP-MH,OP East - Residential Care Ext,Third Party Payments,Private Contractors,Miscellaneous Agency Services,20110822,1012,"1,680.00",Revenue,BELL MEMORIAL HOME
Adult Social Care,Older People 65&Over inc OP-MH,OP East - Nursing Care,Third Party Payments,Private Contractors,Miscellaneous Agency Services,20110824,1013,"2,210.16",Revenue,GREAT WHEATLEY NURSING HOME
Adult Social Care,Older People 65&Over inc OP-MH,OP East - Residential Care Ext,Third Party Payments,Private Contractors,Miscellaneous Agency Services,20110822,1014,"3,000.00",Revenue,GREENHIVE
Adult Social Care,Adlt u65 Learning Disabilities,LD Residential Care External,Third Party Payments,Private Contractors,Miscellaneous Agency Services,20110822,1015,"7,308.00",Revenue,INDEPENDENCE HOMES LTD
Adult Social Care,Older People 65&Over inc OP-MH,OP West - Residential Care Ext,Third Party Payments,Private Contractors,Miscellaneous Agency Services,20110822,1016,"1,692.00",Revenue,METHODIST HOMES FOR THE AGED
Adult Social Care,Adlt u65 Learning Disabilities,LD Residential Care External,Third Party Payments,Private Contractors,Miscellaneous Agency Services,20110824,1017,"2,593.40",Revenue,THE SONS OF DIVINE PROVIDENCE
Adult Social Care,Adult u65 Mental Health Needs,MH Other Servs - Mitcham West,Third Party Payments,Private Contractors,Miscellaneous Agency Services,20110824,1018,919.6,Revenue,RNID
Adult Social Care,Adult u65 Phys/Sensory Impair,PD EAST TEAM-Direct Payment,Third Party Payments,Private Contractors,Direct Payments,20110822,1019,511.2,Revenue,REDACTED
Childrens & Education Services,Other Ch's & Family Services,CL Leaving Care/Supp Lodgings,Third Party Payments,Private Contractors,Private Tenant/Landlord,20110822,1020,695.04,Revenue,REDACTED
Childrens & Education Services,Other Ch's & Family Services,CL Leaving Care/Supp Lodgings,Third Party Payments,Private Contractors,Supported Lodgings,20110822,1021,"2,800.00",Revenue,REDACTED
Childrens & Education Services,Other Ch's & Family Services,CL Leaving Care/Supp Lodgings,Third Party Payments,Private Contractors,Supported Lodgings,20110822,1022,"2,400.00",Revenue,REDACTED
Adult Social Care,Older People 65&Over inc OP-MH,OP East -Direct Payment Scheme,Third Party Payments,Private Contractors,Direct Payments,20110822,1023,"1,380.00",Revenue,REDACTED
Childrens & Education Services,Family Support Services,CS Children in Need Section 17,Transfer Payments,Adult Soc Servs Clients,Childr Act 1989 S17,20110822,1024,"2,613.85",Revenue,ADMINLAND LTD
Adult Social Care,Asylum seekers,AS Child - Res Care (Grant),Third Party Payments,Private Contractors,Supported Lodgings,20110822,1025,"1,607.10",Revenue,REDACTED
Childrens & Education Services,Children's Services - C & S W,CL IndepAssess Expert Witness,Third Party Payments,Private Contractors,Miscellaneous Agency Services,20110822,1026,"1,048.00",Revenue,REDACTED
Childrens & Education Services,Family Support Services,CL CLA Team 1 - Sec 17,Transfer Payments,Adult Soc Servs Clients,Childr Act 1989 S17,20110822,1027,648,Revenue,TRIMEGA LABORATORIES LTD
Childrens & Education Services,Children Looked After (24hrs+),CL Fostering Services,Supplies and Services,Services,Task Based Fostering,20110823,1028,"2,118.34",Revenue,REDACTED
Childrens & Education Services,Children Looked After (24hrs+),CL Fostering Services,Supplies and Services,Services,Task Based Fostering,20110823,1029,780.44,Revenue,REDACTED
Childrens & Education Services,Children Looked After (24hrs+),CL Fostering Services,Supplies and Services,Services,Task Based Fostering,20110823,1030,"1,502.66",Revenue,REDACTED
Childrens & Education Services,Children Looked After (24hrs+),CL Fostering Services,Supplies and Services,Services,Task Based Fostering,20110823,1031,"1,519.64",Revenue,REDACTED
Childrens & Education Services,Children Looked After (24hrs+),CL Fostering Services,Supplies and Services,Services,Task Based Fostering,20110823,1032,"2,266.12",Revenue,REDACTED
Childrens & Education Services,Children Looked After (24hrs+),CL Fostering Services,Supplies and Services,Services,Task Based Fostering,20110823,1033,"1,560.88",Revenue,REDACTED
Childrens & Education Services,Children Looked After (24hrs+),CL Fostering Services,Supplies and Services,Services,Task Based Fostering,20110823,1034,"2,324.34",Revenue,REDACTED
Childrens & Education Services,Children Looked After (24hrs+),CL Fostering Services,Supplies and Services,Services,Task Based Fostering,20110823,1035,"2,283.10",Revenue,REDACTED
Childrens & Education Services,Children Looked After (24hrs+),CL Fostering Services,Supplies and Services,Services,Task Based Fostering,20110823,1036,668.94,Revenue,REDACTED
Childrens & Education Services,Children Looked After (24hrs+),CL Fostering Services,Supplies and Services,Services,Task Based Fostering,20110823,1037,"2,500.88",Revenue,REDACTED
Childrens & Education Services,Children Looked After (24hrs+),CL Fostering Services,Supplies and Services,Services,Task Based Fostering,20110823,1038,"1,560.88",Revenue,REDACTED
Childrens & Education Services,Children Looked After (24hrs+),CL Fostering Services,Supplies and Services,Services,Task Based Fostering,20110823,1039,"1,236.00",Revenue,REDACTED
Childrens & Education Services,Children Looked After (24hrs+),CL Fostering Services,Supplies and Services,Services,Task Based Fostering,20110823,1040,739.2,Revenue,REDACTED
Childrens & Education Services,Children Looked After (24hrs+),CL Fostering Services,Supplies and Services,Services,Task Based Fostering,20110823,1041,780.44,Revenue,REDACTED
Childrens & Education Services,Children Looked After (24hrs+),CL Fostering Services,Supplies and Services,Services,Task Based Fostering,20110823,1042,"1,543.90",Revenue,REDACTED
Childrens & Education Services,Children Looked After (24hrs+),CL Fostering Services,Supplies and Services,Services,Task Based Fostering,20110823,1043,"1,543.90",Revenue,REDACTED
Childrens & Education Services,Children Looked After (24hrs+),CL Fostering Services,Supplies and Services,Services,Task Based Fostering,20110823,1044,"1,478.40",Revenue,REDACTED
Childrens & Education Services,Children Looked After (24hrs+),CL Fostering Services,Supplies and Services,Services,Task Based Fostering,20110823,1045,780.44,Revenue,REDACTED
Childrens & Education Services,Children Looked After (24hrs+),CL Fostering Services,Supplies and Services,Services,Task Based Fostering,20110823,1046,"2,241.86",Revenue,REDACTED
Childrens & Education Services,Children Looked After (24hrs+),CL Fostering Services,Supplies and Services,Services,Task Based Fostering,20110823,1047,"1,478.40",Revenue,REDACTED
Childrens & Education Services,Children Looked After (24hrs+),CL Fostering Services,Supplies and Services,Services,Task Based Fostering,20110823,1048,780.44,Revenue,REDACTED
Childrens & Education Services,Children Looked After (24hrs+),CL Fostering Services,Supplies and Services,Services,Task Based Fostering,20110823,1049,739.2,Revenue,REDACTED
Childrens & Education Services,Children Looked After (24hrs+),CL Fostering Services,Supplies and Services,Services,Task Based Fostering,20110823,1050,"1,502.66",Revenue,REDACTED
Childrens & Education Services,Children Looked After (24hrs+),CL Fostering Services,Supplies and Services,Services,Task Based Fostering,20110823,1051,"2,307.36",Revenue,REDACTED
Childrens & Education Services,Children Looked After (24hrs+),CL Fostering Services,Supplies and Services,Services,Task Based Fostering,20110823,1052,686.4,Revenue,REDACTED
Childrens & Education Services,Children Looked After (24hrs+),CL Fostering Services,Supplies and Services,Services,Task Based Fostering,20110823,1053,739.2,Revenue,REDACTED
Childrens & Education Services,Other Ch's & Family Services,CL Leaving Care/Supp Lodgings,Third Party Payments,Private Contractors,Supported Lodgings,20110823,1054,600,Revenue,REDACTED
Childrens & Education Services,Family Support Services,CS Day Care CWD,Third Party Payments,Private Contractors,After School Care Group,20110823,1055,"1,364.00",Revenue,KINGSTON & WIMBLEDON YMCA
Childrens & Education Services,Family Support Services,CS Day Care CWD,Third Party Payments,Private Contractors,Playscheme,20110823,1056,"2,200.00",Revenue,KINGSTON & WIMBLEDON YMCA
Adult Social Care,Adult u65 Phys/Sensory Impair,PS Other Serv - NRTPF,Third Party Payments,Private Contractors,Miscellaneous Agency Services,20110823,1057,692.28,Revenue,JOHN JOSEPH PROPERTY SERVICES
Adult Social Care,Adult u65 Phys/Sensory Impair,PD EAST TEAM-Other Services,Third Party Payments,Private Contractors,Miscellaneous Agency Services,20110823,1058,969.24,Revenue,JOHN JOSEPH PROPERTY SERVICES
Adult Social Care,Adult u65 Phys/Sensory Impair,PS Other Serv - NRTPF,Third Party Payments,Private Contractors,Miscellaneous Agency Services,20110823,1059,692.28,Revenue,JOHN JOSEPH PROPERTY SERVICES
